Department Family,Entity,Date,Expense Type,Expense area,Supplier,Transaction Number,Amount,VAT registration Number
Department of Health,Salisbury NHS Foundation Trust,27-Apr-18,MEDICAL EQUIPMENT 10 YEARS,Capital Projects,ANETIC AID LTD,MAN021,32346,
Department of Health,Salisbury NHS Foundation Trust,27-Apr-18,MEDICAL EQUIPMENT 10 YEARS,Capital Projects,ANETIC AID LTD,MAN021,1188,
Department of Health,Salisbury NHS Foundation Trust,27-Apr-18,MEDICAL EQUIPMENT 10 YEARS,Capital Projects,ANETIC AID LTD,MAN021,216,
Department of Health,Salisbury NHS Foundation Trust,27-Apr-18,MEDICAL EQUIPMENT 10 YEARS,Capital Projects,ANETIC AID LTD,MAN021,1026,
Department of Health,Salisbury NHS Foundation Trust,27-Apr-18,MEDICAL EQUIPMENT 10 YEARS,Capital Projects,ANETIC AID LTD,MAN021,118.8,
Department of Health,Salisbury NHS Foundation Trust,27-Apr-18,MEDICAL EQUIPMENT 10 YEARS,Capital Projects,ANETIC AID LTD,MAN021,504,
Department of Health,Salisbury NHS Foundation Trust,27-Apr-18,MEDICAL EQUIPMENT 10 YEARS,Capital Projects,ANETIC AID LTD,MAN021,181.2,
Department of Health,Salisbury NHS Foundation Trust,27-Apr-18,MEDICAL EQUIPMENT 10 YEARS,Capital Projects,ANETIC AID LTD,MAN021,6469.2,
Department of Health,Salisbury NHS Foundation Trust,27-Apr-18,MEDICAL EQUIPMENT 10 YEARS,Capital Projects,ANETIC AID LTD,MAN021,237.6,
Department of Health,Salisbury NHS Foundation Trust,27-Apr-18,MEDICAL EQUIPMENT 10 YEARS,Capital Projects,ANETIC AID LTD,MAN021,43.2,
Department of Health,Salisbury NHS Foundation Trust,27-Apr-18,MEDICAL EQUIPMENT 10 YEARS,Capital Projects,ANETIC AID LTD,MAN021,205.2,
Department of Health,Salisbury NHS Foundation Trust,27-Apr-18,MEDICAL EQUIPMENT 10 YEARS,Capital Projects,ANETIC AID LTD,MAN021,23.76,
Department of Health,Salisbury NHS Foundation Trust,27-Apr-18,MEDICAL EQUIPMENT 10 YEARS,Capital Projects,ANETIC AID LTD,MAN021,100.8,
Department of Health,Salisbury NHS Foundation Trust,27-Apr-18,MEDICAL EQUIPMENT 10 YEARS,Capital Projects,ANETIC AID LTD,MAN021,36.24,
Department of Health,Salisbury NHS Foundation Trust,20-Apr-18,NETWORKING COSTS,Capital Projects,ANS GROUP PLC,INV048388,39937.5,
Department of Health,Salisbury NHS Foundation Trust,20-Apr-18,NETWORKING COSTS,Capital Projects,ANS GROUP PLC,INV048388,7987.5,
Department of Health,Salisbury NHS Foundation Trust,13-Apr-18,DRUGS,Clinical Support and Family Services,LLOYDSPHARMACY CLINICAL HOMECARE,SINV2840693,28669.97,
Department of Health,Salisbury NHS Foundation Trust,20-Apr-18,FOODSTUFFS,Facilities Directorate,PELICAN PROCUREMENT SERVICES LTD,MAR-2018-NHS 1699,71808.74,
Department of Health,Salisbury NHS Foundation Trust,13-Apr-18,RATES,Facilities Directorate,WILTSHIRE COUNCIL,Apr-18,119259.57,
Department of Health,Salisbury NHS Foundation Trust,20-Apr-18,MEDICAL EQUIPMENT 5 YEARS,Capital Projects,HEIDELBERG ENGINEERING LIMITED,HE13484,22893.98,
Department of Health,Salisbury NHS Foundation Trust,13-Apr-18,PRINTER/PHOTOCOPIERS, ALL DIRECTORATES - DANWOOD,APOGEE CORPORATION LTD,842089,82715,
Department of Health,Salisbury NHS Foundation Trust,27-Apr-18,MEDICAL SPECIALIST CLEANING EQUIPMENT,Capital Projects,BIOQUELL,SI-186342,39990,
Department of Health,Salisbury NHS Foundation Trust,27-Apr-18,MEDICAL SPECIALIST CLEANING EQUIPMENT,Capital Projects,BIOQUELL,SI-186342,7998,
Department of Health,Salisbury NHS Foundation Trust,27-Apr-18,NETWORKING COSTS,Capital Projects,COMPUTACENTER (UK) LTD,98046576,29000,
Department of Health,Salisbury NHS Foundation Trust,27-Apr-18,NETWORKING COSTS,Capital Projects,COMPUTACENTER (UK) LTD,98046576,5800,
Department of Health,Salisbury NHS Foundation Trust,27-Apr-18,PATS CONS TREATMENT COMMERCIAL,Critical care,LIVABILITY,SPI024732,42466.67,
Department of Health,Salisbury NHS Foundation Trust,20-Apr-18,MEDICAL EQUIPMENT 5 YEARS,Capital Projects,HEIDELBERG ENGINEERING LIMITED,HE13484,114469.89,
Department of Health,Salisbury NHS Foundation Trust,25-Apr-18,NETWORKING COSTS,Capital Projects,CSC COMPUTER SCIENCES LTD,5201529559,1014950.24,
Department of Health,Salisbury NHS Foundation Trust,20-Apr-18,BLDG STRUCTURES MAIN CONTR,Capital Projects,R G SPILLER LTD,IN023846,95423.35,
Department of Health,Salisbury NHS Foundation Trust,20-Apr-18,BLDG STRUCTURES MAIN CONTR,Capital Projects,R G SPILLER LTD,IN023846,14857.42,
Department of Health,Salisbury NHS Foundation Trust,20-Apr-18,NETWORKING COSTS,Capital Projects,AMICUS ITS LTD,OP/I066578,3384,
Department of Health,Salisbury NHS Foundation Trust,27-Apr-18,SERVICES  -  RECRUITMENT AGENCY FEES,Corporate Directorate,HEALTH SECTOR JOBS,998-2018,32350,
Department of Health,Salisbury NHS Foundation Trust,27-Apr-18,SERVICES  -  RECRUITMENT AGENCY FEES,Corporate Directorate,HEALTH SECTOR JOBS,998-2018,6470,
Department of Health,Salisbury NHS Foundation Trust,20-Apr-18,NETWORKING COSTS,Capital Projects,AMICUS ITS LTD,OP/I066578,16920,
Department of Health,Salisbury NHS Foundation Trust,20-Apr-18,NETWORKING COSTS,Capital Projects,AMICUS ITS LTD,OP/I066578,120960,
Department of Health,Salisbury NHS Foundation Trust,20-Apr-18,NETWORKING COSTS,Capital Projects,AMICUS ITS LTD,OP/I066578,24192,
Department of Health,Salisbury NHS Foundation Trust,13-Apr-18,HARD/SOFTWARE-COMPUTER SOFTWARE  SPECIALISED BESPOKE,Directorate of Finance and Procurement,ORACLE CORPORATION UK LTD,1643484,1579.36,
Department of Health,Salisbury NHS Foundation Trust,13-Apr-18,HARD/SOFTWARE-COMPUTER SOFTWARE  SPECIALISED BESPOKE,Directorate of Finance and Procurement,ORACLE CORPORATION UK LTD,1643484,14289.45,
Department of Health,Salisbury NHS Foundation Trust,13-Apr-18,HARD/SOFTWARE-COMPUTER SOFTWARE  SPECIALISED BESPOKE,Directorate of Finance and Procurement,ORACLE CORPORATION UK LTD,1643484,7896.81,
Department of Health,Salisbury NHS Foundation Trust,13-Apr-18,HARD/SOFTWARE-COMPUTER SOFTWARE  SPECIALISED BESPOKE,Directorate of Finance and Procurement,ORACLE CORPORATION UK LTD,1643484,2857.89,
Department of Health,Salisbury NHS Foundation Trust,13-Apr-18,HARD/SOFTWARE-COMPUTER SOFTWARE  SPECIALISED BESPOKE,Directorate of Finance and Procurement,ORACLE CORPORATION UK LTD,1643477,2915.7,
Department of Health,Salisbury NHS Foundation Trust,13-Apr-18,HARD/SOFTWARE-COMPUTER SOFTWARE  SPECIALISED BESPOKE,Directorate of Finance and Procurement,ORACLE CORPORATION UK LTD,1643477,833.02,
Department of Health,Salisbury NHS Foundation Trust,13-Apr-18,HARD/SOFTWARE-COMPUTER SOFTWARE  SPECIALISED BESPOKE,Directorate of Finance and Procurement,ORACLE CORPORATION UK LTD,1643477,166.81,
Department of Health,Salisbury NHS Foundation Trust,13-Apr-18,HARD/SOFTWARE-COMPUTER SOFTWARE  SPECIALISED BESPOKE,Directorate of Finance and Procurement,ORACLE CORPORATION UK LTD,1643477,834.08,
Department of Health,Salisbury NHS Foundation Trust,13-Apr-18,HARD/SOFTWARE-COMPUTER SOFTWARE  SPECIALISED BESPOKE,Directorate of Finance and Procurement,ORACLE CORPORATION UK LTD,1643477,1042.67,
Department of Health,Salisbury NHS Foundation Trust,13-Apr-18,HARD/SOFTWARE-COMPUTER SOFTWARE  SPECIALISED BESPOKE,Directorate of Finance and Procurement,ORACLE CORPORATION UK LTD,1643477,1249.59,
Department of Health,Salisbury NHS Foundation Trust,13-Apr-18,HARD/SOFTWARE-COMPUTER SOFTWARE  SPECIALISED BESPOKE,Directorate of Finance and Procurement,ORACLE CORPORATION UK LTD,1643477,2500.69,
Department of Health,Salisbury NHS Foundation Trust,13-Apr-18,HARD/SOFTWARE-COMPUTER SOFTWARE  SPECIALISED BESPOKE,Directorate of Finance and Procurement,ORACLE CORPORATION UK LTD,1643477,15665.95,
Department of Health,Salisbury NHS Foundation Trust,13-Apr-18,HARD/SOFTWARE-COMPUTER SOFTWARE  SPECIALISED BESPOKE,Directorate of Finance and Procurement,ORACLE CORPORATION UK LTD,1643477,2500.69,
Department of Health,Salisbury NHS Foundation Trust,13-Apr-18,HARD/SOFTWARE-COMPUTER SOFTWARE  SPECIALISED BESPOKE,Directorate of Finance and Procurement,ORACLE CORPORATION UK LTD,1643477,583.14,
Department of Health,Salisbury NHS Foundation Trust,13-Apr-18,HARD/SOFTWARE-COMPUTER SOFTWARE  SPECIALISED BESPOKE,Directorate of Finance and Procurement,ORACLE CORPORATION UK LTD,1643477,166.6,
Department of Health,Salisbury NHS Foundation Trust,13-Apr-18,HARD/SOFTWARE-COMPUTER SOFTWARE  SPECIALISED BESPOKE,Directorate of Finance and Procurement,ORACLE CORPORATION UK LTD,1643477,33.36,
Department of Health,Salisbury NHS Foundation Trust,13-Apr-18,HARD/SOFTWARE-COMPUTER SOFTWARE  SPECIALISED BESPOKE,Directorate of Finance and Procurement,ORACLE CORPORATION UK LTD,1643477,166.82,
Department of Health,Salisbury NHS Foundation Trust,13-Apr-18,HARD/SOFTWARE-COMPUTER SOFTWARE  SPECIALISED BESPOKE,Directorate of Finance and Procurement,ORACLE CORPORATION UK LTD,1643477,208.53,
Department of Health,Salisbury NHS Foundation Trust,13-Apr-18,HARD/SOFTWARE-COMPUTER SOFTWARE  SPECIALISED BESPOKE,Directorate of Finance and Procurement,ORACLE CORPORATION UK LTD,1643477,249.92,
Department of Health,Salisbury NHS Foundation Trust,13-Apr-18,HARD/SOFTWARE-COMPUTER SOFTWARE  SPECIALISED BESPOKE,Directorate of Finance and Procurement,ORACLE CORPORATION UK LTD,1643477,500.14,
Department of Health,Salisbury NHS Foundation Trust,13-Apr-18,HARD/SOFTWARE-COMPUTER SOFTWARE  SPECIALISED BESPOKE,Directorate of Finance and Procurement,ORACLE CORPORATION UK LTD,1643477,3133.19,
Department of Health,Salisbury NHS Foundation Trust,13-Apr-18,HARD/SOFTWARE-COMPUTER SOFTWARE  SPECIALISED BESPOKE,Directorate of Finance and Procurement,ORACLE CORPORATION UK LTD,1643477,500.14,
Department of Health,Salisbury NHS Foundation Trust,27-Apr-18,MEDICAL EQUIPMENT 5 YEARS,Capital Projects,CARL ZEISS LTD,5140407367,49050.86,
Department of Health,Salisbury NHS Foundation Trust,27-Apr-18,MEDICAL EQUIPMENT 5 YEARS,Capital Projects,CARL ZEISS LTD,5140407367,9810.17,
Department of Health,Salisbury NHS Foundation Trust,20-Apr-18,MEDICAL EQUIPMENT 5 YEARS,Capital Projects,SRA DEVELOPMENTS LTD,90207126,71406.98,
Department of Health,Salisbury NHS Foundation Trust,20-Apr-18,MEDICAL EQUIPMENT 5 YEARS,Capital Projects,SRA DEVELOPMENTS LTD,90207126,14281.4,
Department of Health,Salisbury NHS Foundation Trust,06-Apr-18,DRUGS,Clinical Support and Family Services,ROCHE PRODUCTS LTD,1322012299,26168.12,
Department of Health,Salisbury NHS Foundation Trust,06-Apr-18,DRUGS,Clinical Support and Family Services,ROCHE PRODUCTS LTD,1322012299,5233.62,
Department of Health,Salisbury NHS Foundation Trust,13-Apr-18,MEDICAL EQUIPMENT 5 YEARS,Capital Projects,AQUILANT ENDOSCOPY,AQ70225,635825,
Department of Health,Salisbury NHS Foundation Trust,13-Apr-18,MEDICAL EQUIPMENT 5 YEARS,Capital Projects,AQUILANT ENDOSCOPY,AQ70225,127165,
Department of Health,Salisbury NHS Foundation Trust,13-Apr-18,DRUGS,Clinical Support and Family Services,CSL BEHRING UK LIMITED,991839975,41437.5,
Department of Health,Salisbury NHS Foundation Trust,13-Apr-18,DRUGS,Clinical Support and Family Services,CSL BEHRING UK LIMITED,991839975,8287.5,
Department of Health,Salisbury NHS Foundation Trust,06-Apr-18,MED SURG EQUIP REP MAINT CLEANING,Surgery,STRYKER UK LTD,28271884,28797.49,
Department of Health,Salisbury NHS Foundation Trust,06-Apr-18,DRUGS,Clinical Support and Family Services,ROCHE PRODUCTS LTD,1322010814,25195.92,
Department of Health,Salisbury NHS Foundation Trust,06-Apr-18,DRUGS,Clinical Support and Family Services,ROCHE PRODUCTS LTD,1322010814,5039.18,
Department of Health,Salisbury NHS Foundation Trust,20-Apr-18,MEDICAL EQUIPMENT 5 YEARS,Capital Projects,TELEFLEX GROUP LIMITED,989640046,54000,
Department of Health,Salisbury NHS Foundation Trust,20-Apr-18,MEDICAL EQUIPMENT 5 YEARS,Capital Projects,TELEFLEX GROUP LIMITED,989640046,10800,
Department of Health,Salisbury NHS Foundation Trust,06-Apr-18,LAB EQUIP-LABORATORY APPARATUS,Clinical Support,BECKMAN COULTER,1402104,48862.89,
Department of Health,Salisbury NHS Foundation Trust,06-Apr-18,NETWORKING COSTS,Capital Projects,ANS GROUP PLC,INV052320,24000,
Department of Health,Salisbury NHS Foundation Trust,06-Apr-18,NETWORKING COSTS,Capital Projects,ANS GROUP PLC,INV052320,4800,
Department of Health,Salisbury NHS Foundation Trust,06-Apr-18,HARD/SOFTWARE-COMPUTER SOFTWARE  OFF THE SHELF APPLICATIONS,Directorate of Finance and Procurement,GHX UK LTD,715-00000869,1416.67,
Department of Health,Salisbury NHS Foundation Trust,06-Apr-18,HARD/SOFTWARE-COMPUTER SOFTWARE  OFF THE SHELF APPLICATIONS,Directorate of Finance and Procurement,GHX UK LTD,715-00000869,22661,
Department of Health,Salisbury NHS Foundation Trust,06-Apr-18,HARD/SOFTWARE-COMPUTER SOFTWARE  OFF THE SHELF APPLICATIONS,Directorate of Finance and Procurement,GHX UK LTD,715-00000869,283.33,
Department of Health,Salisbury NHS Foundation Trust,06-Apr-18,HARD/SOFTWARE-COMPUTER SOFTWARE  OFF THE SHELF APPLICATIONS,Directorate of Finance and Procurement,GHX UK LTD,715-00000869,4532.2,
Department of Health,Salisbury NHS Foundation Trust,13-Apr-18,COMPUTER MAINTENANCE x,Clinical Support and Family Services,ABBOTT INFORMATICS EUROPE LTD,1841,26282,
Department of Health,Salisbury NHS Foundation Trust,20-Apr-18,MEDICAL EQUIPMENT 5 YEARS,Capital Projects,DRIVE DEVILBISS SIDHL LTD,1217088,51600,
Department of Health,Salisbury NHS Foundation Trust,20-Apr-18,MEDICAL EQUIPMENT 5 YEARS,Capital Projects,DRIVE DEVILBISS SIDHL LTD,1217088,10320,
Department of Health,Salisbury NHS Foundation Trust,06-Apr-18,NETWORKING COSTS,Capital Projects,SECTRA LTD,SIN000496,49372,
Department of Health,Salisbury NHS Foundation Trust,01-Apr-18,NETWORKING COSTS,Capital Projects,ANS GROUP PLC,INV051817,11163.99,
Department of Health,Salisbury NHS Foundation Trust,01-Apr-18,NETWORKING COSTS,Capital Projects,ANS GROUP PLC,INV051817,18985.26,
Department of Health,Salisbury NHS Foundation Trust,01-Apr-18,NETWORKING COSTS,Capital Projects,ANS GROUP PLC,INV051817,54906.08,
Department of Health,Salisbury NHS Foundation Trust,01-Apr-18,NETWORKING COSTS,Capital Projects,ANS GROUP PLC,INV051817,2232.8,
Department of Health,Salisbury NHS Foundation Trust,01-Apr-18,NETWORKING COSTS,Capital Projects,ANS GROUP PLC,INV051817,3797.05,
Department of Health,Salisbury NHS Foundation Trust,01-Apr-18,NETWORKING COSTS,Capital Projects,ANS GROUP PLC,INV051817,10981.22,
Department of Health,Salisbury NHS Foundation Trust,01-Apr-18,COMPUTER MAINTENANCE x,Corporate - Informatics,ANS GROUP PLC,INV051817,91048,
Department of Health,Salisbury NHS Foundation Trust,01-Apr-18,COMPUTER MAINTENANCE x,Corporate - Informatics,ANS GROUP PLC,INV051817,18209.6,
Department of Health,Salisbury NHS Foundation Trust,20-Apr-18,HEALTHCARE - NHS TRUSTS,Directorate of Finance and Procurement,ROYAL UNITED HOSPITAL BATH NHS TRUST,10350683,49892.01,
Department of Health,Salisbury NHS Foundation Trust,06-Apr-18,ETS UNITARY CHARGE,Corporate Directorate,SALISBURY HEALTHCARE FACILITIES LTD,415,279347.43,
Department of Health,Salisbury NHS Foundation Trust,20-Apr-18,ENERGY WATER - WATER MAINS,Facilities Directorate,BWBSL,9050566137,25028.4,
Department of Health,Salisbury NHS Foundation Trust,20-Apr-18,ENERGY WATER - SEWERAGE CHARGES,Facilities Directorate,BWBSL,9050566137,10709.23,
Department of Health,Salisbury NHS Foundation Trust,27-Apr-18,HEALTHCARE - NHS TRUSTS,Clinical Support and Family Services,GREAT WESTERN HOSPITALS NHS FT,16976340,57417.9,
Department of Health,Salisbury NHS Foundation Trust,06-Apr-18,HEALTHCARE - NHS TRUSTS,Clinical Support and Family Services,ROYAL UNITED HOSPITAL BATH NHS TRUST,10349121,29500,
Department of Health,Salisbury NHS Foundation Trust,13-Apr-18,HEALTHCARE - NHS TRUSTS,Clinical Support and Family Services,ROYAL UNITED HOSPITAL BATH NHS TRUST,10350529,76115.02,
Department of Health,Salisbury NHS Foundation Trust,13-Apr-18,HEALTHCARE - NHS TRUSTS,Clinical Support and Family Services,GREAT WESTERN HOSPITALS NHS FT,16976762,80527.48,
Department of Health,Salisbury NHS Foundation Trust,13-Apr-18,HEALTHCARE - NHS TRUSTS,Clinical Support and Family Services,ROYAL UNITED HOSPITAL BATH NHS TRUST,10350555,34881.76,
Department of Health,Salisbury NHS Foundation Trust,06-Apr-18,HEALTHCARE - NHS TRUSTS,Clinical Support and Family Services,ROYAL UNITED HOSPITAL BATH NHS TRUST,10349575,74734.41,
Department of Health,Salisbury NHS Foundation Trust,06-Apr-18,COSTS TO OTHER LABS,Clinical Support and Family Services,UNIVERSITY HOSPITAL SOUTHAMPTON NHS FOUNDATION TRUST,7315322,3437.41,
Department of Health,Salisbury NHS Foundation Trust,06-Apr-18,COSTS TO OTHER LABS,Clinical Support and Family Services,UNIVERSITY HOSPITAL SOUTHAMPTON NHS FOUNDATION TRUST,7315322,22913.14,
Department of Health,Salisbury NHS Foundation Trust,06-Apr-18,ENERGY WATER - GAS MAINS,Facilities Directorate,CORONA ENERGY,12919066,18854.2,
Department of Health,Salisbury NHS Foundation Trust,06-Apr-18,ENERGY WATER - GAS MAINS,Facilities Directorate,CORONA ENERGY,12919066,10904.1,
Department of Health,Salisbury NHS Foundation Trust,06-Apr-18,ENERGY WATER - GAS MAINS,Facilities Directorate,CORONA ENERGY,12919066,94270.98,
Department of Health,Salisbury NHS Foundation Trust,06-Apr-18,ENERGY WATER - GAS MAINS,Facilities Directorate,CORONA ENERGY,12919066,545.21,
Department of Health,Salisbury NHS Foundation Trust,27-Apr-18,ENERGY WATER - ELECTRICITY,Facilities Directorate,SCOTTISH POWER,105499733,13358.12,
Department of Health,Salisbury NHS Foundation Trust,27-Apr-18,ENERGY WATER - ELECTRICITY,Facilities Directorate,SCOTTISH POWER,105499733,7838.86,
Department of Health,Salisbury NHS Foundation Trust,27-Apr-18,ENERGY WATER - ELECTRICITY,Facilities Directorate,SCOTTISH POWER,105499733,66790.62,
Department of Health,Salisbury NHS Foundation Trust,27-Apr-18,ENERGY WATER - ELECTRICITY,Facilities Directorate,SCOTTISH POWER,105499733,391.94,
Department of Health,Salisbury NHS Foundation Trust,24-Apr-18,LAB EQUIP-LABORATORY APPARATUS,Clinical Support and Family Services,NHS LOGISTICS,1019013283,86.55,
Department of Health,Salisbury NHS Foundation Trust,24-Apr-18,LAB EQUIP-LABORATORY APPARATUS,Clinical Support and Family Services,NHS LOGISTICS,1019013283,34.43,
Department of Health,Salisbury NHS Foundation Trust,24-Apr-18,LAB EQUIP-LABORATORY APPARATUS,Clinical Support and Family Services,NHS LOGISTICS,1019013283,103.6,
Department of Health,Salisbury NHS Foundation Trust,24-Apr-18,TISSUES HAND TOWELS & TOILET PAPER,Clinical Support and Family Services,NHS LOGISTICS,1019013283,10.65,
Department of Health,Salisbury NHS Foundation Trust,13-Apr-18,FM COMPUTER CONTRACTS,Clinical Support and Family Services,PORTSMOUTH HOSPITALS NHS TRUST,9351518,122831.33,
Department of Health,Salisbury NHS Foundation Trust,24-Apr-18,TISSUES HAND TOWELS & TOILET PAPER,Clinical Support and Family Services,NHS LOGISTICS,1019013283,3.72,
Department of Health,Salisbury NHS Foundation Trust,24-Apr-18,MED SURG EQUIP REP MAINT CLEANING,Clinical Support and Family Services,NHS LOGISTICS,1019013283,30.1,
Department of Health,Salisbury NHS Foundation Trust,24-Apr-18,MED SURG EQUIP REP MAINT CLEANING,Clinical Support and Family Services,NHS LOGISTICS,1019013283,30.1,
Department of Health,Salisbury NHS Foundation Trust,24-Apr-18,M & S EQUIPELECTEQUIPINST - OTHER,Clinical Support and Family Services,NHS LOGISTICS,1019013283,14.89,
Department of Health,Salisbury NHS Foundation Trust,24-Apr-18,SURGICAL INSTRUMENTS: GENERAL,Surgery,NHS LOGISTICS,1019013283,85.91,
Department of Health,Salisbury NHS Foundation Trust,24-Apr-18,MEDSURGCONS - OTHER,Critical care,NHS LOGISTICS,1019013283,155.23,
Department of Health,Salisbury NHS Foundation Trust,24-Apr-18,OTHER MEDICAL SUPPLIES,Clinical Support and Family Services,NHS LOGISTICS,1019013283,406.25,
Department of Health,Salisbury NHS Foundation Trust,24-Apr-18,OTHER MEDICAL SUPPLIES,Surgery,NHS LOGISTICS,1019013283,41.6,
Department of Health,Salisbury NHS Foundation Trust,24-Apr-18,BEVERAGES & AMBIENT FOOD,Facilities Directorate,NHS LOGISTICS,1019013283,23.72,
Department of Health,Salisbury NHS Foundation Trust,24-Apr-18,BEVERAGES & AMBIENT FOOD,Facilities Directorate,NHS LOGISTICS,1019013283,188.8,
Department of Health,Salisbury NHS Foundation Trust,24-Apr-18,FRUIT & VEGETABLES,Facilities Directorate,NHS LOGISTICS,1019013283,157.08,
Department of Health,Salisbury NHS Foundation Trust,24-Apr-18,FRUIT & VEGETABLES,Facilities Directorate,NHS LOGISTICS,1019013283,3.61,
Department of Health,Salisbury NHS Foundation Trust,24-Apr-18,FRUIT & VEGETABLES,Facilities Directorate,NHS LOGISTICS,1019013283,41.16,
Department of Health,Salisbury NHS Foundation Trust,24-Apr-18,FRUIT & VEGETABLES,Facilities Directorate,NHS LOGISTICS,1019013283,35.04,
Department of Health,Salisbury NHS Foundation Trust,24-Apr-18,FRUIT & VEGETABLES,Facilities Directorate,NHS LOGISTICS,1019013283,20.76,
Department of Health,Salisbury NHS Foundation Trust,24-Apr-18,FRUIT & VEGETABLES,Facilities Directorate,NHS LOGISTICS,1019013283,29.94,
Department of Health,Salisbury NHS Foundation Trust,24-Apr-18,FRUIT & VEGETABLES,Facilities Directorate,NHS LOGISTICS,1019013283,8.88,
Department of Health,Salisbury NHS Foundation Trust,24-Apr-18,FRUIT & VEGETABLES,Facilities Directorate,NHS LOGISTICS,1019013283,12.78,
Department of Health,Salisbury NHS Foundation Trust,24-Apr-18,FRUIT & VEGETABLES,Facilities Directorate,NHS LOGISTICS,1019013283,11.7,
Department of Health,Salisbury NHS Foundation Trust,24-Apr-18,FRUIT & VEGETABLES,Facilities Directorate,NHS LOGISTICS,1019013283,71.28,
Department of Health,Salisbury NHS Foundation Trust,24-Apr-18,FRUIT & VEGETABLES,Facilities Directorate,NHS LOGISTICS,1019013283,13.2,
Department of Health,Salisbury NHS Foundation Trust,24-Apr-18,FRUIT & VEGETABLES,Facilities Directorate,NHS LOGISTICS,1019013283,4.8,
Department of Health,Salisbury NHS Foundation Trust,24-Apr-18,FRUIT & VEGETABLES,Facilities Directorate,NHS LOGISTICS,1019013283,48,
Department of Health,Salisbury NHS Foundation Trust,24-Apr-18,FRUIT & VEGETABLES,Facilities Directorate,NHS LOGISTICS,1019013283,66.36,
Department of Health,Salisbury NHS Foundation Trust,24-Apr-18,FRUIT & VEGETABLES,Facilities Directorate,NHS LOGISTICS,1019013283,10.62,
Department of Health,Salisbury NHS Foundation Trust,24-Apr-18,BEVERAGES & AMBIENT FOOD,Facilities Directorate,NHS LOGISTICS,1019013283,2.63,
Department of Health,Salisbury NHS Foundation Trust,24-Apr-18,BEVERAGES & AMBIENT FOOD,Facilities Directorate,NHS LOGISTICS,1019013283,8.94,
Department of Health,Salisbury NHS Foundation Trust,24-Apr-18,BEVERAGES & AMBIENT FOOD,Facilities Directorate,NHS LOGISTICS,1019013283,3.48,
Department of Health,Salisbury NHS Foundation Trust,24-Apr-18,BEVERAGES & AMBIENT FOOD,Facilities Directorate,NHS LOGISTICS,1019013283,23.72,
Department of Health,Salisbury NHS Foundation Trust,24-Apr-18,BEVERAGES & AMBIENT FOOD,Facilities Directorate,NHS LOGISTICS,1019013283,40.23,
Department of Health,Salisbury NHS Foundation Trust,24-Apr-18,BEVERAGES & AMBIENT FOOD,Facilities Directorate,NHS LOGISTICS,1019013283,25.98,
Department of Health,Salisbury NHS Foundation Trust,24-Apr-18,BEVERAGES & AMBIENT FOOD,Facilities Directorate,NHS LOGISTICS,1019013283,123.06,
Department of Health,Salisbury NHS Foundation Trust,24-Apr-18,LIQUID REFRESHMENTS,Facilities Directorate,NHS LOGISTICS,1019013283,26.5,
Department of Health,Salisbury NHS Foundation Trust,24-Apr-18,MEDSURGCONS - OTHER,Surgery,NHS LOGISTICS,1019013283,10.22,
Department of Health,Salisbury NHS Foundation Trust,24-Apr-18,MEDSURGCONS - OTHER,Surgery,NHS LOGISTICS,1019013283,10.22,
Department of Health,Salisbury NHS Foundation Trust,24-Apr-18,LIQUID REFRESHMENTS,Facilities Directorate,NHS LOGISTICS,1019013283,17.45,
Department of Health,Salisbury NHS Foundation Trust,24-Apr-18,LIQUID REFRESHMENTS,Facilities Directorate,NHS LOGISTICS,1019013283,13.17,
Department of Health,Salisbury NHS Foundation Trust,24-Apr-18,LIQUID REFRESHMENTS,Facilities Directorate,NHS LOGISTICS,1019013283,2.53,
Department of Health,Salisbury NHS Foundation Trust,24-Apr-18,LIQUID REFRESHMENTS,Facilities Directorate,NHS LOGISTICS,1019013283,18.6,
Department of Health,Salisbury NHS Foundation Trust,24-Apr-18,LIQUID REFRESHMENTS,Facilities Directorate,NHS LOGISTICS,1019013283,2.53,
Department of Health,Salisbury NHS Foundation Trust,24-Apr-18,LIQUID REFRESHMENTS,Facilities Directorate,NHS LOGISTICS,1019013283,18.33,
Department of Health,Salisbury NHS Foundation Trust,24-Apr-18,LIQUID REFRESHMENTS,Facilities Directorate,NHS LOGISTICS,1019013283,26.5,
Department of Health,Salisbury NHS Foundation Trust,24-Apr-18,MISCELLANEOUS CONSUMABLE ITEMS,Clinical Support and Family Services,NHS LOGISTICS,1019013283,37.03,
Department of Health,Salisbury NHS Foundation Trust,24-Apr-18,DRESSINGS - PRE STERILE,Clinical Support and Family Services,NHS LOGISTICS,1019013283,16.63,
Department of Health,Salisbury NHS Foundation Trust,24-Apr-18,LAB REAGENTS-BUFFERS COMPUND SOLNS,Clinical Support and Family Services,NHS LOGISTICS,1019013283,217.47,
Department of Health,Salisbury NHS Foundation Trust,24-Apr-18,OTHER MEDICAL SUPPLIES,Clinical Support and Family Services,NHS LOGISTICS,1019013283,6.2,
Department of Health,Salisbury NHS Foundation Trust,24-Apr-18,DRESSINGS - PRE STERILE,Critical care,NHS LOGISTICS,1019013283,158.27,
Department of Health,Salisbury NHS Foundation Trust,24-Apr-18,DRESSINGS - PRE STERILE,Critical care,NHS LOGISTICS,1019013283,158.27,
Department of Health,Salisbury NHS Foundation Trust,24-Apr-18,DRESSINGS - PRE STERILE,Critical care,NHS LOGISTICS,1019013283,22.61,
Department of Health,Salisbury NHS Foundation Trust,24-Apr-18,PUBLICATIONS PRERECORDED VIDEOS AUDIO CASSETTES,Clinical Support and Family Services,NHS LOGISTICS,1019013283,10.5,
Department of Health,Salisbury NHS Foundation Trust,24-Apr-18,DISPOSABLE THEATRE DRAPES WIPES,Medicine,NHS LOGISTICS,1019013283,21.9,
Department of Health,Salisbury NHS Foundation Trust,24-Apr-18,LIQUID REFRESHMENTS,Facilities Directorate,NHS LOGISTICS,1019013283,4.66,
Department of Health,Salisbury NHS Foundation Trust,24-Apr-18,LIQUID REFRESHMENTS,Facilities Directorate,NHS LOGISTICS,1019013283,4.99,
Department of Health,Salisbury NHS Foundation Trust,24-Apr-18,LIQUID REFRESHMENTS,Facilities Directorate,NHS LOGISTICS,1019013283,8.68,
Department of Health,Salisbury NHS Foundation Trust,24-Apr-18,LIQUID REFRESHMENTS,Facilities Directorate,NHS LOGISTICS,1019013283,24.63,
Department of Health,Salisbury NHS Foundation Trust,24-Apr-18,BEVERAGES & AMBIENT FOOD,Facilities Directorate,NHS LOGISTICS,1019013283,3.07,
Department of Health,Salisbury NHS Foundation Trust,24-Apr-18,BEVERAGES & AMBIENT FOOD,Facilities Directorate,NHS LOGISTICS,1019013283,3.5,
Department of Health,Salisbury NHS Foundation Trust,24-Apr-18,BEVERAGES & AMBIENT FOOD,Facilities Directorate,NHS LOGISTICS,1019013283,3.07,
Department of Health,Salisbury NHS Foundation Trust,24-Apr-18,LIQUID REFRESHMENTS,Facilities Directorate,NHS LOGISTICS,1019013283,3.91,
Department of Health,Salisbury NHS Foundation Trust,24-Apr-18,BEVERAGES & AMBIENT FOOD,Facilities Directorate,NHS LOGISTICS,1019013283,7.56,
Department of Health,Salisbury NHS Foundation Trust,24-Apr-18,BEVERAGES & AMBIENT FOOD,Facilities Directorate,NHS LOGISTICS,1019013283,14.52,
Department of Health,Salisbury NHS Foundation Trust,24-Apr-18,BEVERAGES & AMBIENT FOOD,Facilities Directorate,NHS LOGISTICS,1019013283,18.72,
Department of Health,Salisbury NHS Foundation Trust,24-Apr-18,BEVERAGES & AMBIENT FOOD,Facilities Directorate,NHS LOGISTICS,1019013283,5.42,
Department of Health,Salisbury NHS Foundation Trust,24-Apr-18,BEVERAGES & AMBIENT FOOD,Facilities Directorate,NHS LOGISTICS,1019013283,19.68,
Department of Health,Salisbury NHS Foundation Trust,24-Apr-18,BEVERAGES & AMBIENT FOOD,Facilities Directorate,NHS LOGISTICS,1019013283,17.46,
Department of Health,Salisbury NHS Foundation Trust,24-Apr-18,BEVERAGES & AMBIENT FOOD,Facilities Directorate,NHS LOGISTICS,1019013283,32.22,
Department of Health,Salisbury NHS Foundation Trust,24-Apr-18,EGGS MILK OTHER DAIRY PRODUCTS,Facilities Directorate,NHS LOGISTICS,1019013283,23.24,
Department of Health,Salisbury NHS Foundation Trust,24-Apr-18,BEVERAGES & AMBIENT FOOD,Facilities Directorate,NHS LOGISTICS,1019013283,57.48,
Department of Health,Salisbury NHS Foundation Trust,24-Apr-18,BEVERAGES & AMBIENT FOOD,Facilities Directorate,NHS LOGISTICS,1019013283,7.68,
Department of Health,Salisbury NHS Foundation Trust,24-Apr-18,BEVERAGES & AMBIENT FOOD,Facilities Directorate,NHS LOGISTICS,1019013283,17.12,
Department of Health,Salisbury NHS Foundation Trust,24-Apr-18,FLAVOURINGS HERBS SPICES,Facilities Directorate,NHS LOGISTICS,1019013283,1.55,
Department of Health,Salisbury NHS Foundation Trust,24-Apr-18,SURGICAL INSTRUMENTS: DISPOSABLE,Clinical Support and Family Services,NHS LOGISTICS,1019013283,42.98,
Department of Health,Salisbury NHS Foundation Trust,24-Apr-18,FLAVOURINGS HERBS SPICES,Facilities Directorate,NHS LOGISTICS,1019013283,19.32,
Department of Health,Salisbury NHS Foundation Trust,24-Apr-18,TISSUES HAND TOWELS & TOILET PAPER,Facilities Directorate,NHS LOGISTICS,1019013283,10.65,
Department of Health,Salisbury NHS Foundation Trust,24-Apr-18,FLAVOURINGS HERBS SPICES,Facilities Directorate,NHS LOGISTICS,1019013283,2.57,
Department of Health,Salisbury NHS Foundation Trust,24-Apr-18,FLAVOURINGS HERBS SPICES,Facilities Directorate,NHS LOGISTICS,1019013283,1.82,
Department of Health,Salisbury NHS Foundation Trust,24-Apr-18,FLAVOURINGS HERBS SPICES,Facilities Directorate,NHS LOGISTICS,1019013283,1.42,
Department of Health,Salisbury NHS Foundation Trust,24-Apr-18,ELECTRICAL EQUIPMENT ,Medicine,NHS LOGISTICS,1019013283,3.87,
Department of Health,Salisbury NHS Foundation Trust,24-Apr-18,BEVERAGES & AMBIENT FOOD,Facilities Directorate,NHS LOGISTICS,1019013283,3.19,
Department of Health,Salisbury NHS Foundation Trust,24-Apr-18,BEVERAGES & AMBIENT FOOD,Facilities Directorate,NHS LOGISTICS,1019013283,6.26,
Department of Health,Salisbury NHS Foundation Trust,24-Apr-18,BEVERAGES & AMBIENT FOOD,Facilities Directorate,NHS LOGISTICS,1019013283,14.76,
Department of Health,Salisbury NHS Foundation Trust,24-Apr-18,BEVERAGES & AMBIENT FOOD,Facilities Directorate,NHS LOGISTICS,1019013283,25.5,
Department of Health,Salisbury NHS Foundation Trust,24-Apr-18,BEVERAGES & AMBIENT FOOD,Facilities Directorate,NHS LOGISTICS,1019013283,10.26,
Department of Health,Salisbury NHS Foundation Trust,24-Apr-18,BEVERAGES & AMBIENT FOOD,Facilities Directorate,NHS LOGISTICS,1019013283,24.4,
Department of Health,Salisbury NHS Foundation Trust,24-Apr-18,BEVERAGES & AMBIENT FOOD,Facilities Directorate,NHS LOGISTICS,1019013283,23.14,
Department of Health,Salisbury NHS Foundation Trust,24-Apr-18,BEVERAGES & AMBIENT FOOD,Facilities Directorate,NHS LOGISTICS,1019013283,17.74,
Department of Health,Salisbury NHS Foundation Trust,24-Apr-18,BEVERAGES & AMBIENT FOOD,Facilities Directorate,NHS LOGISTICS,1019013283,8.9,
Department of Health,Salisbury NHS Foundation Trust,24-Apr-18,BEVERAGES & AMBIENT FOOD,Facilities Directorate,NHS LOGISTICS,1019013283,18.78,
Department of Health,Salisbury NHS Foundation Trust,24-Apr-18,BEVERAGES & AMBIENT FOOD,Facilities Directorate,NHS LOGISTICS,1019013283,17.12,
Department of Health,Salisbury NHS Foundation Trust,24-Apr-18,BEVERAGES & AMBIENT FOOD,Facilities Directorate,NHS LOGISTICS,1019013283,94,
Department of Health,Salisbury NHS Foundation Trust,24-Apr-18,EGGS MILK OTHER DAIRY PRODUCTS,Facilities Directorate,NHS LOGISTICS,1019013283,129.16,
Department of Health,Salisbury NHS Foundation Trust,24-Apr-18,FLAVOURINGS HERBS SPICES,Facilities Directorate,NHS LOGISTICS,1019013283,13.03,
Department of Health,Salisbury NHS Foundation Trust,24-Apr-18,BEVERAGES & AMBIENT FOOD,Facilities Directorate,NHS LOGISTICS,1019013283,21.44,
Department of Health,Salisbury NHS Foundation Trust,24-Apr-18,FLAVOURINGS HERBS SPICES,Facilities Directorate,NHS LOGISTICS,1019013283,6.84,
Department of Health,Salisbury NHS Foundation Trust,24-Apr-18,BEVERAGES & AMBIENT FOOD,Facilities Directorate,NHS LOGISTICS,1019013283,10.8,
Department of Health,Salisbury NHS Foundation Trust,24-Apr-18,FLAVOURINGS HERBS SPICES,Facilities Directorate,NHS LOGISTICS,1019013283,12.72,
Department of Health,Salisbury NHS Foundation Trust,24-Apr-18,BEVERAGES & AMBIENT FOOD,Facilities Directorate,NHS LOGISTICS,1019013283,63.12,
Department of Health,Salisbury NHS Foundation Trust,24-Apr-18,BEVERAGES & AMBIENT FOOD,Facilities Directorate,NHS LOGISTICS,1019013283,24.16,
Department of Health,Salisbury NHS Foundation Trust,24-Apr-18,BEVERAGES & AMBIENT FOOD,Facilities Directorate,NHS LOGISTICS,1019013283,41.4,
Department of Health,Salisbury NHS Foundation Trust,24-Apr-18,BEVERAGES & AMBIENT FOOD,Facilities Directorate,NHS LOGISTICS,1019013283,18.3,
Department of Health,Salisbury NHS Foundation Trust,24-Apr-18,BAGS SACKS - OTHER,Facilities Directorate,NHS LOGISTICS,1019013283,20.27,
Department of Health,Salisbury NHS Foundation Trust,24-Apr-18,LIQUID REFRESHMENTS,Facilities Directorate,NHS LOGISTICS,1019013283,7.82,
Department of Health,Salisbury NHS Foundation Trust,24-Apr-18,CLEANING MATERIALS PRODUCTS SUNDRIES,Facilities Directorate,NHS LOGISTICS,1019013283,75.2,
Department of Health,Salisbury NHS Foundation Trust,24-Apr-18,CLEANING MATERIALS PRODUCTS SUNDRIES,Facilities Directorate,NHS LOGISTICS,1019013283,75.6,
Department of Health,Salisbury NHS Foundation Trust,24-Apr-18,CLEANING MATERIALS PRODUCTS SUNDRIES,Facilities Directorate,NHS LOGISTICS,1019013283,16.93,
Department of Health,Salisbury NHS Foundation Trust,24-Apr-18,ADULTS HEARING AIDS,Surgery,NHS LOGISTICS,1019013283,353.75,
Department of Health,Salisbury NHS Foundation Trust,24-Apr-18,BEVERAGES & AMBIENT FOOD,Facilities Directorate,NHS LOGISTICS,1019013283,48.51,
Department of Health,Salisbury NHS Foundation Trust,24-Apr-18,BEVERAGES & AMBIENT FOOD,Facilities Directorate,NHS LOGISTICS,1019013283,10.35,
Department of Health,Salisbury NHS Foundation Trust,24-Apr-18,TISSUES HAND TOWELS & TOILET PAPER,Medicine,NHS LOGISTICS,1019013283,2.48,
Department of Health,Salisbury NHS Foundation Trust,24-Apr-18,LAB EQUIP-LABORATORY APPARATUS,Clinical Support and Family Services,NHS LOGISTICS,1019013283,15.29,
Department of Health,Salisbury NHS Foundation Trust,24-Apr-18,LAB EQUIP-LABORATORY APPARATUS,Clinical Support and Family Services,NHS LOGISTICS,1019013283,18.93,
Department of Health,Salisbury NHS Foundation Trust,24-Apr-18,LAB EQUIP-LABORATORY APPARATUS,Clinical Support and Family Services,NHS LOGISTICS,1019013283,356,
Department of Health,Salisbury NHS Foundation Trust,24-Apr-18,LAB EQUIP-LABORATORY APPARATUS,Clinical Support and Family Services,NHS LOGISTICS,1019013283,25.83,
Department of Health,Salisbury NHS Foundation Trust,24-Apr-18,LAB EQUIP-LABORATORY APPARATUS,Clinical Support and Family Services,NHS LOGISTICS,1019013283,48.33,
Department of Health,Salisbury NHS Foundation Trust,24-Apr-18,LAB EQUIP-LABORATORY APPARATUS,Clinical Support and Family Services,NHS LOGISTICS,1019013283,748.67,
Department of Health,Salisbury NHS Foundation Trust,24-Apr-18,LAB EQUIP-LABORATORY APPARATUS,Clinical Support and Family Services,NHS LOGISTICS,1019013283,32.08,
Department of Health,Salisbury NHS Foundation Trust,24-Apr-18,LAB EQUIP-LABORATORY APPARATUS,Clinical Support and Family Services,NHS LOGISTICS,1019013283,62.08,
Department of Health,Salisbury NHS Foundation Trust,24-Apr-18,LAB EQUIP-LABORATORY APPARATUS,Clinical Support and Family Services,NHS LOGISTICS,1019013283,3.15,
Department of Health,Salisbury NHS Foundation Trust,24-Apr-18,LAB EQUIP-LABORATORY APPARATUS,Clinical Support and Family Services,NHS LOGISTICS,1019013283,73.2,
Department of Health,Salisbury NHS Foundation Trust,24-Apr-18,OTHER MEDICAL SUPPLIES,Clinical Support and Family Services,NHS LOGISTICS,1019013283,227.5,
Department of Health,Salisbury NHS Foundation Trust,24-Apr-18,LAB REAGENTS-BUFFERS COMPUND SOLNS,Clinical Support and Family Services,NHS LOGISTICS,1019013283,172.62,
Department of Health,Salisbury NHS Foundation Trust,24-Apr-18,ANAESTHETIC EQUIPMENT ACCESSORIES,Medicine,NHS LOGISTICS,1019013283,1.88,
Department of Health,Salisbury NHS Foundation Trust,24-Apr-18,DISPOSABLE THEATRE DRAPES WIPES,Medicine,NHS LOGISTICS,1019013283,3.55,
Department of Health,Salisbury NHS Foundation Trust,24-Apr-18,SURGICAL INSTRUMENTS: GENERAL,Clinical Support and Family Services,NHS LOGISTICS,1019013283,99.99,
Department of Health,Salisbury NHS Foundation Trust,24-Apr-18,TOILETRIES PERSONAL HYGIENE PRODUCTS,Medicine,NHS LOGISTICS,1019013283,3.08,
Department of Health,Salisbury NHS Foundation Trust,24-Apr-18,TISSUES HAND TOWELS & TOILET PAPER,Medicine,NHS LOGISTICS,1019013283,3.72,
Department of Health,Salisbury NHS Foundation Trust,24-Apr-18,TISSUES HAND TOWELS & TOILET PAPER,Medicine,NHS LOGISTICS,1019013283,0.78,
Department of Health,Salisbury NHS Foundation Trust,24-Apr-18,OTHER MEDICAL SUPPLIES,Medicine,NHS LOGISTICS,1019013283,1.88,
Department of Health,Salisbury NHS Foundation Trust,24-Apr-18,OTHER MEDICAL SUPPLIES,Medicine,NHS LOGISTICS,1019013283,2,
Department of Health,Salisbury NHS Foundation Trust,24-Apr-18,TISSUES HAND TOWELS & TOILET PAPER,Medicine,NHS LOGISTICS,1019013283,2.48,
Department of Health,Salisbury NHS Foundation Trust,24-Apr-18,MEDSURGCONS - OTHER,Medicine,NHS LOGISTICS,1019013283,59.78,
Department of Health,Salisbury NHS Foundation Trust,24-Apr-18,M & S EQUIPELECTEQUIPINST - OTHER,Medicine,NHS LOGISTICS,1019013283,8.4,
Department of Health,Salisbury NHS Foundation Trust,24-Apr-18,MEDSURGCONS - OTHER,Surgery,NHS LOGISTICS,1019013283,6.82,
Department of Health,Salisbury NHS Foundation Trust,24-Apr-18,SURGICAL INSTRUMENTS: GENERAL,Surgery,NHS LOGISTICS,1019013283,115.98,
Department of Health,Salisbury NHS Foundation Trust,24-Apr-18,TISSUES HAND TOWELS & TOILET PAPER,Surgery,NHS LOGISTICS,1019013283,11.67,
Department of Health,Salisbury NHS Foundation Trust,24-Apr-18,LAB REAGENTS-BUFFERS COMPUND SOLNS,Clinical Support and Family Services,NHS LOGISTICS,1019013283,1733.33,
Department of Health,Salisbury NHS Foundation Trust,24-Apr-18,M & S EQUIPELECTEQUIPINST - OTHER,Clinical Support and Family Services,NHS LOGISTICS,1019013283,350.5,
Department of Health,Salisbury NHS Foundation Trust,24-Apr-18,M & S EQUIPELECTEQUIPINST - OTHER,Clinical Support and Family Services,NHS LOGISTICS,1019013283,154.63,
Department of Health,Salisbury NHS Foundation Trust,24-Apr-18,COOKING & KITCHEN UTENSILS,Facilities Directorate,NHS LOGISTICS,1019013283,2.55,
Department of Health,Salisbury NHS Foundation Trust,24-Apr-18,COOKING & KITCHEN UTENSILS,Facilities Directorate,NHS LOGISTICS,1019013283,19.17,
Department of Health,Salisbury NHS Foundation Trust,24-Apr-18,COOKING & KITCHEN UTENSILS,Facilities Directorate,NHS LOGISTICS,1019013283,32.08,
Department of Health,Salisbury NHS Foundation Trust,24-Apr-18,OTHER MEDICAL SUPPLIES,Medicine,NHS LOGISTICS,1019013283,1.88,
Department of Health,Salisbury NHS Foundation Trust,24-Apr-18,OTHER MEDICAL SUPPLIES,Medicine,NHS LOGISTICS,1019013283,4.83,
Department of Health,Salisbury NHS Foundation Trust,24-Apr-18,TISSUES HAND TOWELS & TOILET PAPER,Medicine,NHS LOGISTICS,1019013283,140,
Department of Health,Salisbury NHS Foundation Trust,24-Apr-18,OTHER MEDICAL SUPPLIES,Medicine,NHS LOGISTICS,1019013283,3.77,
Department of Health,Salisbury NHS Foundation Trust,24-Apr-18,MEDSURGCONS - OTHER,Medicine,NHS LOGISTICS,1019013283,56.95,
Department of Health,Salisbury NHS Foundation Trust,24-Apr-18,MEDSURGCONS - OTHER,Medicine,NHS LOGISTICS,1019013283,205.63,
Department of Health,Salisbury NHS Foundation Trust,24-Apr-18,MEDSURGCONS - OTHER,Medicine,NHS LOGISTICS,1019013283,367.35,
Department of Health,Salisbury NHS Foundation Trust,24-Apr-18,DRESSINGS - PRE STERILE,Medicine,NHS LOGISTICS,1019013283,150,
Department of Health,Salisbury NHS Foundation Trust,24-Apr-18,TISSUES HAND TOWELS & TOILET PAPER,Medicine,NHS LOGISTICS,1019013283,2.48,
Department of Health,Salisbury NHS Foundation Trust,24-Apr-18,TISSUES HAND TOWELS & TOILET PAPER,Medicine,NHS LOGISTICS,1019013283,0.68,
Department of Health,Salisbury NHS Foundation Trust,24-Apr-18,TISSUES HAND TOWELS & TOILET PAPER,Medicine,NHS LOGISTICS,1019013283,70,
Department of Health,Salisbury NHS Foundation Trust,24-Apr-18,TISSUES HAND TOWELS & TOILET PAPER,Medicine,NHS LOGISTICS,1019013283,1.37,
Department of Health,Salisbury NHS Foundation Trust,24-Apr-18,TISSUES HAND TOWELS & TOILET PAPER,Medicine,NHS LOGISTICS,1019013283,17.5,
Department of Health,Salisbury NHS Foundation Trust,24-Apr-18,MEDSURGCONS - OTHER,Medicine,NHS LOGISTICS,1019013283,197.71,
Department of Health,Salisbury NHS Foundation Trust,24-Apr-18,MEDSURGCONS - OTHER,Medicine,NHS LOGISTICS,1019013283,35.59,
Department of Health,Salisbury NHS Foundation Trust,24-Apr-18,MEDSURGCONS - OTHER,Medicine,NHS LOGISTICS,1019013283,197.71,
Department of Health,Salisbury NHS Foundation Trust,24-Apr-18,MEDSURGCONS - OTHER,Medicine,NHS LOGISTICS,1019013283,138.42,
Department of Health,Salisbury NHS Foundation Trust,24-Apr-18,MEDSURGCONS - OTHER,Medicine,NHS LOGISTICS,1019013283,276.83,
Department of Health,Salisbury NHS Foundation Trust,24-Apr-18,OTHER MEDICAL SUPPLIES,Directorate of Finance and Procurement,NHS LOGISTICS,1019013283,150,
Department of Health,Salisbury NHS Foundation Trust,24-Apr-18,COOKING & KITCHEN UTENSILS,Directorate of Finance and Procurement,NHS LOGISTICS,1019013283,111,
Department of Health,Salisbury NHS Foundation Trust,24-Apr-18,DISPOSABLE THEATRE DRAPES WIPES,Medicine,NHS LOGISTICS,1019013283,3.55,
Department of Health,Salisbury NHS Foundation Trust,24-Apr-18,TISSUES HAND TOWELS & TOILET PAPER,Critical care,NHS LOGISTICS,1019013283,7.45,
Department of Health,Salisbury NHS Foundation Trust,24-Apr-18,DRESSINGS - PRE STERILE,Critical care,NHS LOGISTICS,1019013283,9.39,
Department of Health,Salisbury NHS Foundation Trust,24-Apr-18,DRESSINGS - PRE STERILE,Critical care,NHS LOGISTICS,1019013283,3.93,
Department of Health,Salisbury NHS Foundation Trust,24-Apr-18,PATIENTS BABY WEAR,Medicine,NHS LOGISTICS,1019013283,16.07,
Department of Health,Salisbury NHS Foundation Trust,24-Apr-18,PATIENTS BABY WEAR,Medicine,NHS LOGISTICS,1019013283,14.9,
Department of Health,Salisbury NHS Foundation Trust,24-Apr-18,DRESSINGS - PRE STERILE,Surgery,NHS LOGISTICS,1019013283,14,
Department of Health,Salisbury NHS Foundation Trust,24-Apr-18,ELECTRICAL EQUIPMENT x,Surgery,NHS LOGISTICS,1019013283,1.25,
Department of Health,Salisbury NHS Foundation Trust,24-Apr-18,ELECTRICAL EQUIPMENT x,Surgery,NHS LOGISTICS,1019013283,7.73,
Department of Health,Salisbury NHS Foundation Trust,24-Apr-18,MEDSURGCONS - OTHER,Medicine,NHS LOGISTICS,1019013283,197.71,
Department of Health,Salisbury NHS Foundation Trust,24-Apr-18,MEDSURGCONS - OTHER,Medicine,NHS LOGISTICS,1019013283,612.25,
Department of Health,Salisbury NHS Foundation Trust,24-Apr-18,MEDSURGCONS - OTHER,Medicine,NHS LOGISTICS,1019013283,276.83,
Department of Health,Salisbury NHS Foundation Trust,24-Apr-18,MEDSURGCONS - OTHER,Medicine,NHS LOGISTICS,1019013283,47.45,
Department of Health,Salisbury NHS Foundation Trust,24-Apr-18,MEDSURGCONS - OTHER,Medicine,NHS LOGISTICS,1019013283,90.96,
Department of Health,Salisbury NHS Foundation Trust,24-Apr-18,MEDSURGCONS - OTHER,Medicine,NHS LOGISTICS,1019013283,489.8,
Department of Health,Salisbury NHS Foundation Trust,24-Apr-18,MEDSURGCONS - OTHER,Medicine,NHS LOGISTICS,1019013283,408.17,
Department of Health,Salisbury NHS Foundation Trust,24-Apr-18,MEDSURGCONS - OTHER,Medicine,NHS LOGISTICS,1019013283,408.17,
Department of Health,Salisbury NHS Foundation Trust,24-Apr-18,MEDSURGCONS - OTHER,Medicine,NHS LOGISTICS,1019013283,163.27,
Department of Health,Salisbury NHS Foundation Trust,24-Apr-18,MEDSURGCONS - OTHER,Medicine,NHS LOGISTICS,1019013283,168.38,
Department of Health,Salisbury NHS Foundation Trust,24-Apr-18,MEDSURGCONS - OTHER,Medicine,NHS LOGISTICS,1019013283,81.63,
Department of Health,Salisbury NHS Foundation Trust,24-Apr-18,MEDSURGCONS - OTHER,Medicine,NHS LOGISTICS,1019013283,561.25,
Department of Health,Salisbury NHS Foundation Trust,24-Apr-18,MEDSURGCONS - OTHER,Medicine,NHS LOGISTICS,1019013283,56.12,
Department of Health,Salisbury NHS Foundation Trust,24-Apr-18,MEDSURGCONS - OTHER,Medicine,NHS LOGISTICS,1019013283,408.17,
Department of Health,Salisbury NHS Foundation Trust,24-Apr-18,MEDSURGCONS - OTHER,Medicine,NHS LOGISTICS,1019013283,81.63,
Department of Health,Salisbury NHS Foundation Trust,24-Apr-18,MEDSURGCONS - OTHER,Medicine,NHS LOGISTICS,1019013283,122.45,
Department of Health,Salisbury NHS Foundation Trust,24-Apr-18,MEDSURGCONS - OTHER,Medicine,NHS LOGISTICS,1019013283,122.45,
Department of Health,Salisbury NHS Foundation Trust,24-Apr-18,MEDSURGCONS - OTHER,Medicine,NHS LOGISTICS,1019013283,244.9,
Department of Health,Salisbury NHS Foundation Trust,24-Apr-18,MEDSURGCONS - OTHER,Medicine,NHS LOGISTICS,1019013283,112.25,
Department of Health,Salisbury NHS Foundation Trust,24-Apr-18,MEDSURGCONS - OTHER,Medicine,NHS LOGISTICS,1019013283,81.63,
Department of Health,Salisbury NHS Foundation Trust,24-Apr-18,TISSUES HAND TOWELS & TOILET PAPER,Clinical Support and Family Services,NHS LOGISTICS,1019013283,2.48,
Department of Health,Salisbury NHS Foundation Trust,24-Apr-18,OTHER MEDICAL SUPPLIES,Clinical Support and Family Services,NHS LOGISTICS,1019013283,149.93,
Department of Health,Salisbury NHS Foundation Trust,24-Apr-18,ANAESTHETIC EQUIPMENT ACCESSORIES,Critical care,NHS LOGISTICS,1019013283,3.13,
Department of Health,Salisbury NHS Foundation Trust,24-Apr-18,DISPOSABLE THEATRE DRAPES WIPES,Critical care,NHS LOGISTICS,1019013283,15.4,
Department of Health,Salisbury NHS Foundation Trust,24-Apr-18,DISPOSABLE THEATRE DRAPES WIPES,Critical care,NHS LOGISTICS,1019013283,7.1,
Department of Health,Salisbury NHS Foundation Trust,24-Apr-18,DRESSINGS - PRE STERILE,Clinical Support and Family Services,NHS LOGISTICS,1019013283,56.7,
Department of Health,Salisbury NHS Foundation Trust,24-Apr-18,DRESSINGS - PRE STERILE,Clinical Support and Family Services,NHS LOGISTICS,1019013283,51.35,
Department of Health,Salisbury NHS Foundation Trust,24-Apr-18,DRESSINGS - PRE STERILE,Clinical Support and Family Services,NHS LOGISTICS,1019013283,112,
Department of Health,Salisbury NHS Foundation Trust,24-Apr-18,DRESSINGS - PRE STERILE,Clinical Support and Family Services,NHS LOGISTICS,1019013283,113.42,
Department of Health,Salisbury NHS Foundation Trust,24-Apr-18,DRESSINGS - PRE STERILE,Clinical Support and Family Services,NHS LOGISTICS,1019013283,29.33,
Department of Health,Salisbury NHS Foundation Trust,24-Apr-18,DISPOSABLE THEATRE DRAPES WIPES,Clinical Support and Family Services,NHS LOGISTICS,1019013283,3.55,
Department of Health,Salisbury NHS Foundation Trust,24-Apr-18,M & S EQUIPELECTEQUIPINST - OTHER,Clinical Support and Family Services,NHS LOGISTICS,1019013283,76.32,
Department of Health,Salisbury NHS Foundation Trust,24-Apr-18,TISSUES HAND TOWELS & TOILET PAPER,Clinical Support and Family Services,NHS LOGISTICS,1019013283,21.3,
Department of Health,Salisbury NHS Foundation Trust,24-Apr-18,OTHER MEDICAL SUPPLIES,Clinical Support and Family Services,NHS LOGISTICS,1019013283,6.84,
Department of Health,Salisbury NHS Foundation Trust,24-Apr-18,PATIENT APPLIANCES,Medicine,NHS LOGISTICS,1019013283,39.46,
Department of Health,Salisbury NHS Foundation Trust,24-Apr-18,DRESSINGS - PRE STERILE,Medicine,NHS LOGISTICS,1019013283,7.52,
Department of Health,Salisbury NHS Foundation Trust,24-Apr-18,DRESSINGS - PRE STERILE,Medicine,NHS LOGISTICS,1019013283,6,
Department of Health,Salisbury NHS Foundation Trust,24-Apr-18,ANAESTHETIC EQUIPMENT ACCESSORIES,Medicine,NHS LOGISTICS,1019013283,1.73,
Department of Health,Salisbury NHS Foundation Trust,24-Apr-18,PATIENT APPLIANCES,Medicine,NHS LOGISTICS,1019013283,4.03,
Department of Health,Salisbury NHS Foundation Trust,24-Apr-18,ANAESTHETIC EQUIPMENT ACCESSORIES,Medicine,NHS LOGISTICS,1019013283,1.25,
Department of Health,Salisbury NHS Foundation Trust,24-Apr-18,OTHER MEDICAL SUPPLIES,Medicine,NHS LOGISTICS,1019013283,1.88,
Department of Health,Salisbury NHS Foundation Trust,24-Apr-18,DRESSINGS - PRE STERILE,Medicine,NHS LOGISTICS,1019013283,20.68,
Department of Health,Salisbury NHS Foundation Trust,24-Apr-18,DRESSINGS - PRE STERILE,Medicine,NHS LOGISTICS,1019013283,31.03,
Department of Health,Salisbury NHS Foundation Trust,24-Apr-18,DRESSINGS - PRE STERILE,Medicine,NHS LOGISTICS,1019013283,10.34,
Department of Health,Salisbury NHS Foundation Trust,24-Apr-18,DISPOSABLE THEATRE DRAPES WIPES,Medicine,NHS LOGISTICS,1019013283,10.65,
Department of Health,Salisbury NHS Foundation Trust,24-Apr-18,BAGS SACKS - OTHER,Facilities Directorate,NHS LOGISTICS,1019013283,7.21,
Department of Health,Salisbury NHS Foundation Trust,24-Apr-18,BEVERAGES & AMBIENT FOOD,Facilities Directorate,NHS LOGISTICS,1019013283,23.72,
Department of Health,Salisbury NHS Foundation Trust,24-Apr-18,BEVERAGES & AMBIENT FOOD,Facilities Directorate,NHS LOGISTICS,1019013283,94.4,
Department of Health,Salisbury NHS Foundation Trust,24-Apr-18,FRUIT & VEGETABLES,Facilities Directorate,NHS LOGISTICS,1019013283,68.76,
Department of Health,Salisbury NHS Foundation Trust,24-Apr-18,FRUIT & VEGETABLES,Facilities Directorate,NHS LOGISTICS,1019013283,123.48,
Department of Health,Salisbury NHS Foundation Trust,24-Apr-18,FRUIT & VEGETABLES,Facilities Directorate,NHS LOGISTICS,1019013283,52.38,
Department of Health,Salisbury NHS Foundation Trust,24-Apr-18,FRUIT & VEGETABLES,Facilities Directorate,NHS LOGISTICS,1019013283,52.56,
Department of Health,Salisbury NHS Foundation Trust,24-Apr-18,FRUIT & VEGETABLES,Facilities Directorate,NHS LOGISTICS,1019013283,44.16,
Department of Health,Salisbury NHS Foundation Trust,24-Apr-18,BEVERAGES & AMBIENT FOOD,Facilities Directorate,NHS LOGISTICS,1019013283,0.84,
Department of Health,Salisbury NHS Foundation Trust,24-Apr-18,FRUIT & VEGETABLES,Facilities Directorate,NHS LOGISTICS,1019013283,106.92,
Department of Health,Salisbury NHS Foundation Trust,24-Apr-18,FRUIT & VEGETABLES,Facilities Directorate,NHS LOGISTICS,1019013283,4.8,
Department of Health,Salisbury NHS Foundation Trust,24-Apr-18,FRUIT & VEGETABLES,Facilities Directorate,NHS LOGISTICS,1019013283,2.12,
Department of Health,Salisbury NHS Foundation Trust,24-Apr-18,FRUIT & VEGETABLES,Facilities Directorate,NHS LOGISTICS,1019013283,40.56,
Department of Health,Salisbury NHS Foundation Trust,24-Apr-18,FRUIT & VEGETABLES,Facilities Directorate,NHS LOGISTICS,1019013283,42.48,
Department of Health,Salisbury NHS Foundation Trust,24-Apr-18,BEVERAGES & AMBIENT FOOD,Facilities Directorate,NHS LOGISTICS,1019013283,4.64,
Department of Health,Salisbury NHS Foundation Trust,24-Apr-18,BEVERAGES & AMBIENT FOOD,Facilities Directorate,NHS LOGISTICS,1019013283,47.44,
Department of Health,Salisbury NHS Foundation Trust,24-Apr-18,BEVERAGES & AMBIENT FOOD,Facilities Directorate,NHS LOGISTICS,1019013283,53.64,
Department of Health,Salisbury NHS Foundation Trust,24-Apr-18,BEVERAGES & AMBIENT FOOD,Facilities Directorate,NHS LOGISTICS,1019013283,8.66,
Department of Health,Salisbury NHS Foundation Trust,24-Apr-18,BEVERAGES & AMBIENT FOOD,Facilities Directorate,NHS LOGISTICS,1019013283,152.36,
Department of Health,Salisbury NHS Foundation Trust,24-Apr-18,LIQUID REFRESHMENTS,Facilities Directorate,NHS LOGISTICS,1019013283,8.73,
Department of Health,Salisbury NHS Foundation Trust,24-Apr-18,LIQUID REFRESHMENTS,Facilities Directorate,NHS LOGISTICS,1019013283,19.75,
Department of Health,Salisbury NHS Foundation Trust,24-Apr-18,LIQUID REFRESHMENTS,Facilities Directorate,NHS LOGISTICS,1019013283,5.07,
Department of Health,Salisbury NHS Foundation Trust,24-Apr-18,LIQUID REFRESHMENTS,Facilities Directorate,NHS LOGISTICS,1019013283,18.6,
Department of Health,Salisbury NHS Foundation Trust,24-Apr-18,LIQUID REFRESHMENTS,Facilities Directorate,NHS LOGISTICS,1019013283,5.07,
Department of Health,Salisbury NHS Foundation Trust,24-Apr-18,LIQUID REFRESHMENTS,Facilities Directorate,NHS LOGISTICS,1019013283,81.6,
Department of Health,Salisbury NHS Foundation Trust,24-Apr-18,BEVERAGES & AMBIENT FOOD,Facilities Directorate,NHS LOGISTICS,1019013283,7.56,
Department of Health,Salisbury NHS Foundation Trust,24-Apr-18,TISSUES HAND TOWELS & TOILET PAPER,Facilities Directorate,NHS LOGISTICS,1019013283,4.97,
Department of Health,Salisbury NHS Foundation Trust,24-Apr-18,BEVERAGES & AMBIENT FOOD,Facilities Directorate,NHS LOGISTICS,1019013283,9.52,
Department of Health,Salisbury NHS Foundation Trust,24-Apr-18,BEVERAGES & AMBIENT FOOD,Facilities Directorate,NHS LOGISTICS,1019013283,3.28,
Department of Health,Salisbury NHS Foundation Trust,24-Apr-18,BEVERAGES & AMBIENT FOOD,Facilities Directorate,NHS LOGISTICS,1019013283,2.91,
Department of Health,Salisbury NHS Foundation Trust,24-Apr-18,BEVERAGES & AMBIENT FOOD,Facilities Directorate,NHS LOGISTICS,1019013283,32.22,
Department of Health,Salisbury NHS Foundation Trust,24-Apr-18,BEVERAGES & AMBIENT FOOD,Facilities Directorate,NHS LOGISTICS,1019013283,19.16,
Department of Health,Salisbury NHS Foundation Trust,24-Apr-18,BEVERAGES & AMBIENT FOOD,Facilities Directorate,NHS LOGISTICS,1019013283,8.9,
Department of Health,Salisbury NHS Foundation Trust,24-Apr-18,FLAVOURINGS HERBS SPICES,Facilities Directorate,NHS LOGISTICS,1019013283,5.14,
Department of Health,Salisbury NHS Foundation Trust,24-Apr-18,FLAVOURINGS HERBS SPICES,Facilities Directorate,NHS LOGISTICS,1019013283,2.83,
Department of Health,Salisbury NHS Foundation Trust,24-Apr-18,FLAVOURINGS HERBS SPICES,Facilities Directorate,NHS LOGISTICS,1019013283,3.64,
Department of Health,Salisbury NHS Foundation Trust,24-Apr-18,FLAVOURINGS HERBS SPICES,Facilities Directorate,NHS LOGISTICS,1019013283,1.42,
Department of Health,Salisbury NHS Foundation Trust,24-Apr-18,FLAVOURINGS HERBS SPICES,Facilities Directorate,NHS LOGISTICS,1019013283,2.3,
Department of Health,Salisbury NHS Foundation Trust,24-Apr-18,BEVERAGES & AMBIENT FOOD,Facilities Directorate,NHS LOGISTICS,1019013283,12.24,
Department of Health,Salisbury NHS Foundation Trust,24-Apr-18,BEVERAGES & AMBIENT FOOD,Facilities Directorate,NHS LOGISTICS,1019013283,13.72,
Department of Health,Salisbury NHS Foundation Trust,24-Apr-18,BEVERAGES & AMBIENT FOOD,Facilities Directorate,NHS LOGISTICS,1019013283,9.84,
Department of Health,Salisbury NHS Foundation Trust,24-Apr-18,BEVERAGES & AMBIENT FOOD,Facilities Directorate,NHS LOGISTICS,1019013283,17,
Department of Health,Salisbury NHS Foundation Trust,24-Apr-18,BEVERAGES & AMBIENT FOOD,Facilities Directorate,NHS LOGISTICS,1019013283,12.42,
Department of Health,Salisbury NHS Foundation Trust,24-Apr-18,BEVERAGES & AMBIENT FOOD,Facilities Directorate,NHS LOGISTICS,1019013283,47.68,
Department of Health,Salisbury NHS Foundation Trust,24-Apr-18,BEVERAGES & AMBIENT FOOD,Facilities Directorate,NHS LOGISTICS,1019013283,15.08,
Department of Health,Salisbury NHS Foundation Trust,24-Apr-18,BEVERAGES & AMBIENT FOOD,Facilities Directorate,NHS LOGISTICS,1019013283,17.36,
Department of Health,Salisbury NHS Foundation Trust,24-Apr-18,BEVERAGES & AMBIENT FOOD,Facilities Directorate,NHS LOGISTICS,1019013283,12.52,
Department of Health,Salisbury NHS Foundation Trust,24-Apr-18,BEVERAGES & AMBIENT FOOD,Facilities Directorate,NHS LOGISTICS,1019013283,8.9,
Department of Health,Salisbury NHS Foundation Trust,24-Apr-18,EGGS MILK OTHER DAIRY PRODUCTS,Facilities Directorate,NHS LOGISTICS,1019013283,64.58,
Department of Health,Salisbury NHS Foundation Trust,24-Apr-18,FLAVOURINGS HERBS SPICES,Facilities Directorate,NHS LOGISTICS,1019013283,25.06,
Department of Health,Salisbury NHS Foundation Trust,24-Apr-18,FLAVOURINGS HERBS SPICES,Facilities Directorate,NHS LOGISTICS,1019013283,10.07,
Department of Health,Salisbury NHS Foundation Trust,24-Apr-18,BABY TEXTURE MODIFIED FOODS,Facilities Directorate,NHS LOGISTICS,1019013283,32.04,
Department of Health,Salisbury NHS Foundation Trust,24-Apr-18,FLAVOURINGS HERBS SPICES,Facilities Directorate,NHS LOGISTICS,1019013283,3.42,
Department of Health,Salisbury NHS Foundation Trust,24-Apr-18,CLEANING MATERIALS PRODUCTS SUNDRIES,Facilities Directorate,NHS LOGISTICS,1019013283,3.5,
Department of Health,Salisbury NHS Foundation Trust,24-Apr-18,BEVERAGES & AMBIENT FOOD,Facilities Directorate,NHS LOGISTICS,1019013283,5.6,
Department of Health,Salisbury NHS Foundation Trust,24-Apr-18,BEVERAGES & AMBIENT FOOD,Facilities Directorate,NHS LOGISTICS,1019013283,31.56,
Department of Health,Salisbury NHS Foundation Trust,24-Apr-18,BEVERAGES & AMBIENT FOOD,Facilities Directorate,NHS LOGISTICS,1019013283,14.08,
Department of Health,Salisbury NHS Foundation Trust,24-Apr-18,BEVERAGES & AMBIENT FOOD,Facilities Directorate,NHS LOGISTICS,1019013283,62.1,
Department of Health,Salisbury NHS Foundation Trust,24-Apr-18,BEVERAGES & AMBIENT FOOD,Facilities Directorate,NHS LOGISTICS,1019013283,18.3,
Department of Health,Salisbury NHS Foundation Trust,24-Apr-18,BEVERAGES & AMBIENT FOOD,Facilities Directorate,NHS LOGISTICS,1019013283,16.17,
Department of Health,Salisbury NHS Foundation Trust,24-Apr-18,BEVERAGES & AMBIENT FOOD,Facilities Directorate,NHS LOGISTICS,1019013283,9.18,
Department of Health,Salisbury NHS Foundation Trust,24-Apr-18,BEVERAGES & AMBIENT FOOD,Facilities Directorate,NHS LOGISTICS,1019013283,13.74,
Department of Health,Salisbury NHS Foundation Trust,24-Apr-18,BEVERAGES & AMBIENT FOOD,Facilities Directorate,NHS LOGISTICS,1019013283,52.8,
Department of Health,Salisbury NHS Foundation Trust,24-Apr-18,MEDSURGCONS - OTHER,Surgery,NHS LOGISTICS,1019013283,20.48,
Department of Health,Salisbury NHS Foundation Trust,24-Apr-18,MEDSURGCONS - OTHER,Surgery,NHS LOGISTICS,1019013283,20.48,
Department of Health,Salisbury NHS Foundation Trust,24-Apr-18,MEDSURGCONS - OTHER,Surgery,NHS LOGISTICS,1019013283,20.48,
Department of Health,Salisbury NHS Foundation Trust,24-Apr-18,MEDSURGCONS - OTHER,Surgery,NHS LOGISTICS,1019013283,20.48,
Department of Health,Salisbury NHS Foundation Trust,24-Apr-18,CLEANING MATERIALS PRODUCTS SUNDRIES,Surgery,NHS LOGISTICS,1019013283,4.8,
Department of Health,Salisbury NHS Foundation Trust,24-Apr-18,CLEANING MATERIALS PRODUCTS SUNDRIES,Surgery,NHS LOGISTICS,1019013283,6.75,
Department of Health,Salisbury NHS Foundation Trust,24-Apr-18,ADULTS HEARING AIDS,Surgery,NHS LOGISTICS,1019013283,2412.92,
Department of Health,Salisbury NHS Foundation Trust,24-Apr-18,DRESSINGS - PRE STERILE,Medicine,NHS LOGISTICS,1019013283,7.52,
Department of Health,Salisbury NHS Foundation Trust,24-Apr-18,DRESSINGS - PRE STERILE,Medicine,NHS LOGISTICS,1019013283,4.98,
Department of Health,Salisbury NHS Foundation Trust,24-Apr-18,OTHER MEDICAL SUPPLIES,Medicine,NHS LOGISTICS,1019013283,5.65,
Department of Health,Salisbury NHS Foundation Trust,24-Apr-18,MEDSURGCONS - OTHER,Medicine,NHS LOGISTICS,1019013283,59.78,
Department of Health,Salisbury NHS Foundation Trust,24-Apr-18,MEDSURGCONS - OTHER,Medicine,NHS LOGISTICS,1019013283,5.89,
Department of Health,Salisbury NHS Foundation Trust,24-Apr-18,MEDSURGCONS - OTHER,Medicine,NHS LOGISTICS,1019013283,3.91,
Department of Health,Salisbury NHS Foundation Trust,24-Apr-18,MEDSURGCONS - OTHER,Medicine,NHS LOGISTICS,1019013283,6.82,
Department of Health,Salisbury NHS Foundation Trust,24-Apr-18,TISSUES HAND TOWELS & TOILET PAPER,Medicine,NHS LOGISTICS,1019013283,0.68,
Department of Health,Salisbury NHS Foundation Trust,24-Apr-18,TISSUES HAND TOWELS & TOILET PAPER,Medicine,NHS LOGISTICS,1019013283,31,
Department of Health,Salisbury NHS Foundation Trust,24-Apr-18,M & S EQUIPELECTEQUIPINST - OTHER,Clinical Support and Family Services,NHS LOGISTICS,1019013283,350.5,
Department of Health,Salisbury NHS Foundation Trust,24-Apr-18,OTHER MEDICAL SUPPLIES,Surgery,NHS LOGISTICS,1019013283,35.44,
Department of Health,Salisbury NHS Foundation Trust,24-Apr-18,ELECTRICAL EQUIPMENT x,Surgery,NHS LOGISTICS,1019013283,1.93,
Department of Health,Salisbury NHS Foundation Trust,24-Apr-18,OTHER MEDICAL SUPPLIES,Surgery,NHS LOGISTICS,1019013283,70,
Department of Health,Salisbury NHS Foundation Trust,24-Apr-18,OTHER MEDICAL SUPPLIES,Surgery,NHS LOGISTICS,1019013283,3.77,
Department of Health,Salisbury NHS Foundation Trust,24-Apr-18,OTHER MEDICAL SUPPLIES,Surgery,NHS LOGISTICS,1019013283,16.07,
Department of Health,Salisbury NHS Foundation Trust,24-Apr-18,M & S EQUIPELECTEQUIPINST - OTHER,Surgery,NHS LOGISTICS,1019013283,1.6,
Department of Health,Salisbury NHS Foundation Trust,24-Apr-18,OTHER MEDICAL SUPPLIES,Surgery,NHS LOGISTICS,1019013283,47.23,
Department of Health,Salisbury NHS Foundation Trust,24-Apr-18,ELECTRICAL EQUIPMENT x,Surgery,NHS LOGISTICS,1019013283,38.67,
Department of Health,Salisbury NHS Foundation Trust,24-Apr-18,MEDSURGCONS - OTHER,Surgery,NHS LOGISTICS,1019013283,6.82,
Department of Health,Salisbury NHS Foundation Trust,24-Apr-18,OTHER MEDICAL SUPPLIES,Surgery,NHS LOGISTICS,1019013283,18.83,
Department of Health,Salisbury NHS Foundation Trust,24-Apr-18,OTHER MEDICAL SUPPLIES,Medicine,NHS LOGISTICS,1019013283,1.88,
Department of Health,Salisbury NHS Foundation Trust,24-Apr-18,OTHER MEDICAL SUPPLIES,Medicine,NHS LOGISTICS,1019013283,2.9,
Department of Health,Salisbury NHS Foundation Trust,24-Apr-18,TISSUES HAND TOWELS & TOILET PAPER,Medicine,NHS LOGISTICS,1019013283,0.68,
Department of Health,Salisbury NHS Foundation Trust,24-Apr-18,OTHER MEDICAL SUPPLIES,Medicine,NHS LOGISTICS,1019013283,40.13,
Department of Health,Salisbury NHS Foundation Trust,24-Apr-18,MEDSURGCONS - OTHER,Surgery,NHS LOGISTICS,1019013283,4.85,
Department of Health,Salisbury NHS Foundation Trust,24-Apr-18,LAB EQUIP-ANALYSERS,Clinical Support and Family Services,NHS LOGISTICS,1019013283,61.5,
Department of Health,Salisbury NHS Foundation Trust,24-Apr-18,DRESSINGS  -  PROCEDURE PACKS,Clinical Support and Family Services,NHS LOGISTICS,1019013283,85.12,
Department of Health,Salisbury NHS Foundation Trust,24-Apr-18,M & S EQUIPELECTEQUIPINST - OTHER,Medicine,NHS LOGISTICS,1019013283,8.4,
Department of Health,Salisbury NHS Foundation Trust,24-Apr-18,ANAESTHETIC EQUIPMENT ACCESSORIES,Medicine,NHS LOGISTICS,1019013283,1.25,
Department of Health,Salisbury NHS Foundation Trust,24-Apr-18,DRESSINGS - PRE STERILE,Medicine,NHS LOGISTICS,1019013283,150,
Department of Health,Salisbury NHS Foundation Trust,24-Apr-18,DRESSINGS - PRE STERILE,Medicine,NHS LOGISTICS,1019013283,14,
Department of Health,Salisbury NHS Foundation Trust,24-Apr-18,LAB EQUIP-LABORATORY APPARATUS,Clinical Support and Family Services,NHS LOGISTICS,1019013283,81.92,
Department of Health,Salisbury NHS Foundation Trust,24-Apr-18,LAB EQUIP-LABORATORY APPARATUS,Clinical Support and Family Services,NHS LOGISTICS,1019013283,198.4,
Department of Health,Salisbury NHS Foundation Trust,24-Apr-18,LAB EQUIP-LABORATORY APPARATUS,Clinical Support and Family Services,NHS LOGISTICS,1019013283,256,
Department of Health,Salisbury NHS Foundation Trust,24-Apr-18,DRESSINGS - PRE STERILE,Corporate Directorate,NHS LOGISTICS,1019013283,8.27,
Department of Health,Salisbury NHS Foundation Trust,24-Apr-18,DRESSINGS  -  PROCEDURE PACKS,Clinical Support and Family Services,NHS LOGISTICS,1019013283,8.15,
Department of Health,Salisbury NHS Foundation Trust,24-Apr-18,DRESSINGS - PRE STERILE,Clinical Support and Family Services,NHS LOGISTICS,1019013283,5.54,
Department of Health,Salisbury NHS Foundation Trust,24-Apr-18,PATIENT APPLIANCES,Surgery,NHS LOGISTICS,1019013283,15.6,
Department of Health,Salisbury NHS Foundation Trust,24-Apr-18,M & S EQUIPELECTEQUIPINST - OTHER,Clinical Support and Family Services,NHS LOGISTICS,1019013283,35,
Department of Health,Salisbury NHS Foundation Trust,24-Apr-18,TOILETRIES PERSONAL HYGIENE PRODUCTS,Critical care,NHS LOGISTICS,1019013283,6.17,
Department of Health,Salisbury NHS Foundation Trust,24-Apr-18,TOILETRIES PERSONAL HYGIENE PRODUCTS,Critical care,NHS LOGISTICS,1019013283,8.25,
Department of Health,Salisbury NHS Foundation Trust,24-Apr-18,OTHER MEDICAL SUPPLIES,Critical care,NHS LOGISTICS,1019013283,3.77,
Department of Health,Salisbury NHS Foundation Trust,24-Apr-18,BEVERAGES & AMBIENT FOOD,Surgery,NHS LOGISTICS,1019013283,1.86,
Department of Health,Salisbury NHS Foundation Trust,24-Apr-18,DISPOSABLE THEATRE DRAPES WIPES,Medicine,NHS LOGISTICS,1019013283,3.55,
Department of Health,Salisbury NHS Foundation Trust,24-Apr-18,DISPOSABLE THEATRE DRAPES WIPES,Surgery,NHS LOGISTICS,1019013283,3.29,
Department of Health,Salisbury NHS Foundation Trust,24-Apr-18,DISPOSABLE THEATRE DRAPES WIPES,Surgery,NHS LOGISTICS,1019013283,2.24,
Department of Health,Salisbury NHS Foundation Trust,24-Apr-18,DISPOSABLE THEATRE DRAPES WIPES,Surgery,NHS LOGISTICS,1019013283,3.55,
Department of Health,Salisbury NHS Foundation Trust,24-Apr-18,DIETETIC FOOD,Facilities Directorate,NHS LOGISTICS,1019013283,11.7,
Department of Health,Salisbury NHS Foundation Trust,24-Apr-18,DIETETIC FOOD,Facilities Directorate,NHS LOGISTICS,1019013283,11.7,
Department of Health,Salisbury NHS Foundation Trust,24-Apr-18,DRESSINGS - PRE STERILE,Surgery,NHS LOGISTICS,1019013283,29.94,
Department of Health,Salisbury NHS Foundation Trust,24-Apr-18,TOILETRIES PERSONAL HYGIENE PRODUCTS,Medicine,NHS LOGISTICS,1019013283,6.17,
Department of Health,Salisbury NHS Foundation Trust,24-Apr-18,ANAESTHETIC EQUIPMENT ACCESSORIES,Medicine,NHS LOGISTICS,1019013283,1.88,
Department of Health,Salisbury NHS Foundation Trust,24-Apr-18,MEDSURGCONS - OTHER,Surgery,NHS LOGISTICS,1019013283,87.1,
Department of Health,Salisbury NHS Foundation Trust,24-Apr-18,MEDSURGCONS - OTHER,Surgery,NHS LOGISTICS,1019013283,21.42,
Department of Health,Salisbury NHS Foundation Trust,24-Apr-18,MEDSURGCONS - OTHER,Surgery,NHS LOGISTICS,1019013283,13.57,
Department of Health,Salisbury NHS Foundation Trust,24-Apr-18,MEDSURGCONS - OTHER,Surgery,NHS LOGISTICS,1019013283,47.83,
Department of Health,Salisbury NHS Foundation Trust,24-Apr-18,MEDSURGCONS - OTHER,Surgery,NHS LOGISTICS,1019013283,6.82,
Department of Health,Salisbury NHS Foundation Trust,24-Apr-18,MEDSURGCONS - OTHER,Surgery,NHS LOGISTICS,1019013283,16.02,
Department of Health,Salisbury NHS Foundation Trust,24-Apr-18,DRESSINGS - PRE STERILE,Surgery,NHS LOGISTICS,1019013283,2.49,
Department of Health,Salisbury NHS Foundation Trust,24-Apr-18,DRESSINGS - PRE STERILE,Surgery,NHS LOGISTICS,1019013283,5.45,
Department of Health,Salisbury NHS Foundation Trust,24-Apr-18,DRESSINGS - PRE STERILE,Surgery,NHS LOGISTICS,1019013283,2.73,
Department of Health,Salisbury NHS Foundation Trust,24-Apr-18,MEDSURGCONS-SUTURES,Clinical Support and Family Services,NHS LOGISTICS,1019013283,60.58,
Department of Health,Salisbury NHS Foundation Trust,24-Apr-18,DRESSINGS - PRE STERILE,Medicine,NHS LOGISTICS,1019013283,14,
Department of Health,Salisbury NHS Foundation Trust,24-Apr-18,DRESSINGS - PRE STERILE,Medicine,NHS LOGISTICS,1019013283,2.49,
Department of Health,Salisbury NHS Foundation Trust,24-Apr-18,OTHER MEDICAL SUPPLIES,Medicine,NHS LOGISTICS,1019013283,1.88,
Department of Health,Salisbury NHS Foundation Trust,24-Apr-18,CLEANING MATERIALS PRODUCTS SUNDRIES,Medicine,NHS LOGISTICS,1019013283,8.8,
Department of Health,Salisbury NHS Foundation Trust,24-Apr-18,OTHER MEDICAL SUPPLIES,Medicine,NHS LOGISTICS,1019013283,4.69,
Department of Health,Salisbury NHS Foundation Trust,24-Apr-18,OTHER MEDICAL SUPPLIES,Medicine,NHS LOGISTICS,1019013283,6.84,
Department of Health,Salisbury NHS Foundation Trust,24-Apr-18,OTHER MEDICAL SUPPLIES,Medicine,NHS LOGISTICS,1019013283,3.77,
Department of Health,Salisbury NHS Foundation Trust,24-Apr-18,MEDSURGCONS-LAPAROSCOPIC EQUIPMENT,Surgery,NHS LOGISTICS,1019013283,185.57,
Department of Health,Salisbury NHS Foundation Trust,24-Apr-18,MEDSURGCONS-LAPAROSCOPIC EQUIPMENT,Surgery,NHS LOGISTICS,1019013283,185.57,
Department of Health,Salisbury NHS Foundation Trust,24-Apr-18,TOILETRIES PERSONAL HYGIENE PRODUCTS,Surgery,NHS LOGISTICS,1019013283,2.67,
Department of Health,Salisbury NHS Foundation Trust,24-Apr-18,TOILETRIES PERSONAL HYGIENE PRODUCTS,Surgery,NHS LOGISTICS,1019013283,0.93,
Department of Health,Salisbury NHS Foundation Trust,24-Apr-18,TOILETRIES PERSONAL HYGIENE PRODUCTS,Surgery,NHS LOGISTICS,1019013283,4.13,
Department of Health,Salisbury NHS Foundation Trust,24-Apr-18,MED SURG EQUIP REP MAINT CLEANING,Clinical Support and Family Services,NHS LOGISTICS,1019013283,109.28,
Department of Health,Salisbury NHS Foundation Trust,24-Apr-18,DRESSINGS - PRE STERILE,Medicine,NHS LOGISTICS,1019013283,9.18,
Department of Health,Salisbury NHS Foundation Trust,24-Apr-18,DRESSINGS - PRE STERILE,Critical care,NHS LOGISTICS,1019013283,15.03,
Department of Health,Salisbury NHS Foundation Trust,24-Apr-18,DRESSINGS - PRE STERILE,Critical care,NHS LOGISTICS,1019013283,7.49,
Department of Health,Salisbury NHS Foundation Trust,24-Apr-18,DRESSINGS - PRE STERILE,Critical care,NHS LOGISTICS,1019013283,8.71,
Department of Health,Salisbury NHS Foundation Trust,24-Apr-18,DRESSINGS - PRE STERILE,Critical care,NHS LOGISTICS,1019013283,161.45,
Department of Health,Salisbury NHS Foundation Trust,24-Apr-18,DENTAL SURGERY SUNDRIES,Surgery,NHS LOGISTICS,1019013283,33.3,
Department of Health,Salisbury NHS Foundation Trust,24-Apr-18,TOILETRIES PERSONAL HYGIENE PRODUCTS,Surgery,NHS LOGISTICS,1019013283,16.91,
Department of Health,Salisbury NHS Foundation Trust,24-Apr-18,TOILETRIES PERSONAL HYGIENE PRODUCTS,Surgery,NHS LOGISTICS,1019013283,6.17,
Department of Health,Salisbury NHS Foundation Trust,24-Apr-18,TOILETRIES PERSONAL HYGIENE PRODUCTS,Surgery,NHS LOGISTICS,1019013283,18,
Department of Health,Salisbury NHS Foundation Trust,24-Apr-18,DRESSINGS - PRE STERILE,Surgery,NHS LOGISTICS,1019013283,14,
Department of Health,Salisbury NHS Foundation Trust,24-Apr-18,M & S EQUIPELECTEQUIPINST - OTHER,Surgery,NHS LOGISTICS,1019013283,13.5,
Department of Health,Salisbury NHS Foundation Trust,24-Apr-18,ANAESTHETIC EQUIPMENT ACCESSORIES,Surgery,NHS LOGISTICS,1019013283,1.25,
Department of Health,Salisbury NHS Foundation Trust,24-Apr-18,M & S EQUIPELECTEQUIPINST - OTHER,Critical care,NHS LOGISTICS,1019013283,1.6,
Department of Health,Salisbury NHS Foundation Trust,24-Apr-18,MED SURG EQUIP REP MAINT CLEANING,Clinical Support and Family Services,NHS LOGISTICS,1019013283,262,
Department of Health,Salisbury NHS Foundation Trust,24-Apr-18,MEDSURGCONS - OTHER,Clinical Support and Family Services,NHS LOGISTICS,1019013283,209.85,
Department of Health,Salisbury NHS Foundation Trust,24-Apr-18,DRUGS,Surgery,NHS LOGISTICS,1019013283,6.48,
Department of Health,Salisbury NHS Foundation Trust,24-Apr-18,NON DISPOSABLE BED LINEN,Medicine,NHS LOGISTICS,1019013283,15,
Department of Health,Salisbury NHS Foundation Trust,24-Apr-18,DENTAL SURGERY SUNDRIES,Medicine,NHS LOGISTICS,1019013283,7.4,
Department of Health,Salisbury NHS Foundation Trust,24-Apr-18,M & S EQUIPELECTEQUIPINST - OTHER,Medicine,NHS LOGISTICS,1019013283,8.4,
Department of Health,Salisbury NHS Foundation Trust,24-Apr-18,PATIENT APPLIANCES,Medicine,NHS LOGISTICS,1019013283,3.35,
Department of Health,Salisbury NHS Foundation Trust,24-Apr-18,MEDSURGCONS - OTHER,Medicine,NHS LOGISTICS,1019013283,6.82,
Department of Health,Salisbury NHS Foundation Trust,24-Apr-18,DISPOSABLE THEATRE DRAPES WIPES,Medicine,NHS LOGISTICS,1019013283,3.55,
Department of Health,Salisbury NHS Foundation Trust,24-Apr-18,DISPOSABLE THEATRE DRAPES WIPES,Surgery,NHS LOGISTICS,1019013283,3.55,
Department of Health,Salisbury NHS Foundation Trust,24-Apr-18,DRESSINGS - PRE STERILE,Surgery,NHS LOGISTICS,1019013283,9.39,
Department of Health,Salisbury NHS Foundation Trust,24-Apr-18,M & S EQUIPELECTEQUIPINST - OTHER,Surgery,NHS LOGISTICS,1019013283,13.5,
Department of Health,Salisbury NHS Foundation Trust,24-Apr-18,ANAESTHETIC EQUIPMENT ACCESSORIES,Surgery,NHS LOGISTICS,1019013283,1.25,
Department of Health,Salisbury NHS Foundation Trust,24-Apr-18,PATIENT APPLIANCES,Surgery,NHS LOGISTICS,1019013283,3.35,
Department of Health,Salisbury NHS Foundation Trust,24-Apr-18,PATIENT APPLIANCES,Surgery,NHS LOGISTICS,1019013283,3.35,
Department of Health,Salisbury NHS Foundation Trust,24-Apr-18,TOILETRIES PERSONAL HYGIENE PRODUCTS,Surgery,NHS LOGISTICS,1019013283,2.67,
Department of Health,Salisbury NHS Foundation Trust,24-Apr-18,CLEANING MATERIALS PRODUCTS SUNDRIES,Medicine,NHS LOGISTICS,1019013283,8.8,
Department of Health,Salisbury NHS Foundation Trust,24-Apr-18,DRESSINGS - PRE STERILE,Medicine,NHS LOGISTICS,1019013283,5.73,
Department of Health,Salisbury NHS Foundation Trust,24-Apr-18,OTHER MEDICAL SUPPLIES,Medicine,NHS LOGISTICS,1019013283,3.77,
Department of Health,Salisbury NHS Foundation Trust,24-Apr-18,PATIENT APPLIANCES,Medicine,NHS LOGISTICS,1019013283,6.7,
Department of Health,Salisbury NHS Foundation Trust,24-Apr-18,TISSUES HAND TOWELS & TOILET PAPER,Medicine,NHS LOGISTICS,1019013283,1.37,
Department of Health,Salisbury NHS Foundation Trust,24-Apr-18,TISSUES HAND TOWELS & TOILET PAPER,Medicine,NHS LOGISTICS,1019013283,4.7,
Department of Health,Salisbury NHS Foundation Trust,24-Apr-18,DISPOSABLE THEATRE DRAPES WIPES,Medicine,NHS LOGISTICS,1019013283,3.55,
Department of Health,Salisbury NHS Foundation Trust,24-Apr-18,TISSUES HAND TOWELS & TOILET PAPER,Medicine,NHS LOGISTICS,1019013283,1.24,
Department of Health,Salisbury NHS Foundation Trust,24-Apr-18,CLEANING MATERIALS PRODUCTS SUNDRIES,Medicine,NHS LOGISTICS,1019013283,8.8,
Department of Health,Salisbury NHS Foundation Trust,24-Apr-18,DRESSINGS - PRE STERILE,Medicine,NHS LOGISTICS,1019013283,14,
Department of Health,Salisbury NHS Foundation Trust,24-Apr-18,M & S EQUIPELECTEQUIPINST - OTHER,Medicine,NHS LOGISTICS,1019013283,6.75,
Department of Health,Salisbury NHS Foundation Trust,24-Apr-18,OTHER MEDICAL SUPPLIES,Medicine,NHS LOGISTICS,1019013283,11.15,
Department of Health,Salisbury NHS Foundation Trust,24-Apr-18,OTHER MEDICAL SUPPLIES,Medicine,NHS LOGISTICS,1019013283,6.84,
Department of Health,Salisbury NHS Foundation Trust,24-Apr-18,OTHER MEDICAL SUPPLIES,Medicine,NHS LOGISTICS,1019013283,5.65,
Department of Health,Salisbury NHS Foundation Trust,24-Apr-18,PATIENT APPLIANCES,Medicine,NHS LOGISTICS,1019013283,3.35,
Department of Health,Salisbury NHS Foundation Trust,24-Apr-18,PATIENT APPLIANCES,Medicine,NHS LOGISTICS,1019013283,4.39,
Department of Health,Salisbury NHS Foundation Trust,24-Apr-18,TISSUES HAND TOWELS & TOILET PAPER,Medicine,NHS LOGISTICS,1019013283,1.37,
Department of Health,Salisbury NHS Foundation Trust,24-Apr-18,DISPOSABLE THEATRE DRAPES WIPES,Medicine,NHS LOGISTICS,1019013283,7.1,
Department of Health,Salisbury NHS Foundation Trust,24-Apr-18,DRESSINGS - PRE STERILE,Critical care,NHS LOGISTICS,1019013283,15.03,
Department of Health,Salisbury NHS Foundation Trust,24-Apr-18,M & S EQUIPELECTEQUIPINST - OTHER,Critical care,NHS LOGISTICS,1019013283,8.4,
Department of Health,Salisbury NHS Foundation Trust,24-Apr-18,DRUGS,Critical care,NHS LOGISTICS,1019013283,6.48,
Department of Health,Salisbury NHS Foundation Trust,24-Apr-18,DRESSINGS - PRE STERILE,Critical care,NHS LOGISTICS,1019013283,2.49,
Department of Health,Salisbury NHS Foundation Trust,24-Apr-18,DRESSINGS - PRE STERILE,Critical care,NHS LOGISTICS,1019013283,5.73,
Department of Health,Salisbury NHS Foundation Trust,24-Apr-18,DRESSINGS - PRE STERILE,Critical care,NHS LOGISTICS,1019013283,3.93,
Department of Health,Salisbury NHS Foundation Trust,24-Apr-18,DRESSINGS - PRE STERILE,Critical care,NHS LOGISTICS,1019013283,24.81,
Department of Health,Salisbury NHS Foundation Trust,24-Apr-18,OTHER MEDICAL SUPPLIES,Critical care,NHS LOGISTICS,1019013283,1.88,
Department of Health,Salisbury NHS Foundation Trust,24-Apr-18,DRESSINGS - PRE STERILE,Critical care,NHS LOGISTICS,1019013283,59.89,
Department of Health,Salisbury NHS Foundation Trust,24-Apr-18,MEDSURGCONS - OTHER,Critical care,NHS LOGISTICS,1019013283,4.85,
Department of Health,Salisbury NHS Foundation Trust,24-Apr-18,OTHER MEDICAL SUPPLIES,Surgery,NHS LOGISTICS,1019013283,5.65,
Department of Health,Salisbury NHS Foundation Trust,24-Apr-18,OTHER MEDICAL SUPPLIES,Surgery,NHS LOGISTICS,1019013283,3.77,
Department of Health,Salisbury NHS Foundation Trust,24-Apr-18,ANAESTHETIC EQUIPMENT ACCESSORIES,Surgery,NHS LOGISTICS,1019013283,34.09,
Department of Health,Salisbury NHS Foundation Trust,24-Apr-18,MEDSURGCONS - OTHER,Surgery,NHS LOGISTICS,1019013283,101.8,
Department of Health,Salisbury NHS Foundation Trust,24-Apr-18,OTHER MEDICAL SUPPLIES,Surgery,NHS LOGISTICS,1019013283,22.33,
Department of Health,Salisbury NHS Foundation Trust,24-Apr-18,OTHER MEDICAL SUPPLIES,Surgery,NHS LOGISTICS,1019013283,22.33,
Department of Health,Salisbury NHS Foundation Trust,24-Apr-18,DENTAL SURGERY SUNDRIES,Surgery,NHS LOGISTICS,1019013283,22.2,
Department of Health,Salisbury NHS Foundation Trust,24-Apr-18,SURGICAL INSTRUMENTS: GENERAL,Surgery,NHS LOGISTICS,1019013283,70.67,
Department of Health,Salisbury NHS Foundation Trust,24-Apr-18,DRUGS,Surgery,NHS LOGISTICS,1019013283,14.73,
Department of Health,Salisbury NHS Foundation Trust,24-Apr-18,DRUGS,Surgery,NHS LOGISTICS,1019013283,57.6,
Department of Health,Salisbury NHS Foundation Trust,24-Apr-18,MEDSURGCONS - OTHER,Surgery,NHS LOGISTICS,1019013283,48.06,
Department of Health,Salisbury NHS Foundation Trust,24-Apr-18,OTHER MEDICAL SUPPLIES,Surgery,NHS LOGISTICS,1019013283,505.72,
Department of Health,Salisbury NHS Foundation Trust,24-Apr-18,BEVERAGES & AMBIENT FOOD,Surgery,NHS LOGISTICS,1019013283,2.48,
Department of Health,Salisbury NHS Foundation Trust,24-Apr-18,NON DISPOSABLE BED LINEN,Surgery,NHS LOGISTICS,1019013283,22.5,
Department of Health,Salisbury NHS Foundation Trust,24-Apr-18,PATIENT APPLIANCES,Clinical Support and Family Services,NHS LOGISTICS,1019013283,1.11,
Department of Health,Salisbury NHS Foundation Trust,24-Apr-18,TISSUES HAND TOWELS & TOILET PAPER,Clinical Support and Family Services,NHS LOGISTICS,1019013283,4.97,
Department of Health,Salisbury NHS Foundation Trust,24-Apr-18,MED SURG EQUIP REP MAINT CLEANING,Clinical Support and Family Services,NHS LOGISTICS,1019013283,16.08,
Department of Health,Salisbury NHS Foundation Trust,24-Apr-18,MED SURG EQUIP REP MAINT CLEANING,Clinical Support and Family Services,NHS LOGISTICS,1019013283,29.88,
Department of Health,Salisbury NHS Foundation Trust,24-Apr-18,MEDSURGCONS - OTHER,Clinical Support and Family Services,NHS LOGISTICS,1019013283,6.43,
Department of Health,Salisbury NHS Foundation Trust,24-Apr-18,MEDSURGCONS - OTHER,Clinical Support and Family Services,NHS LOGISTICS,1019013283,9.7,
Department of Health,Salisbury NHS Foundation Trust,24-Apr-18,MEDSURGCONS - OTHER,Clinical Support and Family Services,NHS LOGISTICS,1019013283,3.91,
Department of Health,Salisbury NHS Foundation Trust,24-Apr-18,M & S EQUIPELECTEQUIPINST - OTHER,Clinical Support and Family Services,NHS LOGISTICS,1019013283,1.6,
Department of Health,Salisbury NHS Foundation Trust,24-Apr-18,M & S EQUIPELECTEQUIPINST - OTHER,Clinical Support and Family Services,NHS LOGISTICS,1019013283,309.28,
Department of Health,Salisbury NHS Foundation Trust,24-Apr-18,TISSUES HAND TOWELS & TOILET PAPER,Medicine,NHS LOGISTICS,1019013283,35,
Department of Health,Salisbury NHS Foundation Trust,24-Apr-18,TISSUES HAND TOWELS & TOILET PAPER,Surgery,NHS LOGISTICS,1019013283,1.23,
Department of Health,Salisbury NHS Foundation Trust,24-Apr-18,TISSUES HAND TOWELS & TOILET PAPER,Surgery,NHS LOGISTICS,1019013283,3.72,
Department of Health,Salisbury NHS Foundation Trust,24-Apr-18,TISSUES HAND TOWELS & TOILET PAPER,Surgery,NHS LOGISTICS,1019013283,1.17,
Department of Health,Salisbury NHS Foundation Trust,24-Apr-18,M & S EQUIPELECTEQUIPINST - OTHER,Clinical Support and Family Services,NHS LOGISTICS,1019013283,206.18,
Department of Health,Salisbury NHS Foundation Trust,24-Apr-18,M & S EQUIPELECTEQUIPINST - OTHER,Clinical Support and Family Services,NHS LOGISTICS,1019013283,41.23,
Department of Health,Salisbury NHS Foundation Trust,24-Apr-18,TISSUES HAND TOWELS & TOILET PAPER,Clinical Support and Family Services,NHS LOGISTICS,1019013283,0.78,
Department of Health,Salisbury NHS Foundation Trust,24-Apr-18,OTHER MEDICAL SUPPLIES,Clinical Support and Family Services,NHS LOGISTICS,1019013283,13.68,
Department of Health,Salisbury NHS Foundation Trust,24-Apr-18,DRESSINGS - PRE STERILE,Clinical Support and Family Services,NHS LOGISTICS,1019013283,6.65,
Department of Health,Salisbury NHS Foundation Trust,24-Apr-18,OTHER MEDICAL SUPPLIES,Clinical Support and Family Services,NHS LOGISTICS,1019013283,149.93,
Department of Health,Salisbury NHS Foundation Trust,24-Apr-18,DRESSINGS - PRE STERILE,Clinical Support and Family Services,NHS LOGISTICS,1019013283,4.37,
Department of Health,Salisbury NHS Foundation Trust,24-Apr-18,TOILETRIES PERSONAL HYGIENE PRODUCTS,Critical care,NHS LOGISTICS,1019013283,3.08,
Department of Health,Salisbury NHS Foundation Trust,24-Apr-18,TISSUES HAND TOWELS & TOILET PAPER,Critical care,NHS LOGISTICS,1019013283,1.24,
Department of Health,Salisbury NHS Foundation Trust,24-Apr-18,PATIENT APPLIANCES,Critical care,NHS LOGISTICS,1019013283,10.68,
Department of Health,Salisbury NHS Foundation Trust,24-Apr-18,PATIENT APPLIANCES,Critical care,NHS LOGISTICS,1019013283,10.68,
Department of Health,Salisbury NHS Foundation Trust,24-Apr-18,PATIENT APPLIANCES,Critical care,NHS LOGISTICS,1019013283,8.05,
Department of Health,Salisbury NHS Foundation Trust,24-Apr-18,OTHER MEDICAL SUPPLIES,Critical care,NHS LOGISTICS,1019013283,1.88,
Department of Health,Salisbury NHS Foundation Trust,24-Apr-18,TOILETRIES PERSONAL HYGIENE PRODUCTS,Medicine,NHS LOGISTICS,1019013283,1.54,
Department of Health,Salisbury NHS Foundation Trust,24-Apr-18,TISSUES HAND TOWELS & TOILET PAPER,Medicine,NHS LOGISTICS,1019013283,2.48,
Department of Health,Salisbury NHS Foundation Trust,24-Apr-18,OTHER MEDICAL SUPPLIES,Medicine,NHS LOGISTICS,1019013283,2,
Department of Health,Salisbury NHS Foundation Trust,24-Apr-18,MEDSURGCONS - OTHER,Medicine,NHS LOGISTICS,1019013283,5.89,
Department of Health,Salisbury NHS Foundation Trust,24-Apr-18,MEDSURGCONS - OTHER,Medicine,NHS LOGISTICS,1019013283,3.91,
Department of Health,Salisbury NHS Foundation Trust,24-Apr-18,DISPOSABLE THEATRE DRAPES WIPES,Medicine,NHS LOGISTICS,1019013283,1.32,
Department of Health,Salisbury NHS Foundation Trust,24-Apr-18,DISPOSABLE THEATRE DRAPES WIPES,Medicine,NHS LOGISTICS,1019013283,3.55,
Department of Health,Salisbury NHS Foundation Trust,24-Apr-18,HEALTHCARE - WEAR,Surgery,NHS LOGISTICS,1019013283,33.22,
Department of Health,Salisbury NHS Foundation Trust,24-Apr-18,HEALTHCARE - WEAR,Surgery,NHS LOGISTICS,1019013283,33.22,
Department of Health,Salisbury NHS Foundation Trust,24-Apr-18,DRESSINGS - PRE STERILE,Surgery,NHS LOGISTICS,1019013283,18.78,
Department of Health,Salisbury NHS Foundation Trust,24-Apr-18,DISPOSABLE THEATRE DRAPES WIPES,Surgery,NHS LOGISTICS,1019013283,12,
Department of Health,Salisbury NHS Foundation Trust,24-Apr-18,DRESSINGS - PRE STERILE,Surgery,NHS LOGISTICS,1019013283,16.84,
Department of Health,Salisbury NHS Foundation Trust,24-Apr-18,NON DISPOSABLE BED LINEN,Surgery,NHS LOGISTICS,1019013283,7.5,
Department of Health,Salisbury NHS Foundation Trust,24-Apr-18,PATIENTS BABY WEAR,Medicine,NHS LOGISTICS,1019013283,16.07,
Department of Health,Salisbury NHS Foundation Trust,24-Apr-18,PATIENTS BABY WEAR,Medicine,NHS LOGISTICS,1019013283,14.9,
Department of Health,Salisbury NHS Foundation Trust,24-Apr-18,CLEANING MATERIALS PRODUCTS SUNDRIES,Medicine,NHS LOGISTICS,1019013283,8.8,
Department of Health,Salisbury NHS Foundation Trust,24-Apr-18,ANAESTHETIC EQUIPMENT ACCESSORIES,Medicine,NHS LOGISTICS,1019013283,1.25,
Department of Health,Salisbury NHS Foundation Trust,24-Apr-18,OTHER MEDICAL SUPPLIES,Medicine,NHS LOGISTICS,1019013283,1.88,
Department of Health,Salisbury NHS Foundation Trust,24-Apr-18,PATIENT APPLIANCES,Medicine,NHS LOGISTICS,1019013283,3.35,
Department of Health,Salisbury NHS Foundation Trust,24-Apr-18,MEDSURGCONS - OTHER,Medicine,NHS LOGISTICS,1019013283,6.82,
Department of Health,Salisbury NHS Foundation Trust,24-Apr-18,DISPOSABLE THEATRE DRAPES WIPES,Medicine,NHS LOGISTICS,1019013283,3.55,
Department of Health,Salisbury NHS Foundation Trust,24-Apr-18,TISSUES HAND TOWELS & TOILET PAPER,Medicine,NHS LOGISTICS,1019013283,1.23,
Department of Health,Salisbury NHS Foundation Trust,24-Apr-18,TISSUES HAND TOWELS & TOILET PAPER,Medicine,NHS LOGISTICS,1019013283,21.3,
Department of Health,Salisbury NHS Foundation Trust,24-Apr-18,TISSUES HAND TOWELS & TOILET PAPER,Clinical Support and Family Services,NHS LOGISTICS,1019013283,42.6,
Department of Health,Salisbury NHS Foundation Trust,24-Apr-18,OTHER MEDICAL SUPPLIES,Clinical Support and Family Services,NHS LOGISTICS,1019013283,6.84,
Department of Health,Salisbury NHS Foundation Trust,24-Apr-18,DRESSINGS - PRE STERILE,Clinical Support and Family Services,NHS LOGISTICS,1019013283,6.55,
Department of Health,Salisbury NHS Foundation Trust,24-Apr-18,DRESSINGS - PRE STERILE,Medicine,NHS LOGISTICS,1019013283,2.88,
Department of Health,Salisbury NHS Foundation Trust,24-Apr-18,PATIENT APPLIANCES,Medicine,NHS LOGISTICS,1019013283,39.46,
Department of Health,Salisbury NHS Foundation Trust,24-Apr-18,DRESSINGS - PRE STERILE,Medicine,NHS LOGISTICS,1019013283,5.96,
Department of Health,Salisbury NHS Foundation Trust,24-Apr-18,DRESSINGS - PRE STERILE,Medicine,NHS LOGISTICS,1019013283,14,
Department of Health,Salisbury NHS Foundation Trust,24-Apr-18,PATIENT APPLIANCES,Medicine,NHS LOGISTICS,1019013283,12.08,
Department of Health,Salisbury NHS Foundation Trust,24-Apr-18,PATIENT APPLIANCES,Medicine,NHS LOGISTICS,1019013283,8.05,
Department of Health,Salisbury NHS Foundation Trust,24-Apr-18,ANAESTHETIC EQUIPMENT ACCESSORIES,Medicine,NHS LOGISTICS,1019013283,6.25,
Department of Health,Salisbury NHS Foundation Trust,24-Apr-18,OTHER MEDICAL SUPPLIES,Medicine,NHS LOGISTICS,1019013283,3.77,
Department of Health,Salisbury NHS Foundation Trust,24-Apr-18,TISSUES HAND TOWELS & TOILET PAPER,Medicine,NHS LOGISTICS,1019013283,0.68,
Department of Health,Salisbury NHS Foundation Trust,24-Apr-18,NON DISPOSABLE BED LINEN,Medicine,NHS LOGISTICS,1019013283,11.25,
Department of Health,Salisbury NHS Foundation Trust,24-Apr-18,DISPOSABLE THEATRE DRAPES WIPES,Medicine,NHS LOGISTICS,1019013283,7.1,
Department of Health,Salisbury NHS Foundation Trust,24-Apr-18,DRESSINGS - PRE STERILE,Critical care,NHS LOGISTICS,1019013283,5.66,
Department of Health,Salisbury NHS Foundation Trust,24-Apr-18,DRESSINGS - PRE STERILE,Critical care,NHS LOGISTICS,1019013283,21.88,
Department of Health,Salisbury NHS Foundation Trust,24-Apr-18,DRESSINGS - PRE STERILE,Critical care,NHS LOGISTICS,1019013283,20.25,
Department of Health,Salisbury NHS Foundation Trust,24-Apr-18,DRESSINGS - PRE STERILE,Critical care,NHS LOGISTICS,1019013283,20.25,
Department of Health,Salisbury NHS Foundation Trust,24-Apr-18,DRESSINGS - PRE STERILE,Critical care,NHS LOGISTICS,1019013283,25.03,
Department of Health,Salisbury NHS Foundation Trust,24-Apr-18,DRESSINGS - PRE STERILE,Critical care,NHS LOGISTICS,1019013283,18.9,
Department of Health,Salisbury NHS Foundation Trust,24-Apr-18,DRESSINGS - PRE STERILE,Critical care,NHS LOGISTICS,1019013283,10.34,
Department of Health,Salisbury NHS Foundation Trust,24-Apr-18,DRESSINGS - PRE STERILE,Critical care,NHS LOGISTICS,1019013283,31.03,
Department of Health,Salisbury NHS Foundation Trust,24-Apr-18,DRESSINGS - PRE STERILE,Critical care,NHS LOGISTICS,1019013283,20.68,
Department of Health,Salisbury NHS Foundation Trust,24-Apr-18,TISSUES HAND TOWELS & TOILET PAPER,Surgery,NHS LOGISTICS,1019013283,21.3,
Department of Health,Salisbury NHS Foundation Trust,24-Apr-18,TISSUES HAND TOWELS & TOILET PAPER,Surgery,NHS LOGISTICS,1019013283,1.96,
Department of Health,Salisbury NHS Foundation Trust,24-Apr-18,SURGICAL INSTRUMENTS: DISPOSABLE,Surgery,NHS LOGISTICS,1019013283,70.58,
Department of Health,Salisbury NHS Foundation Trust,24-Apr-18,DRESSINGS - PRE STERILE,Critical care,NHS LOGISTICS,1019013283,6,
Department of Health,Salisbury NHS Foundation Trust,24-Apr-18,M & S EQUIPELECTEQUIPINST - OTHER,Critical care,NHS LOGISTICS,1019013283,8.4,
Department of Health,Salisbury NHS Foundation Trust,24-Apr-18,TOILETRIES PERSONAL HYGIENE PRODUCTS,Critical care,NHS LOGISTICS,1019013283,12.33,
Department of Health,Salisbury NHS Foundation Trust,24-Apr-18,TISSUES HAND TOWELS & TOILET PAPER,Critical care,NHS LOGISTICS,1019013283,4.97,
Department of Health,Salisbury NHS Foundation Trust,24-Apr-18,DRESSINGS - PRE STERILE,Critical care,NHS LOGISTICS,1019013283,9.39,
Department of Health,Salisbury NHS Foundation Trust,24-Apr-18,DRESSINGS - PRE STERILE,Critical care,NHS LOGISTICS,1019013283,7.49,
Department of Health,Salisbury NHS Foundation Trust,24-Apr-18,DRESSINGS - PRE STERILE,Critical care,NHS LOGISTICS,1019013283,8.71,
Department of Health,Salisbury NHS Foundation Trust,24-Apr-18,DRESSINGS - PRE STERILE,Critical care,NHS LOGISTICS,1019013283,12.06,
Department of Health,Salisbury NHS Foundation Trust,24-Apr-18,OTHER MEDICAL SUPPLIES,Critical care,NHS LOGISTICS,1019013283,3.77,
Department of Health,Salisbury NHS Foundation Trust,24-Apr-18,MEDSURGCONS - OTHER,Critical care,NHS LOGISTICS,1019013283,3.91,
Department of Health,Salisbury NHS Foundation Trust,24-Apr-18,TOILETRIES PERSONAL HYGIENE PRODUCTS,Critical care,NHS LOGISTICS,1019013283,4.13,
Department of Health,Salisbury NHS Foundation Trust,24-Apr-18,M & S EQUIPELECTEQUIPINST - OTHER,Critical care,NHS LOGISTICS,1019013283,1.6,
Department of Health,Salisbury NHS Foundation Trust,24-Apr-18,DISPOSABLE THEATRE DRAPES WIPES,Critical care,NHS LOGISTICS,1019013283,15.4,
Department of Health,Salisbury NHS Foundation Trust,24-Apr-18,BAGS SACKS - OTHER,Surgery,NHS LOGISTICS,1019013283,12.19,
Department of Health,Salisbury NHS Foundation Trust,24-Apr-18,DRESSINGS - PRE STERILE,Surgery,NHS LOGISTICS,1019013283,5.66,
Department of Health,Salisbury NHS Foundation Trust,24-Apr-18,DRUGS,Surgery,NHS LOGISTICS,1019013283,14.03,
Department of Health,Salisbury NHS Foundation Trust,24-Apr-18,DRUGS,Surgery,NHS LOGISTICS,1019013283,54.9,
Department of Health,Salisbury NHS Foundation Trust,24-Apr-18,SURGICAL INSTRUMENTS: DISPOSABLE,Surgery,NHS LOGISTICS,1019013283,53.77,
Department of Health,Salisbury NHS Foundation Trust,24-Apr-18,NON DISPOSABLE BED LINEN,Surgery,NHS LOGISTICS,1019013283,30,
Department of Health,Salisbury NHS Foundation Trust,24-Apr-18,CLEANING MATERIALS PRODUCTS SUNDRIES,Surgery,NHS LOGISTICS,1019013283,6.75,
Department of Health,Salisbury NHS Foundation Trust,24-Apr-18,M & S EQUIPELECTEQUIPINST - OTHER,Clinical Support and Family Services,NHS LOGISTICS,1019013283,76.32,
Department of Health,Salisbury NHS Foundation Trust,24-Apr-18,MEDSURGCONS - OTHER,Clinical Support and Family Services,NHS LOGISTICS,1019013283,84.84,
Department of Health,Salisbury NHS Foundation Trust,24-Apr-18,TISSUES HAND TOWELS & TOILET PAPER,Medicine,NHS LOGISTICS,1019013283,1.57,
Department of Health,Salisbury NHS Foundation Trust,24-Apr-18,MEDSURGCONS - OTHER,Critical care,NHS LOGISTICS,1019013283,3.91,
Department of Health,Salisbury NHS Foundation Trust,24-Apr-18,DENTAL SURGERY SUNDRIES,Critical care,NHS LOGISTICS,1019013283,11.1,
Department of Health,Salisbury NHS Foundation Trust,24-Apr-18,M & S EQUIPELECTEQUIPINST - OTHER,Critical care,NHS LOGISTICS,1019013283,25.2,
Department of Health,Salisbury NHS Foundation Trust,24-Apr-18,MEDSURGCONS - OTHER,Critical care,NHS LOGISTICS,1019013283,21.47,
Department of Health,Salisbury NHS Foundation Trust,24-Apr-18,DRESSINGS - PRE STERILE,Critical care,NHS LOGISTICS,1019013283,2.49,
Department of Health,Salisbury NHS Foundation Trust,24-Apr-18,DRESSINGS - PRE STERILE,Critical care,NHS LOGISTICS,1019013283,16.95,
Department of Health,Salisbury NHS Foundation Trust,24-Apr-18,NON DISPOSABLE BED LINEN,Critical care,NHS LOGISTICS,1019013283,33.18,
Department of Health,Salisbury NHS Foundation Trust,24-Apr-18,NON DISPOSABLE BED LINEN,Critical care,NHS LOGISTICS,1019013283,37.5,
Department of Health,Salisbury NHS Foundation Trust,24-Apr-18,DISPOSABLE THEATRE DRAPES WIPES,Critical care,NHS LOGISTICS,1019013283,3.29,
Department of Health,Salisbury NHS Foundation Trust,24-Apr-18,DISPOSABLE THEATRE DRAPES WIPES,Critical care,NHS LOGISTICS,1019013283,17.75,
Department of Health,Salisbury NHS Foundation Trust,24-Apr-18,MEDSURGCONS - OTHER,Surgery,NHS LOGISTICS,1019013283,524.68,
Department of Health,Salisbury NHS Foundation Trust,24-Apr-18,TISSUES HAND TOWELS & TOILET PAPER,Clinical Support and Family Services,NHS LOGISTICS,1019013283,6.21,
Department of Health,Salisbury NHS Foundation Trust,24-Apr-18,M & S EQUIPELECTEQUIPINST - OTHER,Clinical Support and Family Services,NHS LOGISTICS,1019013283,49.26,
Department of Health,Salisbury NHS Foundation Trust,24-Apr-18,OTHER MEDICAL SUPPLIES,Clinical Support and Family Services,NHS LOGISTICS,1019013283,6.84,
Department of Health,Salisbury NHS Foundation Trust,24-Apr-18,OTHER MEDICAL SUPPLIES,Clinical Support and Family Services,NHS LOGISTICS,1019013283,27.11,
Department of Health,Salisbury NHS Foundation Trust,24-Apr-18,BAGS SACKS - OTHER,Medicine,NHS LOGISTICS,1019013283,7.16,
Department of Health,Salisbury NHS Foundation Trust,24-Apr-18,TISSUES HAND TOWELS & TOILET PAPER,Medicine,NHS LOGISTICS,1019013283,2.48,
Department of Health,Salisbury NHS Foundation Trust,24-Apr-18,TISSUES HAND TOWELS & TOILET PAPER,Medicine,NHS LOGISTICS,1019013283,2.35,
Department of Health,Salisbury NHS Foundation Trust,24-Apr-18,MEDSURGCONS - OTHER,Medicine,NHS LOGISTICS,1019013283,3.91,
Department of Health,Salisbury NHS Foundation Trust,24-Apr-18,MEDSURGCONS - OTHER,Surgery,NHS LOGISTICS,1019013283,21.47,
Department of Health,Salisbury NHS Foundation Trust,24-Apr-18,DRESSINGS - PRE STERILE,Surgery,NHS LOGISTICS,1019013283,29.94,
Department of Health,Salisbury NHS Foundation Trust,24-Apr-18,ELECTRICAL EQUIPMENT x,Surgery,NHS LOGISTICS,1019013283,5,
Department of Health,Salisbury NHS Foundation Trust,24-Apr-18,ELECTRICAL EQUIPMENT x,Surgery,NHS LOGISTICS,1019013283,19.33,
Department of Health,Salisbury NHS Foundation Trust,24-Apr-18,DRESSINGS - PRE STERILE,Surgery,NHS LOGISTICS,1019013283,37.57,
Department of Health,Salisbury NHS Foundation Trust,24-Apr-18,MEDSURGCONS - OTHER,Surgery,NHS LOGISTICS,1019013283,3.91,
Department of Health,Salisbury NHS Foundation Trust,24-Apr-18,TISSUES HAND TOWELS & TOILET PAPER,Surgery,NHS LOGISTICS,1019013283,6.21,
Department of Health,Salisbury NHS Foundation Trust,24-Apr-18,DRESSINGS - PRE STERILE,Surgery,NHS LOGISTICS,1019013283,3.93,
Department of Health,Salisbury NHS Foundation Trust,24-Apr-18,OTHER MEDICAL SUPPLIES,Surgery,NHS LOGISTICS,1019013283,1.88,
Department of Health,Salisbury NHS Foundation Trust,24-Apr-18,DRESSINGS - PRE STERILE,Medicine,NHS LOGISTICS,1019013283,7.52,
Department of Health,Salisbury NHS Foundation Trust,24-Apr-18,M & S EQUIPELECTEQUIPINST - OTHER,Medicine,NHS LOGISTICS,1019013283,6.75,
Department of Health,Salisbury NHS Foundation Trust,24-Apr-18,OTHER MEDICAL SUPPLIES,Medicine,NHS LOGISTICS,1019013283,3.77,
Department of Health,Salisbury NHS Foundation Trust,24-Apr-18,TISSUES HAND TOWELS & TOILET PAPER,Medicine,NHS LOGISTICS,1019013283,0.68,
Department of Health,Salisbury NHS Foundation Trust,24-Apr-18,M & S EQUIPELECTEQUIPINST - OTHER,Clinical Support and Family Services,NHS LOGISTICS,1019013283,8.4,
Department of Health,Salisbury NHS Foundation Trust,24-Apr-18,TOILETRIES PERSONAL HYGIENE PRODUCTS,Clinical Support and Family Services,NHS LOGISTICS,1019013283,3.08,
Department of Health,Salisbury NHS Foundation Trust,24-Apr-18,TISSUES HAND TOWELS & TOILET PAPER,Clinical Support and Family Services,NHS LOGISTICS,1019013283,10.65,
Department of Health,Salisbury NHS Foundation Trust,24-Apr-18,TISSUES HAND TOWELS & TOILET PAPER,Clinical Support and Family Services,NHS LOGISTICS,1019013283,1.17,
Department of Health,Salisbury NHS Foundation Trust,24-Apr-18,M & S EQUIPELECTEQUIPINST - OTHER,Clinical Support and Family Services,NHS LOGISTICS,1019013283,16.8,
Department of Health,Salisbury NHS Foundation Trust,24-Apr-18,PATIENTS BEDWEAR UNISEX,Clinical Support and Family Services,NHS LOGISTICS,1019013283,4,
Department of Health,Salisbury NHS Foundation Trust,24-Apr-18,OTHER MEDICAL SUPPLIES,Clinical Support and Family Services,NHS LOGISTICS,1019013283,1.88,
Department of Health,Salisbury NHS Foundation Trust,24-Apr-18,NON DISPOSABLE BED LINEN,Clinical Support and Family Services,NHS LOGISTICS,1019013283,37.5,
Department of Health,Salisbury NHS Foundation Trust,24-Apr-18,PATIENT APPLIANCES,Clinical Support and Family Services,NHS LOGISTICS,1019013283,4.32,
Department of Health,Salisbury NHS Foundation Trust,24-Apr-18,PATIENT APPLIANCES,Clinical Support and Family Services,NHS LOGISTICS,1019013283,7.8,
Department of Health,Salisbury NHS Foundation Trust,24-Apr-18,MEDSURGCONS - OTHER,Surgery,NHS LOGISTICS,1019013283,38.87,
Department of Health,Salisbury NHS Foundation Trust,24-Apr-18,DRESSINGS - PRE STERILE,Surgery,NHS LOGISTICS,1019013283,2.49,
Department of Health,Salisbury NHS Foundation Trust,24-Apr-18,MEDSURGCONS - OTHER,Surgery,NHS LOGISTICS,1019013283,30.42,
Department of Health,Salisbury NHS Foundation Trust,24-Apr-18,MEDSURGCONS - OTHER,Surgery,NHS LOGISTICS,1019013283,60.85,
Department of Health,Salisbury NHS Foundation Trust,24-Apr-18,MED SURG EQUIP REP MAINT CLEANING,Surgery,NHS LOGISTICS,1019013283,28.35,
Department of Health,Salisbury NHS Foundation Trust,24-Apr-18,MEDSURGCONS - OTHER,Surgery,NHS LOGISTICS,1019013283,101.8,
Department of Health,Salisbury NHS Foundation Trust,24-Apr-18,DRESSINGS - PRE STERILE,Surgery,NHS LOGISTICS,1019013283,24.81,
Department of Health,Salisbury NHS Foundation Trust,24-Apr-18,OTHER MEDICAL SUPPLIES,Surgery,NHS LOGISTICS,1019013283,3.77,
Department of Health,Salisbury NHS Foundation Trust,24-Apr-18,OTHER MEDICAL SUPPLIES,Surgery,NHS LOGISTICS,1019013283,8.03,
Department of Health,Salisbury NHS Foundation Trust,24-Apr-18,MEDSURGCONS - OTHER,Surgery,NHS LOGISTICS,1019013283,47.83,
Department of Health,Salisbury NHS Foundation Trust,24-Apr-18,M & S EQUIPELECTEQUIPINST - OTHER,Surgery,NHS LOGISTICS,1019013283,1.6,
Department of Health,Salisbury NHS Foundation Trust,24-Apr-18,MED SURG EQUIP REP MAINT CLEANING,Surgery,NHS LOGISTICS,1019013283,10.97,
Department of Health,Salisbury NHS Foundation Trust,24-Apr-18,PATIENT APPLIANCES,Surgery,NHS LOGISTICS,1019013283,15.6,
Department of Health,Salisbury NHS Foundation Trust,24-Apr-18,DISPOSABLE THEATRE DRAPES WIPES,Surgery,NHS LOGISTICS,1019013283,1.98,
Department of Health,Salisbury NHS Foundation Trust,24-Apr-18,MEDSURGCONS - OTHER,Surgery,NHS LOGISTICS,1019013283,5.34,
Department of Health,Salisbury NHS Foundation Trust,24-Apr-18,MEDSURGCONS - OTHER,Surgery,NHS LOGISTICS,1019013283,19.68,
Department of Health,Salisbury NHS Foundation Trust,24-Apr-18,DISPOSABLE THEATRE DRAPES WIPES,Surgery,NHS LOGISTICS,1019013283,3.55,
Department of Health,Salisbury NHS Foundation Trust,24-Apr-18,DRESSINGS - PRE STERILE,Surgery,NHS LOGISTICS,1019013283,7.52,
Department of Health,Salisbury NHS Foundation Trust,24-Apr-18,DRESSINGS - PRE STERILE,Surgery,NHS LOGISTICS,1019013283,2.49,
Department of Health,Salisbury NHS Foundation Trust,24-Apr-18,M & S EQUIPELECTEQUIPINST - OTHER,Surgery,NHS LOGISTICS,1019013283,13.5,
Department of Health,Salisbury NHS Foundation Trust,24-Apr-18,NON DISPOSABLE BED LINEN,Surgery,NHS LOGISTICS,1019013283,22.5,
Department of Health,Salisbury NHS Foundation Trust,24-Apr-18,DISPOSABLE THEATRE DRAPES WIPES,Surgery,NHS LOGISTICS,1019013283,3.55,
Department of Health,Salisbury NHS Foundation Trust,24-Apr-18,DRESSINGS - PRE STERILE,Surgery,NHS LOGISTICS,1019013283,14,
Department of Health,Salisbury NHS Foundation Trust,24-Apr-18,M & S EQUIPELECTEQUIPINST - OTHER,Surgery,NHS LOGISTICS,1019013283,13.5,
Department of Health,Salisbury NHS Foundation Trust,24-Apr-18,OTHER MEDICAL SUPPLIES,Surgery,NHS LOGISTICS,1019013283,4.69,
Department of Health,Salisbury NHS Foundation Trust,24-Apr-18,ANAESTHETIC EQUIPMENT ACCESSORIES,Surgery,NHS LOGISTICS,1019013283,2.5,
Department of Health,Salisbury NHS Foundation Trust,24-Apr-18,OTHER MEDICAL SUPPLIES,Surgery,NHS LOGISTICS,1019013283,3.77,
Department of Health,Salisbury NHS Foundation Trust,24-Apr-18,MEDSURGCONS - OTHER,Surgery,NHS LOGISTICS,1019013283,3.91,
Department of Health,Salisbury NHS Foundation Trust,24-Apr-18,DISPOSABLE THEATRE DRAPES WIPES,Surgery,NHS LOGISTICS,1019013283,3.55,
Department of Health,Salisbury NHS Foundation Trust,24-Apr-18,DRESSINGS - PRE STERILE,Surgery,NHS LOGISTICS,1019013283,27.62,
Department of Health,Salisbury NHS Foundation Trust,24-Apr-18,OTHER MEDICAL SUPPLIES,Surgery,NHS LOGISTICS,1019013283,5.65,
Department of Health,Salisbury NHS Foundation Trust,24-Apr-18,OTHER MEDICAL SUPPLIES,Surgery,NHS LOGISTICS,1019013283,3.77,
Department of Health,Salisbury NHS Foundation Trust,24-Apr-18,ANAESTHETIC EQUIPMENT ACCESSORIES,Surgery,NHS LOGISTICS,1019013283,149.73,
Department of Health,Salisbury NHS Foundation Trust,24-Apr-18,MEDSURGCONS - OTHER,Surgery,NHS LOGISTICS,1019013283,6.82,
Department of Health,Salisbury NHS Foundation Trust,24-Apr-18,OTHER MEDICAL SUPPLIES,Surgery,NHS LOGISTICS,1019013283,18.83,
Department of Health,Salisbury NHS Foundation Trust,24-Apr-18,OTHER MEDICAL SUPPLIES,Surgery,NHS LOGISTICS,1019013283,22.33,
Department of Health,Salisbury NHS Foundation Trust,24-Apr-18,OTHER MEDICAL SUPPLIES,Surgery,NHS LOGISTICS,1019013283,22.33,
Department of Health,Salisbury NHS Foundation Trust,24-Apr-18,DRESSINGS - PRE STERILE,Critical care,NHS LOGISTICS,1019013283,2.58,
Department of Health,Salisbury NHS Foundation Trust,24-Apr-18,DRESSINGS - PRE STERILE,Critical care,NHS LOGISTICS,1019013283,2.58,
Department of Health,Salisbury NHS Foundation Trust,24-Apr-18,DRESSINGS - PRE STERILE,Critical care,NHS LOGISTICS,1019013283,16.2,
Department of Health,Salisbury NHS Foundation Trust,24-Apr-18,DRESSINGS - PRE STERILE,Critical care,NHS LOGISTICS,1019013283,22.5,
Department of Health,Salisbury NHS Foundation Trust,24-Apr-18,HEALTHCARE - WEAR,Critical care,NHS LOGISTICS,1019013283,8.1,
Department of Health,Salisbury NHS Foundation Trust,24-Apr-18,HEALTHCARE - WEAR,Critical care,NHS LOGISTICS,1019013283,67.5,
Department of Health,Salisbury NHS Foundation Trust,24-Apr-18,DRESSINGS - PRE STERILE,Critical care,NHS LOGISTICS,1019013283,16.2,
Department of Health,Salisbury NHS Foundation Trust,24-Apr-18,DRESSINGS - PRE STERILE,Critical care,NHS LOGISTICS,1019013283,22.5,
Department of Health,Salisbury NHS Foundation Trust,24-Apr-18,NON DISPOSABLE BED LINEN,Surgery,NHS LOGISTICS,1019013283,18.75,
Department of Health,Salisbury NHS Foundation Trust,24-Apr-18,BEVERAGES & AMBIENT FOOD,Facilities Directorate,NHS LOGISTICS,1019013283,31.56,
Department of Health,Salisbury NHS Foundation Trust,24-Apr-18,BEVERAGES & AMBIENT FOOD,Facilities Directorate,NHS LOGISTICS,1019013283,47.9,
Department of Health,Salisbury NHS Foundation Trust,24-Apr-18,BEVERAGES & AMBIENT FOOD,Facilities Directorate,NHS LOGISTICS,1019013283,36.6,
Department of Health,Salisbury NHS Foundation Trust,24-Apr-18,BEVERAGES & AMBIENT FOOD,Facilities Directorate,NHS LOGISTICS,1019013283,8.4,
Department of Health,Salisbury NHS Foundation Trust,24-Apr-18,BEVERAGES & AMBIENT FOOD,Facilities Directorate,NHS LOGISTICS,1019013283,5.04,
Department of Health,Salisbury NHS Foundation Trust,24-Apr-18,BEVERAGES & AMBIENT FOOD,Facilities Directorate,NHS LOGISTICS,1019013283,3.93,
Department of Health,Salisbury NHS Foundation Trust,24-Apr-18,BEVERAGES & AMBIENT FOOD,Facilities Directorate,NHS LOGISTICS,1019013283,7.72,
Department of Health,Salisbury NHS Foundation Trust,24-Apr-18,BEVERAGES & AMBIENT FOOD,Facilities Directorate,NHS LOGISTICS,1019013283,25.04,
Department of Health,Salisbury NHS Foundation Trust,24-Apr-18,BEVERAGES & AMBIENT FOOD,Facilities Directorate,NHS LOGISTICS,1019013283,3.19,
Department of Health,Salisbury NHS Foundation Trust,24-Apr-18,BEVERAGES & AMBIENT FOOD,Facilities Directorate,NHS LOGISTICS,1019013283,17,
Department of Health,Salisbury NHS Foundation Trust,24-Apr-18,COOKING & KITCHEN UTENSILS,Facilities Directorate,NHS LOGISTICS,1019013283,75,
Department of Health,Salisbury NHS Foundation Trust,24-Apr-18,BEVERAGES & AMBIENT FOOD,Facilities Directorate,NHS LOGISTICS,1019013283,9.52,
Department of Health,Salisbury NHS Foundation Trust,24-Apr-18,LIQUID REFRESHMENTS,Facilities Directorate,NHS LOGISTICS,1019013283,3.91,
Department of Health,Salisbury NHS Foundation Trust,24-Apr-18,BEVERAGES & AMBIENT FOOD,Facilities Directorate,NHS LOGISTICS,1019013283,32.16,
Department of Health,Salisbury NHS Foundation Trust,24-Apr-18,EGGS MILK OTHER DAIRY PRODUCTS,Facilities Directorate,NHS LOGISTICS,1019013283,46.48,
Department of Health,Salisbury NHS Foundation Trust,24-Apr-18,BEVERAGES & AMBIENT FOOD,Facilities Directorate,NHS LOGISTICS,1019013283,17.7,
Department of Health,Salisbury NHS Foundation Trust,24-Apr-18,MEAT GAME POULTRY FISH,Facilities Directorate,NHS LOGISTICS,1019013283,51.84,
Department of Health,Salisbury NHS Foundation Trust,24-Apr-18,FRUIT & VEGETABLES,Facilities Directorate,NHS LOGISTICS,1019013283,24,
Department of Health,Salisbury NHS Foundation Trust,24-Apr-18,BEVERAGES & AMBIENT FOOD,Facilities Directorate,NHS LOGISTICS,1019013283,94.4,
Department of Health,Salisbury NHS Foundation Trust,24-Apr-18,BEVERAGES & AMBIENT FOOD,Facilities Directorate,NHS LOGISTICS,1019013283,53.7,
Department of Health,Salisbury NHS Foundation Trust,24-Apr-18,BAGS SACKS - OTHER,Facilities Directorate,NHS LOGISTICS,1019013283,7.21,
Department of Health,Salisbury NHS Foundation Trust,24-Apr-18,FRUIT & VEGETABLES,Facilities Directorate,NHS LOGISTICS,1019013283,20.28,
Department of Health,Salisbury NHS Foundation Trust,24-Apr-18,LIQUID REFRESHMENTS,Facilities Directorate,NHS LOGISTICS,1019013283,19.97,
Department of Health,Salisbury NHS Foundation Trust,24-Apr-18,LIQUID REFRESHMENTS,Facilities Directorate,NHS LOGISTICS,1019013283,9.32,
Department of Health,Salisbury NHS Foundation Trust,24-Apr-18,MEAT GAME POULTRY FISH,Facilities Directorate,NHS LOGISTICS,1019013283,23.28,
Department of Health,Salisbury NHS Foundation Trust,24-Apr-18,BEVERAGES & AMBIENT FOOD,Facilities Directorate,NHS LOGISTICS,1019013283,7.68,
Department of Health,Salisbury NHS Foundation Trust,24-Apr-18,LIQUID REFRESHMENTS,Facilities Directorate,NHS LOGISTICS,1019013283,26.33,
Department of Health,Salisbury NHS Foundation Trust,24-Apr-18,LIQUID REFRESHMENTS,Facilities Directorate,NHS LOGISTICS,1019013283,26.5,
Department of Health,Salisbury NHS Foundation Trust,24-Apr-18,BEVERAGES & AMBIENT FOOD,Facilities Directorate,NHS LOGISTICS,1019013283,62.1,
Department of Health,Salisbury NHS Foundation Trust,24-Apr-18,BEVERAGES & AMBIENT FOOD,Facilities Directorate,NHS LOGISTICS,1019013283,17.74,
Department of Health,Salisbury NHS Foundation Trust,24-Apr-18,COOKING & KITCHEN UTENSILS,Facilities Directorate,NHS LOGISTICS,1019013283,32.08,
Department of Health,Salisbury NHS Foundation Trust,24-Apr-18,BEVERAGES & AMBIENT FOOD,Facilities Directorate,NHS LOGISTICS,1019013283,10.26,
Department of Health,Salisbury NHS Foundation Trust,24-Apr-18,BEVERAGES & AMBIENT FOOD,Facilities Directorate,NHS LOGISTICS,1019013283,77.94,
Department of Health,Salisbury NHS Foundation Trust,24-Apr-18,BEVERAGES & AMBIENT FOOD,Facilities Directorate,NHS LOGISTICS,1019013283,19.68,
Department of Health,Salisbury NHS Foundation Trust,24-Apr-18,BEVERAGES & AMBIENT FOOD,Facilities Directorate,NHS LOGISTICS,1019013283,14.52,
Department of Health,Salisbury NHS Foundation Trust,24-Apr-18,FLAVOURINGS HERBS SPICES,Facilities Directorate,NHS LOGISTICS,1019013283,4.65,
Department of Health,Salisbury NHS Foundation Trust,24-Apr-18,BEVERAGES & AMBIENT FOOD,Facilities Directorate,NHS LOGISTICS,1019013283,2.63,
Department of Health,Salisbury NHS Foundation Trust,24-Apr-18,FLAVOURINGS HERBS SPICES,Facilities Directorate,NHS LOGISTICS,1019013283,1.42,
Department of Health,Salisbury NHS Foundation Trust,24-Apr-18,FLAVOURINGS HERBS SPICES,Facilities Directorate,NHS LOGISTICS,1019013283,20.14,
Department of Health,Salisbury NHS Foundation Trust,24-Apr-18,BEVERAGES & AMBIENT FOOD,Facilities Directorate,NHS LOGISTICS,1019013283,4.55,
Department of Health,Salisbury NHS Foundation Trust,24-Apr-18,LIQUID REFRESHMENTS,Facilities Directorate,NHS LOGISTICS,1019013283,122.4,
Department of Health,Salisbury NHS Foundation Trust,24-Apr-18,LIQUID REFRESHMENTS,Facilities Directorate,NHS LOGISTICS,1019013283,6.58,
Department of Health,Salisbury NHS Foundation Trust,24-Apr-18,LIQUID REFRESHMENTS,Facilities Directorate,NHS LOGISTICS,1019013283,6.2,
Department of Health,Salisbury NHS Foundation Trust,24-Apr-18,LIQUID REFRESHMENTS,Facilities Directorate,NHS LOGISTICS,1019013283,5.07,
Department of Health,Salisbury NHS Foundation Trust,24-Apr-18,LIQUID REFRESHMENTS,Facilities Directorate,NHS LOGISTICS,1019013283,8.73,
Department of Health,Salisbury NHS Foundation Trust,24-Apr-18,DIETETIC FOOD,Facilities Directorate,NHS LOGISTICS,1019013283,5.85,
Department of Health,Salisbury NHS Foundation Trust,24-Apr-18,DIETETIC FOOD,Facilities Directorate,NHS LOGISTICS,1019013283,5.85,
Department of Health,Salisbury NHS Foundation Trust,24-Apr-18,BEVERAGES & AMBIENT FOOD,Facilities Directorate,NHS LOGISTICS,1019013283,52.74,
Department of Health,Salisbury NHS Foundation Trust,24-Apr-18,COOKING & KITCHEN UTENSILS,Facilities Directorate,NHS LOGISTICS,1019013283,19.17,
Department of Health,Salisbury NHS Foundation Trust,24-Apr-18,COOKING & KITCHEN UTENSILS,Facilities Directorate,NHS LOGISTICS,1019013283,19.17,
Department of Health,Salisbury NHS Foundation Trust,24-Apr-18,FRUIT & VEGETABLES,Facilities Directorate,NHS LOGISTICS,1019013283,6.75,
Department of Health,Salisbury NHS Foundation Trust,24-Apr-18,FRUIT & VEGETABLES,Facilities Directorate,NHS LOGISTICS,1019013283,43.56,
Department of Health,Salisbury NHS Foundation Trust,24-Apr-18,FRUIT & VEGETABLES,Facilities Directorate,NHS LOGISTICS,1019013283,43.68,
Department of Health,Salisbury NHS Foundation Trust,24-Apr-18,COOKING & KITCHEN UTENSILS,Facilities Directorate,NHS LOGISTICS,1019013283,12.64,
Department of Health,Salisbury NHS Foundation Trust,24-Apr-18,FRUIT & VEGETABLES,Facilities Directorate,NHS LOGISTICS,1019013283,59.58,
Department of Health,Salisbury NHS Foundation Trust,24-Apr-18,FRUIT & VEGETABLES,Facilities Directorate,NHS LOGISTICS,1019013283,26.4,
Department of Health,Salisbury NHS Foundation Trust,24-Apr-18,BEVERAGES & AMBIENT FOOD,Facilities Directorate,NHS LOGISTICS,1019013283,8.62,
Department of Health,Salisbury NHS Foundation Trust,24-Apr-18,BEVERAGES & AMBIENT FOOD,Facilities Directorate,NHS LOGISTICS,1019013283,8.62,
Department of Health,Salisbury NHS Foundation Trust,24-Apr-18,BEVERAGES & AMBIENT FOOD,Facilities Directorate,NHS LOGISTICS,1019013283,9.1,
Department of Health,Salisbury NHS Foundation Trust,24-Apr-18,BEVERAGES & AMBIENT FOOD,Facilities Directorate,NHS LOGISTICS,1019013283,13.19,
Department of Health,Salisbury NHS Foundation Trust,24-Apr-18,MEDSURGCONS - OTHER,Facilities Directorate,NHS LOGISTICS,1019013283,42.92,
Department of Health,Salisbury NHS Foundation Trust,24-Apr-18,MEDSURGCONS - OTHER,Facilities Directorate,NHS LOGISTICS,1019013283,42.92,
Department of Health,Salisbury NHS Foundation Trust,24-Apr-18,MEDSURGCONS - OTHER,Facilities Directorate,NHS LOGISTICS,1019013283,42.92,
Department of Health,Salisbury NHS Foundation Trust,24-Apr-18,MED SURG EQUIP REP MAINT CLEANING,Clinical Support and Family Services,NHS LOGISTICS,1019013283,218.55,
Department of Health,Salisbury NHS Foundation Trust,24-Apr-18,M & S EQUIPELECTEQUIPINST - OTHER,Clinical Support and Family Services,NHS LOGISTICS,1019013283,128.87,
Department of Health,Salisbury NHS Foundation Trust,24-Apr-18,LAB EQUIP-LABORATORY APPARATUS,Clinical Support and Family Services,NHS LOGISTICS,1019013283,17.31,
Department of Health,Salisbury NHS Foundation Trust,24-Apr-18,LAB EQUIP-LABORATORY APPARATUS,Clinical Support and Family Services,NHS LOGISTICS,1019013283,6.89,
Department of Health,Salisbury NHS Foundation Trust,24-Apr-18,LAB EQUIP-LABORATORY APPARATUS,Clinical Support and Family Services,NHS LOGISTICS,1019013283,20.72,
Department of Health,Salisbury NHS Foundation Trust,24-Apr-18,TISSUES HAND TOWELS & TOILET PAPER,Clinical Support and Family Services,NHS LOGISTICS,1019013283,2.87,
Department of Health,Salisbury NHS Foundation Trust,24-Apr-18,MISCELLANEOUS CONSUMABLE ITEMS,Clinical Support and Family Services,NHS LOGISTICS,1019013283,7.41,
Department of Health,Salisbury NHS Foundation Trust,24-Apr-18,DRESSINGS - PRE STERILE,Clinical Support and Family Services,NHS LOGISTICS,1019013283,3.33,
Department of Health,Salisbury NHS Foundation Trust,24-Apr-18,MED SURG EQUIP REP MAINT CLEANING,Clinical Support and Family Services,NHS LOGISTICS,1019013283,6.02,
Department of Health,Salisbury NHS Foundation Trust,24-Apr-18,MEDSURGCONS - OTHER,Surgery,NHS LOGISTICS,1019013283,2.04,
Department of Health,Salisbury NHS Foundation Trust,24-Apr-18,OTHER MEDICAL SUPPLIES,Clinical Support and Family Services,NHS LOGISTICS,1019013283,1.24,
Department of Health,Salisbury NHS Foundation Trust,24-Apr-18,DRESSINGS - PRE STERILE,Critical care,NHS LOGISTICS,1019013283,31.65,
Department of Health,Salisbury NHS Foundation Trust,24-Apr-18,MED SURG EQUIP REP MAINT CLEANING,Clinical Support and Family Services,NHS LOGISTICS,1019013283,6.02,
Department of Health,Salisbury NHS Foundation Trust,24-Apr-18,M & S EQUIPELECTEQUIPINST - OTHER,Clinical Support and Family Services,NHS LOGISTICS,1019013283,2.98,
Department of Health,Salisbury NHS Foundation Trust,24-Apr-18,DRESSINGS - PRE STERILE,Critical care,NHS LOGISTICS,1019013283,4.52,
Department of Health,Salisbury NHS Foundation Trust,24-Apr-18,SURGICAL INSTRUMENTS: GENERAL,Surgery,NHS LOGISTICS,1019013283,17.18,
Department of Health,Salisbury NHS Foundation Trust,24-Apr-18,LAB REAGENTS-BUFFERS COMPUND SOLNS,Clinical Support and Family Services,NHS LOGISTICS,1019013283,43.49,
Department of Health,Salisbury NHS Foundation Trust,24-Apr-18,DRESSINGS - PRE STERILE,Critical care,NHS LOGISTICS,1019013283,31.65,
Department of Health,Salisbury NHS Foundation Trust,24-Apr-18,MEDSURGCONS - OTHER,Critical care,NHS LOGISTICS,1019013283,31.05,
Department of Health,Salisbury NHS Foundation Trust,24-Apr-18,OTHER MEDICAL SUPPLIES,Clinical Support and Family Services,NHS LOGISTICS,1019013283,81.25,
Department of Health,Salisbury NHS Foundation Trust,24-Apr-18,SURGICAL INSTRUMENTS: DISPOSABLE,Clinical Support and Family Services,NHS LOGISTICS,1019013283,8.6,
Department of Health,Salisbury NHS Foundation Trust,24-Apr-18,PUBLICATIONS PRERECORDED VIDEOS AUDIO CASSETTES,Clinical Support and Family Services,NHS LOGISTICS,1019013283,2.1,
Department of Health,Salisbury NHS Foundation Trust,24-Apr-18,OTHER MEDICAL SUPPLIES,Surgery,NHS LOGISTICS,1019013283,8.32,
Department of Health,Salisbury NHS Foundation Trust,24-Apr-18,MEDSURGCONS - OTHER,Surgery,NHS LOGISTICS,1019013283,2.04,
Department of Health,Salisbury NHS Foundation Trust,24-Apr-18,ELECTRICAL EQUIPMENT x,Medicine,NHS LOGISTICS,1019013283,0.77,
Department of Health,Salisbury NHS Foundation Trust,24-Apr-18,DISPOSABLE THEATRE DRAPES WIPES,Medicine,NHS LOGISTICS,1019013283,4.38,
Department of Health,Salisbury NHS Foundation Trust,24-Apr-18,FLAVOURINGS HERBS SPICES,Facilities Directorate,NHS LOGISTICS,1019013283,3.86,
Department of Health,Salisbury NHS Foundation Trust,24-Apr-18,BEVERAGES & AMBIENT FOOD,Facilities Directorate,NHS LOGISTICS,1019013283,4.74,
Department of Health,Salisbury NHS Foundation Trust,24-Apr-18,BEVERAGES & AMBIENT FOOD,Facilities Directorate,NHS LOGISTICS,1019013283,37.76,
Department of Health,Salisbury NHS Foundation Trust,24-Apr-18,FRUIT & VEGETABLES,Facilities Directorate,NHS LOGISTICS,1019013283,31.42,
Department of Health,Salisbury NHS Foundation Trust,24-Apr-18,FRUIT & VEGETABLES,Facilities Directorate,NHS LOGISTICS,1019013283,8.95,
Department of Health,Salisbury NHS Foundation Trust,24-Apr-18,FRUIT & VEGETABLES,Facilities Directorate,NHS LOGISTICS,1019013283,7.01,
Department of Health,Salisbury NHS Foundation Trust,24-Apr-18,FRUIT & VEGETABLES,Facilities Directorate,NHS LOGISTICS,1019013283,4.15,
Department of Health,Salisbury NHS Foundation Trust,24-Apr-18,FRUIT & VEGETABLES,Facilities Directorate,NHS LOGISTICS,1019013283,5.99,
Department of Health,Salisbury NHS Foundation Trust,24-Apr-18,FRUIT & VEGETABLES,Facilities Directorate,NHS LOGISTICS,1019013283,4.34,
Department of Health,Salisbury NHS Foundation Trust,24-Apr-18,FRUIT & VEGETABLES,Facilities Directorate,NHS LOGISTICS,1019013283,2.34,
Department of Health,Salisbury NHS Foundation Trust,24-Apr-18,FRUIT & VEGETABLES,Facilities Directorate,NHS LOGISTICS,1019013283,14.26,
Department of Health,Salisbury NHS Foundation Trust,24-Apr-18,FRUIT & VEGETABLES,Facilities Directorate,NHS LOGISTICS,1019013283,2.64,
Department of Health,Salisbury NHS Foundation Trust,24-Apr-18,FRUIT & VEGETABLES,Facilities Directorate,NHS LOGISTICS,1019013283,0.96,
Department of Health,Salisbury NHS Foundation Trust,24-Apr-18,FRUIT & VEGETABLES,Facilities Directorate,NHS LOGISTICS,1019013283,9.6,
Department of Health,Salisbury NHS Foundation Trust,24-Apr-18,FRUIT & VEGETABLES,Facilities Directorate,NHS LOGISTICS,1019013283,13.27,
Department of Health,Salisbury NHS Foundation Trust,24-Apr-18,FRUIT & VEGETABLES,Facilities Directorate,NHS LOGISTICS,1019013283,2.12,
Department of Health,Salisbury NHS Foundation Trust,24-Apr-18,BEVERAGES & AMBIENT FOOD,Facilities Directorate,NHS LOGISTICS,1019013283,0.53,
Department of Health,Salisbury NHS Foundation Trust,24-Apr-18,BEVERAGES & AMBIENT FOOD,Facilities Directorate,NHS LOGISTICS,1019013283,1.79,
Department of Health,Salisbury NHS Foundation Trust,24-Apr-18,BEVERAGES & AMBIENT FOOD,Facilities Directorate,NHS LOGISTICS,1019013283,0.7,
Department of Health,Salisbury NHS Foundation Trust,24-Apr-18,BEVERAGES & AMBIENT FOOD,Facilities Directorate,NHS LOGISTICS,1019013283,4.74,
Department of Health,Salisbury NHS Foundation Trust,24-Apr-18,BEVERAGES & AMBIENT FOOD,Facilities Directorate,NHS LOGISTICS,1019013283,8.05,
Department of Health,Salisbury NHS Foundation Trust,24-Apr-18,BEVERAGES & AMBIENT FOOD,Facilities Directorate,NHS LOGISTICS,1019013283,5.2,
Department of Health,Salisbury NHS Foundation Trust,24-Apr-18,BEVERAGES & AMBIENT FOOD,Facilities Directorate,NHS LOGISTICS,1019013283,24.61,
Department of Health,Salisbury NHS Foundation Trust,24-Apr-18,LIQUID REFRESHMENTS,Facilities Directorate,NHS LOGISTICS,1019013283,3.49,
Department of Health,Salisbury NHS Foundation Trust,24-Apr-18,LIQUID REFRESHMENTS,Facilities Directorate,NHS LOGISTICS,1019013283,2.63,
Department of Health,Salisbury NHS Foundation Trust,24-Apr-18,LIQUID REFRESHMENTS,Facilities Directorate,NHS LOGISTICS,1019013283,0.51,
Department of Health,Salisbury NHS Foundation Trust,24-Apr-18,LIQUID REFRESHMENTS,Facilities Directorate,NHS LOGISTICS,1019013283,3.72,
Department of Health,Salisbury NHS Foundation Trust,24-Apr-18,LIQUID REFRESHMENTS,Facilities Directorate,NHS LOGISTICS,1019013283,0.51,
Department of Health,Salisbury NHS Foundation Trust,24-Apr-18,LIQUID REFRESHMENTS,Facilities Directorate,NHS LOGISTICS,1019013283,3.67,
Department of Health,Salisbury NHS Foundation Trust,24-Apr-18,LIQUID REFRESHMENTS,Facilities Directorate,NHS LOGISTICS,1019013283,5.3,
Department of Health,Salisbury NHS Foundation Trust,24-Apr-18,LIQUID REFRESHMENTS,Facilities Directorate,NHS LOGISTICS,1019013283,5.3,
Department of Health,Salisbury NHS Foundation Trust,24-Apr-18,LIQUID REFRESHMENTS,Facilities Directorate,NHS LOGISTICS,1019013283,0.93,
Department of Health,Salisbury NHS Foundation Trust,24-Apr-18,LIQUID REFRESHMENTS,Facilities Directorate,NHS LOGISTICS,1019013283,1,
Department of Health,Salisbury NHS Foundation Trust,24-Apr-18,LIQUID REFRESHMENTS,Facilities Directorate,NHS LOGISTICS,1019013283,6.67,
Department of Health,Salisbury NHS Foundation Trust,24-Apr-18,BEVERAGES & AMBIENT FOOD,Facilities Directorate,NHS LOGISTICS,1019013283,0.61,
Department of Health,Salisbury NHS Foundation Trust,24-Apr-18,BEVERAGES & AMBIENT FOOD,Facilities Directorate,NHS LOGISTICS,1019013283,0.7,
Department of Health,Salisbury NHS Foundation Trust,24-Apr-18,BEVERAGES & AMBIENT FOOD,Facilities Directorate,NHS LOGISTICS,1019013283,0.61,
Department of Health,Salisbury NHS Foundation Trust,24-Apr-18,LIQUID REFRESHMENTS,Facilities Directorate,NHS LOGISTICS,1019013283,0.78,
Department of Health,Salisbury NHS Foundation Trust,24-Apr-18,BEVERAGES & AMBIENT FOOD,Facilities Directorate,NHS LOGISTICS,1019013283,4.41,
Department of Health,Salisbury NHS Foundation Trust,24-Apr-18,TISSUES HAND TOWELS & TOILET PAPER,Facilities Directorate,NHS LOGISTICS,1019013283,2.13,
Department of Health,Salisbury NHS Foundation Trust,24-Apr-18,COOKING & KITCHEN UTENSILS,Facilities Directorate,NHS LOGISTICS,1019013283,0.51,
Department of Health,Salisbury NHS Foundation Trust,24-Apr-18,BEVERAGES & AMBIENT FOOD,Facilities Directorate,NHS LOGISTICS,1019013283,3.74,
Department of Health,Salisbury NHS Foundation Trust,24-Apr-18,COOKING & KITCHEN UTENSILS,Facilities Directorate,NHS LOGISTICS,1019013283,3.83,
Department of Health,Salisbury NHS Foundation Trust,24-Apr-18,BEVERAGES & AMBIENT FOOD,Facilities Directorate,NHS LOGISTICS,1019013283,1.08,
Department of Health,Salisbury NHS Foundation Trust,24-Apr-18,BEVERAGES & AMBIENT FOOD,Facilities Directorate,NHS LOGISTICS,1019013283,3.94,
Department of Health,Salisbury NHS Foundation Trust,24-Apr-18,BEVERAGES & AMBIENT FOOD,Facilities Directorate,NHS LOGISTICS,1019013283,3.49,
Department of Health,Salisbury NHS Foundation Trust,24-Apr-18,BEVERAGES & AMBIENT FOOD,Facilities Directorate,NHS LOGISTICS,1019013283,6.44,
Department of Health,Salisbury NHS Foundation Trust,24-Apr-18,EGGS MILK OTHER DAIRY PRODUCTS,Facilities Directorate,NHS LOGISTICS,1019013283,4.65,
Department of Health,Salisbury NHS Foundation Trust,24-Apr-18,BEVERAGES & AMBIENT FOOD,Facilities Directorate,NHS LOGISTICS,1019013283,11.5,
Department of Health,Salisbury NHS Foundation Trust,24-Apr-18,BEVERAGES & AMBIENT FOOD,Facilities Directorate,NHS LOGISTICS,1019013283,1.54,
Department of Health,Salisbury NHS Foundation Trust,24-Apr-18,BEVERAGES & AMBIENT FOOD,Facilities Directorate,NHS LOGISTICS,1019013283,3.42,
Department of Health,Salisbury NHS Foundation Trust,24-Apr-18,FLAVOURINGS HERBS SPICES,Facilities Directorate,NHS LOGISTICS,1019013283,0.51,
Department of Health,Salisbury NHS Foundation Trust,24-Apr-18,FLAVOURINGS HERBS SPICES,Facilities Directorate,NHS LOGISTICS,1019013283,0.36,
Department of Health,Salisbury NHS Foundation Trust,24-Apr-18,FLAVOURINGS HERBS SPICES,Facilities Directorate,NHS LOGISTICS,1019013283,0.28,
Department of Health,Salisbury NHS Foundation Trust,24-Apr-18,FLAVOURINGS HERBS SPICES,Facilities Directorate,NHS LOGISTICS,1019013283,0.31,
Department of Health,Salisbury NHS Foundation Trust,24-Apr-18,BEVERAGES & AMBIENT FOOD,Facilities Directorate,NHS LOGISTICS,1019013283,1.89,
Department of Health,Salisbury NHS Foundation Trust,24-Apr-18,BEVERAGES & AMBIENT FOOD,Facilities Directorate,NHS LOGISTICS,1019013283,2.95,
Department of Health,Salisbury NHS Foundation Trust,24-Apr-18,BEVERAGES & AMBIENT FOOD,Facilities Directorate,NHS LOGISTICS,1019013283,5.1,
Department of Health,Salisbury NHS Foundation Trust,24-Apr-18,BEVERAGES & AMBIENT FOOD,Facilities Directorate,NHS LOGISTICS,1019013283,2.05,
Department of Health,Salisbury NHS Foundation Trust,24-Apr-18,BEVERAGES & AMBIENT FOOD,Facilities Directorate,NHS LOGISTICS,1019013283,4.88,
Department of Health,Salisbury NHS Foundation Trust,24-Apr-18,BEVERAGES & AMBIENT FOOD,Facilities Directorate,NHS LOGISTICS,1019013283,4.63,
Department of Health,Salisbury NHS Foundation Trust,24-Apr-18,BEVERAGES & AMBIENT FOOD,Facilities Directorate,NHS LOGISTICS,1019013283,3.55,
Department of Health,Salisbury NHS Foundation Trust,24-Apr-18,BEVERAGES & AMBIENT FOOD,Facilities Directorate,NHS LOGISTICS,1019013283,1.78,
Department of Health,Salisbury NHS Foundation Trust,24-Apr-18,BEVERAGES & AMBIENT FOOD,Facilities Directorate,NHS LOGISTICS,1019013283,3.76,
Department of Health,Salisbury NHS Foundation Trust,24-Apr-18,BEVERAGES & AMBIENT FOOD,Facilities Directorate,NHS LOGISTICS,1019013283,3.42,
Department of Health,Salisbury NHS Foundation Trust,24-Apr-18,BEVERAGES & AMBIENT FOOD,Facilities Directorate,NHS LOGISTICS,1019013283,18.8,
Department of Health,Salisbury NHS Foundation Trust,24-Apr-18,EGGS MILK OTHER DAIRY PRODUCTS,Facilities Directorate,NHS LOGISTICS,1019013283,25.83,
Department of Health,Salisbury NHS Foundation Trust,24-Apr-18,FLAVOURINGS HERBS SPICES,Facilities Directorate,NHS LOGISTICS,1019013283,2.61,
Department of Health,Salisbury NHS Foundation Trust,24-Apr-18,BEVERAGES & AMBIENT FOOD,Facilities Directorate,NHS LOGISTICS,1019013283,4.29,
Department of Health,Salisbury NHS Foundation Trust,24-Apr-18,FLAVOURINGS HERBS SPICES,Facilities Directorate,NHS LOGISTICS,1019013283,1.37,
Department of Health,Salisbury NHS Foundation Trust,24-Apr-18,BEVERAGES & AMBIENT FOOD,Facilities Directorate,NHS LOGISTICS,1019013283,2.16,
Department of Health,Salisbury NHS Foundation Trust,24-Apr-18,FLAVOURINGS HERBS SPICES,Facilities Directorate,NHS LOGISTICS,1019013283,2.54,
Department of Health,Salisbury NHS Foundation Trust,24-Apr-18,BEVERAGES & AMBIENT FOOD,Facilities Directorate,NHS LOGISTICS,1019013283,12.62,
Department of Health,Salisbury NHS Foundation Trust,24-Apr-18,BEVERAGES & AMBIENT FOOD,Facilities Directorate,NHS LOGISTICS,1019013283,4.83,
Department of Health,Salisbury NHS Foundation Trust,24-Apr-18,BEVERAGES & AMBIENT FOOD,Facilities Directorate,NHS LOGISTICS,1019013283,8.28,
Department of Health,Salisbury NHS Foundation Trust,24-Apr-18,COOKING & KITCHEN UTENSILS,Facilities Directorate,NHS LOGISTICS,1019013283,6.42,
Department of Health,Salisbury NHS Foundation Trust,24-Apr-18,BEVERAGES & AMBIENT FOOD,Facilities Directorate,NHS LOGISTICS,1019013283,3.66,
Department of Health,Salisbury NHS Foundation Trust,24-Apr-18,BAGS SACKS - OTHER,Facilities Directorate,NHS LOGISTICS,1019013283,4.05,
Department of Health,Salisbury NHS Foundation Trust,24-Apr-18,LIQUID REFRESHMENTS,Facilities Directorate,NHS LOGISTICS,1019013283,1.56,
Department of Health,Salisbury NHS Foundation Trust,24-Apr-18,CLEANING MATERIALS PRODUCTS SUNDRIES,Facilities Directorate,NHS LOGISTICS,1019013283,15.04,
Department of Health,Salisbury NHS Foundation Trust,24-Apr-18,CLEANING MATERIALS PRODUCTS SUNDRIES,Facilities Directorate,NHS LOGISTICS,1019013283,15.12,
Department of Health,Salisbury NHS Foundation Trust,24-Apr-18,CLEANING MATERIALS PRODUCTS SUNDRIES,Facilities Directorate,NHS LOGISTICS,1019013283,3.39,
Department of Health,Salisbury NHS Foundation Trust,24-Apr-18,ADULTS HEARING AIDS,Surgery,NHS LOGISTICS,1019013283,70.75,
Department of Health,Salisbury NHS Foundation Trust,24-Apr-18,BEVERAGES & AMBIENT FOOD,Facilities Directorate,NHS LOGISTICS,1019013283,9.7,
Department of Health,Salisbury NHS Foundation Trust,24-Apr-18,BEVERAGES & AMBIENT FOOD,Facilities Directorate,NHS LOGISTICS,1019013283,2.07,
Department of Health,Salisbury NHS Foundation Trust,24-Apr-18,TISSUES HAND TOWELS & TOILET PAPER,Medicine,NHS LOGISTICS,1019013283,0.5,
Department of Health,Salisbury NHS Foundation Trust,24-Apr-18,DRESSINGS - PRE STERILE,Medicine,NHS LOGISTICS,1019013283,30,
Department of Health,Salisbury NHS Foundation Trust,24-Apr-18,TISSUES HAND TOWELS & TOILET PAPER,Medicine,NHS LOGISTICS,1019013283,0.5,
Department of Health,Salisbury NHS Foundation Trust,24-Apr-18,TISSUES HAND TOWELS & TOILET PAPER,Medicine,NHS LOGISTICS,1019013283,0.14,
Department of Health,Salisbury NHS Foundation Trust,24-Apr-18,TISSUES HAND TOWELS & TOILET PAPER,Medicine,NHS LOGISTICS,1019013283,14,
Department of Health,Salisbury NHS Foundation Trust,24-Apr-18,LAB EQUIP-LABORATORY APPARATUS,Clinical Support and Family Services,NHS LOGISTICS,1019013283,3.06,
Department of Health,Salisbury NHS Foundation Trust,24-Apr-18,LAB EQUIP-LABORATORY APPARATUS,Clinical Support and Family Services,NHS LOGISTICS,1019013283,3.79,
Department of Health,Salisbury NHS Foundation Trust,24-Apr-18,LAB EQUIP-LABORATORY APPARATUS,Clinical Support and Family Services,NHS LOGISTICS,1019013283,71.2,
Department of Health,Salisbury NHS Foundation Trust,24-Apr-18,LAB EQUIP-ANALYSERS,Clinical Support and Family Services,NHS LOGISTICS,1019013283,12.3,
Department of Health,Salisbury NHS Foundation Trust,24-Apr-18,LAB EQUIP-LABORATORY APPARATUS,Clinical Support and Family Services,NHS LOGISTICS,1019013283,5.17,
Department of Health,Salisbury NHS Foundation Trust,24-Apr-18,LAB EQUIP-LABORATORY APPARATUS,Clinical Support and Family Services,NHS LOGISTICS,1019013283,159.4,
Department of Health,Salisbury NHS Foundation Trust,24-Apr-18,LAB EQUIP-LABORATORY APPARATUS,Clinical Support and Family Services,NHS LOGISTICS,1019013283,18.84,
Department of Health,Salisbury NHS Foundation Trust,24-Apr-18,DRESSINGS  -  PROCEDURE PACKS,Clinical Support and Family Services,NHS LOGISTICS,1019013283,17.02,
Department of Health,Salisbury NHS Foundation Trust,24-Apr-18,LAB EQUIP-LABORATORY APPARATUS,Clinical Support and Family Services,NHS LOGISTICS,1019013283,15.27,
Department of Health,Salisbury NHS Foundation Trust,24-Apr-18,OTHER MEDICAL SUPPLIES,Clinical Support and Family Services,NHS LOGISTICS,1019013283,45.5,
Department of Health,Salisbury NHS Foundation Trust,24-Apr-18,LAB REAGENTS-BUFFERS COMPUND SOLNS,Clinical Support and Family Services,NHS LOGISTICS,1019013283,34.52,
Department of Health,Salisbury NHS Foundation Trust,24-Apr-18,OTHER MEDICAL SUPPLIES,Directorate of Finance and Procurement,NHS LOGISTICS,1019013283,30,
Department of Health,Salisbury NHS Foundation Trust,24-Apr-18,COOKING & KITCHEN UTENSILS,Directorate of Finance and Procurement,NHS LOGISTICS,1019013283,22.2,
Department of Health,Salisbury NHS Foundation Trust,24-Apr-18,M & S EQUIPELECTEQUIPINST - OTHER,Medicine,NHS LOGISTICS,1019013283,1.68,
Department of Health,Salisbury NHS Foundation Trust,24-Apr-18,ANAESTHETIC EQUIPMENT ACCESSORIES,Medicine,NHS LOGISTICS,1019013283,0.38,
Department of Health,Salisbury NHS Foundation Trust,24-Apr-18,OTHER MEDICAL SUPPLIES,Medicine,NHS LOGISTICS,1019013283,0.38,
Department of Health,Salisbury NHS Foundation Trust,24-Apr-18,OTHER MEDICAL SUPPLIES,Medicine,NHS LOGISTICS,1019013283,0.97,
Department of Health,Salisbury NHS Foundation Trust,24-Apr-18,TISSUES HAND TOWELS & TOILET PAPER,Medicine,NHS LOGISTICS,1019013283,0.27,
Department of Health,Salisbury NHS Foundation Trust,24-Apr-18,TISSUES HAND TOWELS & TOILET PAPER,Medicine,NHS LOGISTICS,1019013283,3.5,
Department of Health,Salisbury NHS Foundation Trust,24-Apr-18,DISPOSABLE THEATRE DRAPES WIPES,Medicine,NHS LOGISTICS,1019013283,0.71,
Department of Health,Salisbury NHS Foundation Trust,24-Apr-18,SURGICAL INSTRUMENTS: GENERAL,Clinical Support and Family Services,NHS LOGISTICS,1019013283,20,
Department of Health,Salisbury NHS Foundation Trust,24-Apr-18,TOILETRIES PERSONAL HYGIENE PRODUCTS,Medicine,NHS LOGISTICS,1019013283,0.62,
Department of Health,Salisbury NHS Foundation Trust,24-Apr-18,TISSUES HAND TOWELS & TOILET PAPER,Medicine,NHS LOGISTICS,1019013283,0.74,
Department of Health,Salisbury NHS Foundation Trust,24-Apr-18,TISSUES HAND TOWELS & TOILET PAPER,Medicine,NHS LOGISTICS,1019013283,0.16,
Department of Health,Salisbury NHS Foundation Trust,24-Apr-18,DRESSINGS - PRE STERILE,Medicine,NHS LOGISTICS,1019013283,30,
Department of Health,Salisbury NHS Foundation Trust,24-Apr-18,OTHER MEDICAL SUPPLIES,Medicine,NHS LOGISTICS,1019013283,0.38,
Department of Health,Salisbury NHS Foundation Trust,24-Apr-18,OTHER MEDICAL SUPPLIES,Medicine,NHS LOGISTICS,1019013283,0.4,
Department of Health,Salisbury NHS Foundation Trust,24-Apr-18,DISPOSABLE THEATRE DRAPES WIPES,Medicine,NHS LOGISTICS,1019013283,0.71,
Department of Health,Salisbury NHS Foundation Trust,24-Apr-18,TISSUES HAND TOWELS & TOILET PAPER,Medicine,NHS LOGISTICS,1019013283,0.5,
Department of Health,Salisbury NHS Foundation Trust,24-Apr-18,DRESSINGS - PRE STERILE,Medicine,NHS LOGISTICS,1019013283,2.8,
Department of Health,Salisbury NHS Foundation Trust,24-Apr-18,MEDSURGCONS - OTHER,Medicine,NHS LOGISTICS,1019013283,11.96,
Department of Health,Salisbury NHS Foundation Trust,24-Apr-18,TISSUES HAND TOWELS & TOILET PAPER,Critical care,NHS LOGISTICS,1019013283,1.49,
Department of Health,Salisbury NHS Foundation Trust,24-Apr-18,DRESSINGS - PRE STERILE,Critical care,NHS LOGISTICS,1019013283,1.88,
Department of Health,Salisbury NHS Foundation Trust,24-Apr-18,DRESSINGS - PRE STERILE,Critical care,NHS LOGISTICS,1019013283,0.79,
Department of Health,Salisbury NHS Foundation Trust,24-Apr-18,PATIENTS BABY WEAR,Medicine,NHS LOGISTICS,1019013283,3.21,
Department of Health,Salisbury NHS Foundation Trust,24-Apr-18,PATIENTS BABY WEAR,Medicine,NHS LOGISTICS,1019013283,2.98,
Department of Health,Salisbury NHS Foundation Trust,24-Apr-18,M & S EQUIPELECTEQUIPINST - OTHER,Medicine,NHS LOGISTICS,1019013283,1.68,
Department of Health,Salisbury NHS Foundation Trust,24-Apr-18,ANAESTHETIC EQUIPMENT ACCESSORIES,Medicine,NHS LOGISTICS,1019013283,0.25,
Department of Health,Salisbury NHS Foundation Trust,24-Apr-18,OTHER MEDICAL SUPPLIES,Medicine,NHS LOGISTICS,1019013283,0.75,
Department of Health,Salisbury NHS Foundation Trust,24-Apr-18,TISSUES HAND TOWELS & TOILET PAPER,Medicine,NHS LOGISTICS,1019013283,28,
Department of Health,Salisbury NHS Foundation Trust,24-Apr-18,LAB EQUIP-LABORATORY APPARATUS,Clinical Support and Family Services,NHS LOGISTICS,1019013283,16.38,
Department of Health,Salisbury NHS Foundation Trust,24-Apr-18,LAB EQUIP-LABORATORY APPARATUS,Clinical Support and Family Services,NHS LOGISTICS,1019013283,39.68,
Department of Health,Salisbury NHS Foundation Trust,24-Apr-18,LAB EQUIP-LABORATORY APPARATUS,Clinical Support and Family Services,NHS LOGISTICS,1019013283,51.2,
Department of Health,Salisbury NHS Foundation Trust,24-Apr-18,ELECTRICAL EQUIPMENT x,Surgery,NHS LOGISTICS,1019013283,0.25,
Department of Health,Salisbury NHS Foundation Trust,24-Apr-18,ELECTRICAL EQUIPMENT x,Surgery,NHS LOGISTICS,1019013283,1.55,
Department of Health,Salisbury NHS Foundation Trust,24-Apr-18,DRESSINGS - PRE STERILE,Surgery,NHS LOGISTICS,1019013283,2.8,
Department of Health,Salisbury NHS Foundation Trust,24-Apr-18,MEDSURGCONS - OTHER,Surgery,NHS LOGISTICS,1019013283,1.36,
Department of Health,Salisbury NHS Foundation Trust,24-Apr-18,SURGICAL INSTRUMENTS: GENERAL,Surgery,NHS LOGISTICS,1019013283,23.2,
Department of Health,Salisbury NHS Foundation Trust,24-Apr-18,TISSUES HAND TOWELS & TOILET PAPER,Surgery,NHS LOGISTICS,1019013283,2.33,
Department of Health,Salisbury NHS Foundation Trust,24-Apr-18,DRESSINGS - PRE STERILE,Corporate Directorate,NHS LOGISTICS,1019013283,1.65,
Department of Health,Salisbury NHS Foundation Trust,24-Apr-18,LAB REAGENTS-BUFFERS COMPUND SOLNS,Clinical Support and Family Services,NHS LOGISTICS,1019013283,346.67,
Department of Health,Salisbury NHS Foundation Trust,24-Apr-18,M & S EQUIPELECTEQUIPINST - OTHER,Clinical Support and Family Services,NHS LOGISTICS,1019013283,70.1,
Department of Health,Salisbury NHS Foundation Trust,24-Apr-18,M & S EQUIPELECTEQUIPINST - OTHER,Clinical Support and Family Services,NHS LOGISTICS,1019013283,30.93,
Department of Health,Salisbury NHS Foundation Trust,24-Apr-18,DRESSINGS  -  PROCEDURE PACKS,Clinical Support and Family Services,NHS LOGISTICS,1019013283,1.63,
Department of Health,Salisbury NHS Foundation Trust,24-Apr-18,MEDSURGCONS - OTHER,Medicine,NHS LOGISTICS,1019013283,73.47,
Department of Health,Salisbury NHS Foundation Trust,24-Apr-18,MEDSURGCONS - OTHER,Medicine,NHS LOGISTICS,1019013283,11.39,
Department of Health,Salisbury NHS Foundation Trust,24-Apr-18,MEDSURGCONS - OTHER,Medicine,NHS LOGISTICS,1019013283,39.54,
Department of Health,Salisbury NHS Foundation Trust,24-Apr-18,MEDSURGCONS - OTHER,Medicine,NHS LOGISTICS,1019013283,7.12,
Department of Health,Salisbury NHS Foundation Trust,24-Apr-18,MEDSURGCONS - OTHER,Medicine,NHS LOGISTICS,1019013283,39.54,
Department of Health,Salisbury NHS Foundation Trust,24-Apr-18,MEDSURGCONS - OTHER,Medicine,NHS LOGISTICS,1019013283,39.54,
Department of Health,Salisbury NHS Foundation Trust,24-Apr-18,MEDSURGCONS - OTHER,Medicine,NHS LOGISTICS,1019013283,27.68,
Department of Health,Salisbury NHS Foundation Trust,24-Apr-18,MEDSURGCONS - OTHER,Medicine,NHS LOGISTICS,1019013283,55.37,
Department of Health,Salisbury NHS Foundation Trust,24-Apr-18,MEDSURGCONS - OTHER,Medicine,NHS LOGISTICS,1019013283,41.13,
Department of Health,Salisbury NHS Foundation Trust,24-Apr-18,MEDSURGCONS - OTHER,Medicine,NHS LOGISTICS,1019013283,122.45,
Department of Health,Salisbury NHS Foundation Trust,24-Apr-18,MEDSURGCONS - OTHER,Medicine,NHS LOGISTICS,1019013283,55.37,
Department of Health,Salisbury NHS Foundation Trust,24-Apr-18,MEDSURGCONS - OTHER,Medicine,NHS LOGISTICS,1019013283,9.49,
Department of Health,Salisbury NHS Foundation Trust,24-Apr-18,MEDSURGCONS - OTHER,Medicine,NHS LOGISTICS,1019013283,18.19,
Department of Health,Salisbury NHS Foundation Trust,24-Apr-18,MEDSURGCONS - OTHER,Medicine,NHS LOGISTICS,1019013283,97.96,
Department of Health,Salisbury NHS Foundation Trust,24-Apr-18,MEDSURGCONS - OTHER,Medicine,NHS LOGISTICS,1019013283,81.63,
Department of Health,Salisbury NHS Foundation Trust,24-Apr-18,MEDSURGCONS - OTHER,Medicine,NHS LOGISTICS,1019013283,81.63,
Department of Health,Salisbury NHS Foundation Trust,24-Apr-18,MEDSURGCONS - OTHER,Medicine,NHS LOGISTICS,1019013283,32.65,
Department of Health,Salisbury NHS Foundation Trust,24-Apr-18,MEDSURGCONS - OTHER,Medicine,NHS LOGISTICS,1019013283,33.68,
Department of Health,Salisbury NHS Foundation Trust,24-Apr-18,MEDSURGCONS - OTHER,Medicine,NHS LOGISTICS,1019013283,16.33,
Department of Health,Salisbury NHS Foundation Trust,24-Apr-18,MEDSURGCONS - OTHER,Medicine,NHS LOGISTICS,1019013283,112.25,
Department of Health,Salisbury NHS Foundation Trust,24-Apr-18,MEDSURGCONS - OTHER,Medicine,NHS LOGISTICS,1019013283,11.22,
Department of Health,Salisbury NHS Foundation Trust,24-Apr-18,MEDSURGCONS - OTHER,Medicine,NHS LOGISTICS,1019013283,81.63,
Department of Health,Salisbury NHS Foundation Trust,24-Apr-18,MEDSURGCONS - OTHER,Medicine,NHS LOGISTICS,1019013283,16.33,
Department of Health,Salisbury NHS Foundation Trust,24-Apr-18,MEDSURGCONS - OTHER,Medicine,NHS LOGISTICS,1019013283,24.49,
Department of Health,Salisbury NHS Foundation Trust,24-Apr-18,MEDSURGCONS - OTHER,Medicine,NHS LOGISTICS,1019013283,24.49,
Department of Health,Salisbury NHS Foundation Trust,24-Apr-18,MEDSURGCONS - OTHER,Medicine,NHS LOGISTICS,1019013283,48.98,
Department of Health,Salisbury NHS Foundation Trust,24-Apr-18,MEDSURGCONS - OTHER,Medicine,NHS LOGISTICS,1019013283,22.45,
Department of Health,Salisbury NHS Foundation Trust,24-Apr-18,MEDSURGCONS - OTHER,Medicine,NHS LOGISTICS,1019013283,16.33,
Department of Health,Salisbury NHS Foundation Trust,24-Apr-18,MEDSURGCONS-LAPAROSCOPIC EQUIPMENT,Surgery,NHS LOGISTICS,1019013283,37.11,
Department of Health,Salisbury NHS Foundation Trust,24-Apr-18,TISSUES HAND TOWELS & TOILET PAPER,Clinical Support and Family Services,NHS LOGISTICS,1019013283,0.5,
Department of Health,Salisbury NHS Foundation Trust,24-Apr-18,MED SURG EQUIP REP MAINT CLEANING,Clinical Support and Family Services,NHS LOGISTICS,1019013283,21.86,
Department of Health,Salisbury NHS Foundation Trust,24-Apr-18,DRESSINGS - PRE STERILE,Clinical Support and Family Services,NHS LOGISTICS,1019013283,1.11,
Department of Health,Salisbury NHS Foundation Trust,24-Apr-18,OTHER MEDICAL SUPPLIES,Clinical Support and Family Services,NHS LOGISTICS,1019013283,29.99,
Department of Health,Salisbury NHS Foundation Trust,24-Apr-18,M & S EQUIPELECTEQUIPINST - OTHER,Clinical Support and Family Services,NHS LOGISTICS,1019013283,7,
Department of Health,Salisbury NHS Foundation Trust,24-Apr-18,DRESSINGS - PRE STERILE,Critical care,NHS LOGISTICS,1019013283,3.01,
Department of Health,Salisbury NHS Foundation Trust,24-Apr-18,TOILETRIES PERSONAL HYGIENE PRODUCTS,Critical care,NHS LOGISTICS,1019013283,1.23,
Department of Health,Salisbury NHS Foundation Trust,24-Apr-18,DRESSINGS - PRE STERILE,Critical care,NHS LOGISTICS,1019013283,1.5,
Department of Health,Salisbury NHS Foundation Trust,24-Apr-18,DRESSINGS - PRE STERILE,Critical care,NHS LOGISTICS,1019013283,1.74,
Department of Health,Salisbury NHS Foundation Trust,24-Apr-18,ANAESTHETIC EQUIPMENT ACCESSORIES,Critical care,NHS LOGISTICS,1019013283,0.63,
Department of Health,Salisbury NHS Foundation Trust,24-Apr-18,OTHER MEDICAL SUPPLIES,Critical care,NHS LOGISTICS,1019013283,0.75,
Department of Health,Salisbury NHS Foundation Trust,24-Apr-18,TOILETRIES PERSONAL HYGIENE PRODUCTS,Critical care,NHS LOGISTICS,1019013283,1.65,
Department of Health,Salisbury NHS Foundation Trust,24-Apr-18,M & S EQUIPELECTEQUIPINST - OTHER,Critical care,NHS LOGISTICS,1019013283,0.32,
Department of Health,Salisbury NHS Foundation Trust,24-Apr-18,DISPOSABLE THEATRE DRAPES WIPES,Critical care,NHS LOGISTICS,1019013283,3.08,
Department of Health,Salisbury NHS Foundation Trust,24-Apr-18,DISPOSABLE THEATRE DRAPES WIPES,Critical care,NHS LOGISTICS,1019013283,1.42,
Department of Health,Salisbury NHS Foundation Trust,24-Apr-18,DRESSINGS - PRE STERILE,Critical care,NHS LOGISTICS,1019013283,32.29,
Department of Health,Salisbury NHS Foundation Trust,24-Apr-18,BEVERAGES & AMBIENT FOOD,Surgery,NHS LOGISTICS,1019013283,0.37,
Department of Health,Salisbury NHS Foundation Trust,24-Apr-18,DRESSINGS - PRE STERILE,Clinical Support and Family Services,NHS LOGISTICS,1019013283,11.34,
Department of Health,Salisbury NHS Foundation Trust,24-Apr-18,DRESSINGS - PRE STERILE,Clinical Support and Family Services,NHS LOGISTICS,1019013283,10.27,
Department of Health,Salisbury NHS Foundation Trust,24-Apr-18,DRESSINGS - PRE STERILE,Clinical Support and Family Services,NHS LOGISTICS,1019013283,22.4,
Department of Health,Salisbury NHS Foundation Trust,24-Apr-18,DRESSINGS - PRE STERILE,Clinical Support and Family Services,NHS LOGISTICS,1019013283,22.68,
Department of Health,Salisbury NHS Foundation Trust,24-Apr-18,DRESSINGS - PRE STERILE,Clinical Support and Family Services,NHS LOGISTICS,1019013283,5.87,
Department of Health,Salisbury NHS Foundation Trust,24-Apr-18,MED SURG EQUIP REP MAINT CLEANING,Clinical Support and Family Services,NHS LOGISTICS,1019013283,52.4,
Department of Health,Salisbury NHS Foundation Trust,24-Apr-18,DISPOSABLE THEATRE DRAPES WIPES,Clinical Support and Family Services,NHS LOGISTICS,1019013283,0.71,
Department of Health,Salisbury NHS Foundation Trust,24-Apr-18,M & S EQUIPELECTEQUIPINST - OTHER,Clinical Support and Family Services,NHS LOGISTICS,1019013283,15.26,
Department of Health,Salisbury NHS Foundation Trust,24-Apr-18,TISSUES HAND TOWELS & TOILET PAPER,Clinical Support and Family Services,NHS LOGISTICS,1019013283,4.26,
Department of Health,Salisbury NHS Foundation Trust,24-Apr-18,OTHER MEDICAL SUPPLIES,Clinical Support and Family Services,NHS LOGISTICS,1019013283,1.37,
Department of Health,Salisbury NHS Foundation Trust,24-Apr-18,DRESSINGS - PRE STERILE,Medicine,NHS LOGISTICS,1019013283,1.5,
Department of Health,Salisbury NHS Foundation Trust,24-Apr-18,DRESSINGS - PRE STERILE,Medicine,NHS LOGISTICS,1019013283,1.2,
Department of Health,Salisbury NHS Foundation Trust,24-Apr-18,PATIENT APPLIANCES,Medicine,NHS LOGISTICS,1019013283,7.89,
Department of Health,Salisbury NHS Foundation Trust,24-Apr-18,ANAESTHETIC EQUIPMENT ACCESSORIES,Medicine,NHS LOGISTICS,1019013283,0.35,
Department of Health,Salisbury NHS Foundation Trust,24-Apr-18,PATIENT APPLIANCES,Medicine,NHS LOGISTICS,1019013283,0.81,
Department of Health,Salisbury NHS Foundation Trust,24-Apr-18,ANAESTHETIC EQUIPMENT ACCESSORIES,Medicine,NHS LOGISTICS,1019013283,0.25,
Department of Health,Salisbury NHS Foundation Trust,24-Apr-18,OTHER MEDICAL SUPPLIES,Medicine,NHS LOGISTICS,1019013283,0.38,
Department of Health,Salisbury NHS Foundation Trust,24-Apr-18,DRESSINGS - PRE STERILE,Medicine,NHS LOGISTICS,1019013283,4.14,
Department of Health,Salisbury NHS Foundation Trust,24-Apr-18,DRESSINGS - PRE STERILE,Medicine,NHS LOGISTICS,1019013283,6.21,
Department of Health,Salisbury NHS Foundation Trust,24-Apr-18,DRESSINGS - PRE STERILE,Medicine,NHS LOGISTICS,1019013283,2.07,
Department of Health,Salisbury NHS Foundation Trust,24-Apr-18,DISPOSABLE THEATRE DRAPES WIPES,Medicine,NHS LOGISTICS,1019013283,2.13,
Department of Health,Salisbury NHS Foundation Trust,24-Apr-18,TOILETRIES PERSONAL HYGIENE PRODUCTS,Surgery,NHS LOGISTICS,1019013283,3.38,
Department of Health,Salisbury NHS Foundation Trust,24-Apr-18,TOILETRIES PERSONAL HYGIENE PRODUCTS,Surgery,NHS LOGISTICS,1019013283,4.83,
Department of Health,Salisbury NHS Foundation Trust,24-Apr-18,MEDSURGCONS-LAPAROSCOPIC EQUIPMENT,Surgery,NHS LOGISTICS,1019013283,37.11,
Department of Health,Salisbury NHS Foundation Trust,24-Apr-18,BAGS SACKS - OTHER,Facilities Directorate,NHS LOGISTICS,1019013283,1.44,
Department of Health,Salisbury NHS Foundation Trust,24-Apr-18,BEVERAGES & AMBIENT FOOD,Facilities Directorate,NHS LOGISTICS,1019013283,4.74,
Department of Health,Salisbury NHS Foundation Trust,24-Apr-18,BEVERAGES & AMBIENT FOOD,Facilities Directorate,NHS LOGISTICS,1019013283,18.88,
Department of Health,Salisbury NHS Foundation Trust,24-Apr-18,FRUIT & VEGETABLES,Facilities Directorate,NHS LOGISTICS,1019013283,13.75,
Department of Health,Salisbury NHS Foundation Trust,24-Apr-18,FRUIT & VEGETABLES,Facilities Directorate,NHS LOGISTICS,1019013283,24.7,
Department of Health,Salisbury NHS Foundation Trust,24-Apr-18,FRUIT & VEGETABLES,Facilities Directorate,NHS LOGISTICS,1019013283,10.48,
Department of Health,Salisbury NHS Foundation Trust,24-Apr-18,FRUIT & VEGETABLES,Facilities Directorate,NHS LOGISTICS,1019013283,10.51,
Department of Health,Salisbury NHS Foundation Trust,24-Apr-18,FRUIT & VEGETABLES,Facilities Directorate,NHS LOGISTICS,1019013283,8.83,
Department of Health,Salisbury NHS Foundation Trust,24-Apr-18,BEVERAGES & AMBIENT FOOD,Facilities Directorate,NHS LOGISTICS,1019013283,0.17,
Department of Health,Salisbury NHS Foundation Trust,24-Apr-18,FRUIT & VEGETABLES,Facilities Directorate,NHS LOGISTICS,1019013283,21.38,
Department of Health,Salisbury NHS Foundation Trust,24-Apr-18,FRUIT & VEGETABLES,Facilities Directorate,NHS LOGISTICS,1019013283,0.96,
Department of Health,Salisbury NHS Foundation Trust,24-Apr-18,FRUIT & VEGETABLES,Facilities Directorate,NHS LOGISTICS,1019013283,0.42,
Department of Health,Salisbury NHS Foundation Trust,24-Apr-18,FRUIT & VEGETABLES,Facilities Directorate,NHS LOGISTICS,1019013283,8.11,
Department of Health,Salisbury NHS Foundation Trust,24-Apr-18,FRUIT & VEGETABLES,Facilities Directorate,NHS LOGISTICS,1019013283,8.5,
Department of Health,Salisbury NHS Foundation Trust,24-Apr-18,BEVERAGES & AMBIENT FOOD,Facilities Directorate,NHS LOGISTICS,1019013283,0.93,
Department of Health,Salisbury NHS Foundation Trust,24-Apr-18,BEVERAGES & AMBIENT FOOD,Facilities Directorate,NHS LOGISTICS,1019013283,9.49,
Department of Health,Salisbury NHS Foundation Trust,24-Apr-18,BEVERAGES & AMBIENT FOOD,Facilities Directorate,NHS LOGISTICS,1019013283,10.73,
Department of Health,Salisbury NHS Foundation Trust,24-Apr-18,BEVERAGES & AMBIENT FOOD,Facilities Directorate,NHS LOGISTICS,1019013283,1.73,
Department of Health,Salisbury NHS Foundation Trust,24-Apr-18,BEVERAGES & AMBIENT FOOD,Facilities Directorate,NHS LOGISTICS,1019013283,30.47,
Department of Health,Salisbury NHS Foundation Trust,24-Apr-18,LIQUID REFRESHMENTS,Facilities Directorate,NHS LOGISTICS,1019013283,1.75,
Department of Health,Salisbury NHS Foundation Trust,24-Apr-18,LIQUID REFRESHMENTS,Facilities Directorate,NHS LOGISTICS,1019013283,3.95,
Department of Health,Salisbury NHS Foundation Trust,24-Apr-18,LIQUID REFRESHMENTS,Facilities Directorate,NHS LOGISTICS,1019013283,1.01,
Department of Health,Salisbury NHS Foundation Trust,24-Apr-18,LIQUID REFRESHMENTS,Facilities Directorate,NHS LOGISTICS,1019013283,3.72,
Department of Health,Salisbury NHS Foundation Trust,24-Apr-18,LIQUID REFRESHMENTS,Facilities Directorate,NHS LOGISTICS,1019013283,1.01,
Department of Health,Salisbury NHS Foundation Trust,24-Apr-18,LIQUID REFRESHMENTS,Facilities Directorate,NHS LOGISTICS,1019013283,16.32,
Department of Health,Salisbury NHS Foundation Trust,24-Apr-18,BEVERAGES & AMBIENT FOOD,Facilities Directorate,NHS LOGISTICS,1019013283,1.51,
Department of Health,Salisbury NHS Foundation Trust,24-Apr-18,TISSUES HAND TOWELS & TOILET PAPER,Facilities Directorate,NHS LOGISTICS,1019013283,0.99,
Department of Health,Salisbury NHS Foundation Trust,24-Apr-18,BEVERAGES & AMBIENT FOOD,Facilities Directorate,NHS LOGISTICS,1019013283,1.9,
Department of Health,Salisbury NHS Foundation Trust,24-Apr-18,BEVERAGES & AMBIENT FOOD,Facilities Directorate,NHS LOGISTICS,1019013283,0.66,
Department of Health,Salisbury NHS Foundation Trust,24-Apr-18,BEVERAGES & AMBIENT FOOD,Facilities Directorate,NHS LOGISTICS,1019013283,0.58,
Department of Health,Salisbury NHS Foundation Trust,24-Apr-18,BEVERAGES & AMBIENT FOOD,Facilities Directorate,NHS LOGISTICS,1019013283,6.44,
Department of Health,Salisbury NHS Foundation Trust,24-Apr-18,BEVERAGES & AMBIENT FOOD,Facilities Directorate,NHS LOGISTICS,1019013283,3.83,
Department of Health,Salisbury NHS Foundation Trust,24-Apr-18,BEVERAGES & AMBIENT FOOD,Facilities Directorate,NHS LOGISTICS,1019013283,1.78,
Department of Health,Salisbury NHS Foundation Trust,24-Apr-18,FLAVOURINGS HERBS SPICES,Facilities Directorate,NHS LOGISTICS,1019013283,1.03,
Department of Health,Salisbury NHS Foundation Trust,24-Apr-18,FLAVOURINGS HERBS SPICES,Facilities Directorate,NHS LOGISTICS,1019013283,0.57,
Department of Health,Salisbury NHS Foundation Trust,24-Apr-18,FLAVOURINGS HERBS SPICES,Facilities Directorate,NHS LOGISTICS,1019013283,0.73,
Department of Health,Salisbury NHS Foundation Trust,24-Apr-18,FLAVOURINGS HERBS SPICES,Facilities Directorate,NHS LOGISTICS,1019013283,0.28,
Department of Health,Salisbury NHS Foundation Trust,24-Apr-18,FLAVOURINGS HERBS SPICES,Facilities Directorate,NHS LOGISTICS,1019013283,0.46,
Department of Health,Salisbury NHS Foundation Trust,24-Apr-18,BEVERAGES & AMBIENT FOOD,Facilities Directorate,NHS LOGISTICS,1019013283,2.45,
Department of Health,Salisbury NHS Foundation Trust,24-Apr-18,BEVERAGES & AMBIENT FOOD,Facilities Directorate,NHS LOGISTICS,1019013283,2.74,
Department of Health,Salisbury NHS Foundation Trust,24-Apr-18,BEVERAGES & AMBIENT FOOD,Facilities Directorate,NHS LOGISTICS,1019013283,1.97,
Department of Health,Salisbury NHS Foundation Trust,24-Apr-18,BEVERAGES & AMBIENT FOOD,Facilities Directorate,NHS LOGISTICS,1019013283,3.4,
Department of Health,Salisbury NHS Foundation Trust,24-Apr-18,BEVERAGES & AMBIENT FOOD,Facilities Directorate,NHS LOGISTICS,1019013283,12.02,
Department of Health,Salisbury NHS Foundation Trust,24-Apr-18,BEVERAGES & AMBIENT FOOD,Facilities Directorate,NHS LOGISTICS,1019013283,3.02,
Department of Health,Salisbury NHS Foundation Trust,24-Apr-18,BEVERAGES & AMBIENT FOOD,Facilities Directorate,NHS LOGISTICS,1019013283,3.47,
Department of Health,Salisbury NHS Foundation Trust,24-Apr-18,BEVERAGES & AMBIENT FOOD,Facilities Directorate,NHS LOGISTICS,1019013283,2.5,
Department of Health,Salisbury NHS Foundation Trust,24-Apr-18,BEVERAGES & AMBIENT FOOD,Facilities Directorate,NHS LOGISTICS,1019013283,1.78,
Department of Health,Salisbury NHS Foundation Trust,24-Apr-18,EGGS MILK OTHER DAIRY PRODUCTS,Facilities Directorate,NHS LOGISTICS,1019013283,12.92,
Department of Health,Salisbury NHS Foundation Trust,24-Apr-18,DIETETIC FOOD,Facilities Directorate,NHS LOGISTICS,1019013283,2.34,
Department of Health,Salisbury NHS Foundation Trust,24-Apr-18,DIETETIC FOOD,Facilities Directorate,NHS LOGISTICS,1019013283,2.34,
Department of Health,Salisbury NHS Foundation Trust,24-Apr-18,FLAVOURINGS HERBS SPICES,Facilities Directorate,NHS LOGISTICS,1019013283,5.01,
Department of Health,Salisbury NHS Foundation Trust,24-Apr-18,FLAVOURINGS HERBS SPICES,Facilities Directorate,NHS LOGISTICS,1019013283,2.01,
Department of Health,Salisbury NHS Foundation Trust,24-Apr-18,BABY TEXTURE MODIFIED FOODS,Facilities Directorate,NHS LOGISTICS,1019013283,6.41,
Department of Health,Salisbury NHS Foundation Trust,24-Apr-18,FLAVOURINGS HERBS SPICES,Facilities Directorate,NHS LOGISTICS,1019013283,0.68,
Department of Health,Salisbury NHS Foundation Trust,24-Apr-18,CLEANING MATERIALS PRODUCTS SUNDRIES,Facilities Directorate,NHS LOGISTICS,1019013283,0.7,
Department of Health,Salisbury NHS Foundation Trust,24-Apr-18,BEVERAGES & AMBIENT FOOD,Facilities Directorate,NHS LOGISTICS,1019013283,1.12,
Department of Health,Salisbury NHS Foundation Trust,24-Apr-18,BEVERAGES & AMBIENT FOOD,Facilities Directorate,NHS LOGISTICS,1019013283,6.31,
Department of Health,Salisbury NHS Foundation Trust,24-Apr-18,BEVERAGES & AMBIENT FOOD,Facilities Directorate,NHS LOGISTICS,1019013283,15.24,
Department of Health,Salisbury NHS Foundation Trust,24-Apr-18,BEVERAGES & AMBIENT FOOD,Facilities Directorate,NHS LOGISTICS,1019013283,3.66,
Department of Health,Salisbury NHS Foundation Trust,24-Apr-18,BEVERAGES & AMBIENT FOOD,Facilities Directorate,NHS LOGISTICS,1019013283,3.23,
Department of Health,Salisbury NHS Foundation Trust,24-Apr-18,BEVERAGES & AMBIENT FOOD,Facilities Directorate,NHS LOGISTICS,1019013283,1.84,
Department of Health,Salisbury NHS Foundation Trust,24-Apr-18,BEVERAGES & AMBIENT FOOD,Facilities Directorate,NHS LOGISTICS,1019013283,13.31,
Department of Health,Salisbury NHS Foundation Trust,24-Apr-18,DRESSINGS - PRE STERILE,Surgery,NHS LOGISTICS,1019013283,5.99,
Department of Health,Salisbury NHS Foundation Trust,24-Apr-18,DENTAL SURGERY SUNDRIES,Surgery,NHS LOGISTICS,1019013283,6.66,
Department of Health,Salisbury NHS Foundation Trust,24-Apr-18,MEDSURGCONS - OTHER,Surgery,NHS LOGISTICS,1019013283,4.1,
Department of Health,Salisbury NHS Foundation Trust,24-Apr-18,MEDSURGCONS - OTHER,Surgery,NHS LOGISTICS,1019013283,4.1,
Department of Health,Salisbury NHS Foundation Trust,24-Apr-18,MEDSURGCONS - OTHER,Surgery,NHS LOGISTICS,1019013283,4.1,
Department of Health,Salisbury NHS Foundation Trust,24-Apr-18,MEDSURGCONS - OTHER,Surgery,NHS LOGISTICS,1019013283,4.1,
Department of Health,Salisbury NHS Foundation Trust,24-Apr-18,CLEANING MATERIALS PRODUCTS SUNDRIES,Surgery,NHS LOGISTICS,1019013283,2.31,
Department of Health,Salisbury NHS Foundation Trust,24-Apr-18,MEDSURGCONS - OTHER,Clinical Support and Family Services,NHS LOGISTICS,1019013283,41.97,
Department of Health,Salisbury NHS Foundation Trust,24-Apr-18,ADULTS HEARING AIDS,Surgery,NHS LOGISTICS,1019013283,482.58,
Department of Health,Salisbury NHS Foundation Trust,24-Apr-18,DRESSINGS - PRE STERILE,Medicine,NHS LOGISTICS,1019013283,1.5,
Department of Health,Salisbury NHS Foundation Trust,24-Apr-18,TOILETRIES PERSONAL HYGIENE PRODUCTS,Medicine,NHS LOGISTICS,1019013283,1.23,
Department of Health,Salisbury NHS Foundation Trust,24-Apr-18,DRESSINGS - PRE STERILE,Medicine,NHS LOGISTICS,1019013283,1,
Department of Health,Salisbury NHS Foundation Trust,24-Apr-18,ANAESTHETIC EQUIPMENT ACCESSORIES,Medicine,NHS LOGISTICS,1019013283,0.38,
Department of Health,Salisbury NHS Foundation Trust,24-Apr-18,OTHER MEDICAL SUPPLIES,Medicine,NHS LOGISTICS,1019013283,1.13,
Department of Health,Salisbury NHS Foundation Trust,24-Apr-18,MEDSURGCONS - OTHER,Medicine,NHS LOGISTICS,1019013283,11.96,
Department of Health,Salisbury NHS Foundation Trust,24-Apr-18,MEDSURGCONS - OTHER,Medicine,NHS LOGISTICS,1019013283,1.18,
Department of Health,Salisbury NHS Foundation Trust,24-Apr-18,MEDSURGCONS - OTHER,Medicine,NHS LOGISTICS,1019013283,0.78,
Department of Health,Salisbury NHS Foundation Trust,24-Apr-18,MEDSURGCONS - OTHER,Medicine,NHS LOGISTICS,1019013283,1.36,
Department of Health,Salisbury NHS Foundation Trust,24-Apr-18,TISSUES HAND TOWELS & TOILET PAPER,Medicine,NHS LOGISTICS,1019013283,0.14,
Department of Health,Salisbury NHS Foundation Trust,24-Apr-18,TISSUES HAND TOWELS & TOILET PAPER,Medicine,NHS LOGISTICS,1019013283,6.2,
Department of Health,Salisbury NHS Foundation Trust,24-Apr-18,DISPOSABLE THEATRE DRAPES WIPES,Medicine,NHS LOGISTICS,1019013283,0.71,
Department of Health,Salisbury NHS Foundation Trust,24-Apr-18,M & S EQUIPELECTEQUIPINST - OTHER,Clinical Support and Family Services,NHS LOGISTICS,1019013283,70.1,
Department of Health,Salisbury NHS Foundation Trust,24-Apr-18,MEDSURGCONS - OTHER,Surgery,NHS LOGISTICS,1019013283,17.42,
Department of Health,Salisbury NHS Foundation Trust,24-Apr-18,ELECTRICAL EQUIPMENT x,Surgery,NHS LOGISTICS,1019013283,0.39,
Department of Health,Salisbury NHS Foundation Trust,24-Apr-18,DRUGS,Surgery,NHS LOGISTICS,1019013283,1.3,
Department of Health,Salisbury NHS Foundation Trust,24-Apr-18,DRESSINGS - PRE STERILE,Surgery,NHS LOGISTICS,1019013283,0.5,
Department of Health,Salisbury NHS Foundation Trust,24-Apr-18,OTHER MEDICAL SUPPLIES,Surgery,NHS LOGISTICS,1019013283,14,
Department of Health,Salisbury NHS Foundation Trust,24-Apr-18,MEDSURGCONS - OTHER,Surgery,NHS LOGISTICS,1019013283,4.28,
Department of Health,Salisbury NHS Foundation Trust,24-Apr-18,OTHER MEDICAL SUPPLIES,Surgery,NHS LOGISTICS,1019013283,0.75,
Department of Health,Salisbury NHS Foundation Trust,24-Apr-18,OTHER MEDICAL SUPPLIES,Surgery,NHS LOGISTICS,1019013283,3.21,
Department of Health,Salisbury NHS Foundation Trust,24-Apr-18,TOILETRIES PERSONAL HYGIENE PRODUCTS,Surgery,NHS LOGISTICS,1019013283,0.53,
Department of Health,Salisbury NHS Foundation Trust,24-Apr-18,DRESSINGS - PRE STERILE,Surgery,NHS LOGISTICS,1019013283,1.09,
Department of Health,Salisbury NHS Foundation Trust,24-Apr-18,DRESSINGS - PRE STERILE,Surgery,NHS LOGISTICS,1019013283,0.55,
Department of Health,Salisbury NHS Foundation Trust,24-Apr-18,MEDSURGCONS - OTHER,Surgery,NHS LOGISTICS,1019013283,2.71,
Department of Health,Salisbury NHS Foundation Trust,24-Apr-18,MEDSURGCONS - OTHER,Surgery,NHS LOGISTICS,1019013283,9.57,
Department of Health,Salisbury NHS Foundation Trust,24-Apr-18,MEDSURGCONS - OTHER,Surgery,NHS LOGISTICS,1019013283,1.36,
Department of Health,Salisbury NHS Foundation Trust,24-Apr-18,TOILETRIES PERSONAL HYGIENE PRODUCTS,Surgery,NHS LOGISTICS,1019013283,0.19,
Department of Health,Salisbury NHS Foundation Trust,24-Apr-18,TOILETRIES PERSONAL HYGIENE PRODUCTS,Surgery,NHS LOGISTICS,1019013283,0.83,
Department of Health,Salisbury NHS Foundation Trust,24-Apr-18,M & S EQUIPELECTEQUIPINST - OTHER,Surgery,NHS LOGISTICS,1019013283,0.32,
Department of Health,Salisbury NHS Foundation Trust,24-Apr-18,OTHER MEDICAL SUPPLIES,Surgery,NHS LOGISTICS,1019013283,9.45,
Department of Health,Salisbury NHS Foundation Trust,24-Apr-18,OTHER MEDICAL SUPPLIES,Surgery,NHS LOGISTICS,1019013283,7.09,
Department of Health,Salisbury NHS Foundation Trust,24-Apr-18,PATIENT APPLIANCES,Surgery,NHS LOGISTICS,1019013283,3.12,
Department of Health,Salisbury NHS Foundation Trust,24-Apr-18,DISPOSABLE THEATRE DRAPES WIPES,Surgery,NHS LOGISTICS,1019013283,0.66,
Department of Health,Salisbury NHS Foundation Trust,24-Apr-18,MEDSURGCONS - OTHER,Surgery,NHS LOGISTICS,1019013283,3.2,
Department of Health,Salisbury NHS Foundation Trust,24-Apr-18,DISPOSABLE THEATRE DRAPES WIPES,Surgery,NHS LOGISTICS,1019013283,0.45,
Department of Health,Salisbury NHS Foundation Trust,24-Apr-18,DISPOSABLE THEATRE DRAPES WIPES,Surgery,NHS LOGISTICS,1019013283,0.71,
Department of Health,Salisbury NHS Foundation Trust,24-Apr-18,ELECTRICAL EQUIPMENT x,Surgery,NHS LOGISTICS,1019013283,7.73,
Department of Health,Salisbury NHS Foundation Trust,24-Apr-18,MEDSURGCONS-SUTURES,Clinical Support and Family Services,NHS LOGISTICS,1019013283,12.12,
Department of Health,Salisbury NHS Foundation Trust,24-Apr-18,MEDSURGCONS - OTHER,Surgery,NHS LOGISTICS,1019013283,1.36,
Department of Health,Salisbury NHS Foundation Trust,24-Apr-18,OTHER MEDICAL SUPPLIES,Surgery,NHS LOGISTICS,1019013283,3.77,
Department of Health,Salisbury NHS Foundation Trust,24-Apr-18,DRESSINGS - PRE STERILE,Medicine,NHS LOGISTICS,1019013283,2.8,
Department of Health,Salisbury NHS Foundation Trust,24-Apr-18,DRESSINGS - PRE STERILE,Medicine,NHS LOGISTICS,1019013283,0.5,
Department of Health,Salisbury NHS Foundation Trust,24-Apr-18,OTHER MEDICAL SUPPLIES,Medicine,NHS LOGISTICS,1019013283,0.38,
Department of Health,Salisbury NHS Foundation Trust,24-Apr-18,OTHER MEDICAL SUPPLIES,Medicine,NHS LOGISTICS,1019013283,0.58,
Department of Health,Salisbury NHS Foundation Trust,24-Apr-18,TISSUES HAND TOWELS & TOILET PAPER,Medicine,NHS LOGISTICS,1019013283,0.14,
Department of Health,Salisbury NHS Foundation Trust,24-Apr-18,NON DISPOSABLE BED LINEN,Medicine,NHS LOGISTICS,1019013283,3,
Department of Health,Salisbury NHS Foundation Trust,24-Apr-18,OTHER MEDICAL SUPPLIES,Medicine,NHS LOGISTICS,1019013283,8.03,
Department of Health,Salisbury NHS Foundation Trust,24-Apr-18,DRESSINGS - PRE STERILE,Medicine,NHS LOGISTICS,1019013283,1.84,
Department of Health,Salisbury NHS Foundation Trust,24-Apr-18,OTHER MEDICAL SUPPLIES,Medicine,NHS LOGISTICS,1019013283,0.38,
Department of Health,Salisbury NHS Foundation Trust,24-Apr-18,M & S EQUIPELECTEQUIPINST - OTHER,Medicine,NHS LOGISTICS,1019013283,1.68,
Department of Health,Salisbury NHS Foundation Trust,24-Apr-18,DENTAL SURGERY SUNDRIES,Medicine,NHS LOGISTICS,1019013283,1.48,
Department of Health,Salisbury NHS Foundation Trust,24-Apr-18,CLEANING MATERIALS PRODUCTS SUNDRIES,Medicine,NHS LOGISTICS,1019013283,1.76,
Department of Health,Salisbury NHS Foundation Trust,24-Apr-18,OTHER MEDICAL SUPPLIES,Medicine,NHS LOGISTICS,1019013283,0.94,
Department of Health,Salisbury NHS Foundation Trust,24-Apr-18,OTHER MEDICAL SUPPLIES,Medicine,NHS LOGISTICS,1019013283,1.37,
Department of Health,Salisbury NHS Foundation Trust,24-Apr-18,OTHER MEDICAL SUPPLIES,Medicine,NHS LOGISTICS,1019013283,0.75,
Department of Health,Salisbury NHS Foundation Trust,24-Apr-18,PATIENT APPLIANCES,Medicine,NHS LOGISTICS,1019013283,0.67,
Department of Health,Salisbury NHS Foundation Trust,24-Apr-18,MEDSURGCONS - OTHER,Medicine,NHS LOGISTICS,1019013283,1.36,
Department of Health,Salisbury NHS Foundation Trust,24-Apr-18,DISPOSABLE THEATRE DRAPES WIPES,Medicine,NHS LOGISTICS,1019013283,0.71,
Department of Health,Salisbury NHS Foundation Trust,24-Apr-18,DRESSINGS - PRE STERILE,Surgery,NHS LOGISTICS,1019013283,2.8,
Department of Health,Salisbury NHS Foundation Trust,24-Apr-18,M & S EQUIPELECTEQUIPINST - OTHER,Surgery,NHS LOGISTICS,1019013283,2.7,
Department of Health,Salisbury NHS Foundation Trust,24-Apr-18,ANAESTHETIC EQUIPMENT ACCESSORIES,Surgery,NHS LOGISTICS,1019013283,0.25,
Department of Health,Salisbury NHS Foundation Trust,24-Apr-18,MEDSURGCONS - OTHER,Surgery,NHS LOGISTICS,1019013283,0.97,
Department of Health,Salisbury NHS Foundation Trust,24-Apr-18,DISPOSABLE THEATRE DRAPES WIPES,Surgery,NHS LOGISTICS,1019013283,0.71,
Department of Health,Salisbury NHS Foundation Trust,24-Apr-18,DRESSINGS - PRE STERILE,Surgery,NHS LOGISTICS,1019013283,1.88,
Department of Health,Salisbury NHS Foundation Trust,24-Apr-18,M & S EQUIPELECTEQUIPINST - OTHER,Surgery,NHS LOGISTICS,1019013283,2.7,
Department of Health,Salisbury NHS Foundation Trust,24-Apr-18,ANAESTHETIC EQUIPMENT ACCESSORIES,Surgery,NHS LOGISTICS,1019013283,0.25,
Department of Health,Salisbury NHS Foundation Trust,24-Apr-18,PATIENT APPLIANCES,Surgery,NHS LOGISTICS,1019013283,0.67,
Department of Health,Salisbury NHS Foundation Trust,24-Apr-18,PATIENT APPLIANCES,Surgery,NHS LOGISTICS,1019013283,0.67,
Department of Health,Salisbury NHS Foundation Trust,24-Apr-18,TOILETRIES PERSONAL HYGIENE PRODUCTS,Surgery,NHS LOGISTICS,1019013283,0.53,
Department of Health,Salisbury NHS Foundation Trust,24-Apr-18,CLEANING MATERIALS PRODUCTS SUNDRIES,Medicine,NHS LOGISTICS,1019013283,1.76,
Department of Health,Salisbury NHS Foundation Trust,24-Apr-18,DRESSINGS - PRE STERILE,Medicine,NHS LOGISTICS,1019013283,1.15,
Department of Health,Salisbury NHS Foundation Trust,24-Apr-18,OTHER MEDICAL SUPPLIES,Medicine,NHS LOGISTICS,1019013283,0.75,
Department of Health,Salisbury NHS Foundation Trust,24-Apr-18,PATIENT APPLIANCES,Medicine,NHS LOGISTICS,1019013283,1.34,
Department of Health,Salisbury NHS Foundation Trust,24-Apr-18,TISSUES HAND TOWELS & TOILET PAPER,Medicine,NHS LOGISTICS,1019013283,0.27,
Department of Health,Salisbury NHS Foundation Trust,24-Apr-18,TISSUES HAND TOWELS & TOILET PAPER,Medicine,NHS LOGISTICS,1019013283,0.94,
Department of Health,Salisbury NHS Foundation Trust,24-Apr-18,DISPOSABLE THEATRE DRAPES WIPES,Medicine,NHS LOGISTICS,1019013283,0.71,
Department of Health,Salisbury NHS Foundation Trust,24-Apr-18,TISSUES HAND TOWELS & TOILET PAPER,Medicine,NHS LOGISTICS,1019013283,0.25,
Department of Health,Salisbury NHS Foundation Trust,24-Apr-18,CLEANING MATERIALS PRODUCTS SUNDRIES,Medicine,NHS LOGISTICS,1019013283,1.76,
Department of Health,Salisbury NHS Foundation Trust,24-Apr-18,DRESSINGS - PRE STERILE,Medicine,NHS LOGISTICS,1019013283,2.8,
Department of Health,Salisbury NHS Foundation Trust,24-Apr-18,M & S EQUIPELECTEQUIPINST - OTHER,Medicine,NHS LOGISTICS,1019013283,1.35,
Department of Health,Salisbury NHS Foundation Trust,24-Apr-18,OTHER MEDICAL SUPPLIES,Medicine,NHS LOGISTICS,1019013283,2.23,
Department of Health,Salisbury NHS Foundation Trust,24-Apr-18,OTHER MEDICAL SUPPLIES,Medicine,NHS LOGISTICS,1019013283,1.37,
Department of Health,Salisbury NHS Foundation Trust,24-Apr-18,OTHER MEDICAL SUPPLIES,Medicine,NHS LOGISTICS,1019013283,1.13,
Department of Health,Salisbury NHS Foundation Trust,24-Apr-18,PATIENT APPLIANCES,Medicine,NHS LOGISTICS,1019013283,0.67,
Department of Health,Salisbury NHS Foundation Trust,24-Apr-18,PATIENT APPLIANCES,Medicine,NHS LOGISTICS,1019013283,0.88,
Department of Health,Salisbury NHS Foundation Trust,24-Apr-18,TISSUES HAND TOWELS & TOILET PAPER,Medicine,NHS LOGISTICS,1019013283,0.27,
Department of Health,Salisbury NHS Foundation Trust,24-Apr-18,DISPOSABLE THEATRE DRAPES WIPES,Medicine,NHS LOGISTICS,1019013283,1.42,
Department of Health,Salisbury NHS Foundation Trust,24-Apr-18,DRESSINGS - PRE STERILE,Critical care,NHS LOGISTICS,1019013283,3.01,
Department of Health,Salisbury NHS Foundation Trust,24-Apr-18,M & S EQUIPELECTEQUIPINST - OTHER,Critical care,NHS LOGISTICS,1019013283,1.68,
Department of Health,Salisbury NHS Foundation Trust,24-Apr-18,DRUGS,Critical care,NHS LOGISTICS,1019013283,1.3,
Department of Health,Salisbury NHS Foundation Trust,24-Apr-18,DRESSINGS - PRE STERILE,Critical care,NHS LOGISTICS,1019013283,0.5,
Department of Health,Salisbury NHS Foundation Trust,24-Apr-18,DRESSINGS - PRE STERILE,Critical care,NHS LOGISTICS,1019013283,1.15,
Department of Health,Salisbury NHS Foundation Trust,24-Apr-18,DRESSINGS - PRE STERILE,Critical care,NHS LOGISTICS,1019013283,0.79,
Department of Health,Salisbury NHS Foundation Trust,24-Apr-18,DRESSINGS - PRE STERILE,Critical care,NHS LOGISTICS,1019013283,4.96,
Department of Health,Salisbury NHS Foundation Trust,24-Apr-18,OTHER MEDICAL SUPPLIES,Critical care,NHS LOGISTICS,1019013283,0.38,
Department of Health,Salisbury NHS Foundation Trust,24-Apr-18,DRESSINGS - PRE STERILE,Critical care,NHS LOGISTICS,1019013283,11.98,
Department of Health,Salisbury NHS Foundation Trust,24-Apr-18,MEDSURGCONS - OTHER,Critical care,NHS LOGISTICS,1019013283,0.97,
Department of Health,Salisbury NHS Foundation Trust,24-Apr-18,OTHER MEDICAL SUPPLIES,Surgery,NHS LOGISTICS,1019013283,1.13,
Department of Health,Salisbury NHS Foundation Trust,24-Apr-18,OTHER MEDICAL SUPPLIES,Surgery,NHS LOGISTICS,1019013283,0.75,
Department of Health,Salisbury NHS Foundation Trust,24-Apr-18,ANAESTHETIC EQUIPMENT ACCESSORIES,Surgery,NHS LOGISTICS,1019013283,6.82,
Department of Health,Salisbury NHS Foundation Trust,24-Apr-18,MEDSURGCONS - OTHER,Surgery,NHS LOGISTICS,1019013283,20.36,
Department of Health,Salisbury NHS Foundation Trust,24-Apr-18,OTHER MEDICAL SUPPLIES,Surgery,NHS LOGISTICS,1019013283,4.47,
Department of Health,Salisbury NHS Foundation Trust,24-Apr-18,OTHER MEDICAL SUPPLIES,Surgery,NHS LOGISTICS,1019013283,4.47,
Department of Health,Salisbury NHS Foundation Trust,24-Apr-18,DENTAL SURGERY SUNDRIES,Surgery,NHS LOGISTICS,1019013283,4.44,
Department of Health,Salisbury NHS Foundation Trust,24-Apr-18,SURGICAL INSTRUMENTS: GENERAL,Surgery,NHS LOGISTICS,1019013283,14.13,
Department of Health,Salisbury NHS Foundation Trust,24-Apr-18,DRUGS,Surgery,NHS LOGISTICS,1019013283,14.47,
Department of Health,Salisbury NHS Foundation Trust,24-Apr-18,MEDSURGCONS - OTHER,Surgery,NHS LOGISTICS,1019013283,9.61,
Department of Health,Salisbury NHS Foundation Trust,24-Apr-18,OTHER MEDICAL SUPPLIES,Surgery,NHS LOGISTICS,1019013283,101.14,
Department of Health,Salisbury NHS Foundation Trust,24-Apr-18,BEVERAGES & AMBIENT FOOD,Surgery,NHS LOGISTICS,1019013283,0.5,
Department of Health,Salisbury NHS Foundation Trust,24-Apr-18,NON DISPOSABLE BED LINEN,Surgery,NHS LOGISTICS,1019013283,4.5,
Department of Health,Salisbury NHS Foundation Trust,24-Apr-18,PATIENT APPLIANCES,Clinical Support and Family Services,NHS LOGISTICS,1019013283,0.22,
Department of Health,Salisbury NHS Foundation Trust,24-Apr-18,TISSUES HAND TOWELS & TOILET PAPER,Clinical Support and Family Services,NHS LOGISTICS,1019013283,0.99,
Department of Health,Salisbury NHS Foundation Trust,24-Apr-18,MED SURG EQUIP REP MAINT CLEANING,Clinical Support and Family Services,NHS LOGISTICS,1019013283,3.22,
Department of Health,Salisbury NHS Foundation Trust,24-Apr-18,MED SURG EQUIP REP MAINT CLEANING,Clinical Support and Family Services,NHS LOGISTICS,1019013283,5.98,
Department of Health,Salisbury NHS Foundation Trust,24-Apr-18,MEDSURGCONS - OTHER,Clinical Support and Family Services,NHS LOGISTICS,1019013283,1.29,
Department of Health,Salisbury NHS Foundation Trust,24-Apr-18,DRESSINGS - PRE STERILE,Clinical Support and Family Services,NHS LOGISTICS,1019013283,10.12,
Department of Health,Salisbury NHS Foundation Trust,24-Apr-18,M & S EQUIPELECTEQUIPINST - OTHER,Medicine,NHS LOGISTICS,1019013283,320.23,
Department of Health,Salisbury NHS Foundation Trust,24-Apr-18,M & S EQUIPELECTEQUIPINST - OTHER,Medicine,NHS LOGISTICS,1019013283,160.12,
Department of Health,Salisbury NHS Foundation Trust,24-Apr-18,M & S EQUIPELECTEQUIPINST - OTHER,Medicine,NHS LOGISTICS,1019013283,64.05,
Department of Health,Salisbury NHS Foundation Trust,24-Apr-18,M & S EQUIPELECTEQUIPINST - OTHER,Medicine,NHS LOGISTICS,1019013283,32.02,
Department of Health,Salisbury NHS Foundation Trust,24-Apr-18,ELECTRICAL EQUIPMENT x,Facilities Directorate,NHS LOGISTICS,1019013283,34.8,
Department of Health,Salisbury NHS Foundation Trust,24-Apr-18,ELECTRICAL EQUIPMENT x,Facilities Directorate,NHS LOGISTICS,1019013283,6.96,
Department of Health,Salisbury NHS Foundation Trust,24-Apr-18,TUBES,Critical care,NHS LOGISTICS,1019013283,6.85,
Department of Health,Salisbury NHS Foundation Trust,24-Apr-18,TUBES,Critical care,NHS LOGISTICS,1019013283,1.37,
Department of Health,Salisbury NHS Foundation Trust,24-Apr-18,NON DISPOSABLE BED LINEN,Clinical Support and Family Services,NHS LOGISTICS,1019013283,17.75,
Department of Health,Salisbury NHS Foundation Trust,24-Apr-18,NON DISPOSABLE BED LINEN,Clinical Support and Family Services,NHS LOGISTICS,1019013283,3.55,
Department of Health,Salisbury NHS Foundation Trust,24-Apr-18,BAGS SACKS - OTHER,Medicine,NHS LOGISTICS,1019013283,10.13,
Department of Health,Salisbury NHS Foundation Trust,24-Apr-18,BAGS SACKS - OTHER,Medicine,NHS LOGISTICS,1019013283,2.03,
Department of Health,Salisbury NHS Foundation Trust,24-Apr-18,DISPOSABLE THEATRE DRAPES WIPES,Surgery,NHS LOGISTICS,1019013283,12,
Department of Health,Salisbury NHS Foundation Trust,24-Apr-18,DISPOSABLE THEATRE DRAPES WIPES,Surgery,NHS LOGISTICS,1019013283,35.4,
Department of Health,Salisbury NHS Foundation Trust,24-Apr-18,DISPOSABLE THEATRE DRAPES WIPES,Surgery,NHS LOGISTICS,1019013283,9.48,
Department of Health,Salisbury NHS Foundation Trust,24-Apr-18,SERVICES FROM NHS BODIES,Surgery,NHS LOGISTICS,1019013283,4.44,
Department of Health,Salisbury NHS Foundation Trust,24-Apr-18,SERVICES FROM NHS BODIES,Surgery,NHS LOGISTICS,1019013283,0.89,
Department of Health,Salisbury NHS Foundation Trust,24-Apr-18,NON DISPOSABLE BED LINEN,Medicine,NHS LOGISTICS,1019013283,15,
Department of Health,Salisbury NHS Foundation Trust,24-Apr-18,NON DISPOSABLE BED LINEN,Medicine,NHS LOGISTICS,1019013283,3,
Department of Health,Salisbury NHS Foundation Trust,24-Apr-18,DRESSINGS - PRE STERILE,Clinical Support and Family Services,NHS LOGISTICS,1019013283,4.41,
Department of Health,Salisbury NHS Foundation Trust,24-Apr-18,DRESSINGS - PRE STERILE,Clinical Support and Family Services,NHS LOGISTICS,1019013283,1.81,
Department of Health,Salisbury NHS Foundation Trust,24-Apr-18,DRESSINGS - PRE STERILE,Clinical Support and Family Services,NHS LOGISTICS,1019013283,2.89,
Department of Health,Salisbury NHS Foundation Trust,24-Apr-18,DRESSINGS - PRE STERILE,Clinical Support and Family Services,NHS LOGISTICS,1019013283,0.98,
Department of Health,Salisbury NHS Foundation Trust,24-Apr-18,DRESSINGS - PRE STERILE,Clinical Support and Family Services,NHS LOGISTICS,1019013283,50.61,
Department of Health,Salisbury NHS Foundation Trust,24-Apr-18,DRESSINGS - PRE STERILE,Clinical Support and Family Services,NHS LOGISTICS,1019013283,0.88,
Department of Health,Salisbury NHS Foundation Trust,24-Apr-18,DRESSINGS - PRE STERILE,Clinical Support and Family Services,NHS LOGISTICS,1019013283,0.36,
Department of Health,Salisbury NHS Foundation Trust,24-Apr-18,DRESSINGS - PRE STERILE,Clinical Support and Family Services,NHS LOGISTICS,1019013283,0.58,
Department of Health,Salisbury NHS Foundation Trust,24-Apr-18,DRESSINGS - PRE STERILE,Clinical Support and Family Services,NHS LOGISTICS,1019013283,0.2,
Department of Health,Salisbury NHS Foundation Trust,24-Apr-18,CLEANING MATERIALS PRODUCTS SUNDRIES,Clinical Support and Family Services,NHS LOGISTICS,1019013283,5.67,
Department of Health,Salisbury NHS Foundation Trust,24-Apr-18,CLEANING MATERIALS PRODUCTS SUNDRIES,Clinical Support and Family Services,NHS LOGISTICS,1019013283,8.8,
Department of Health,Salisbury NHS Foundation Trust,24-Apr-18,CLEANING MATERIALS PRODUCTS SUNDRIES,Clinical Support and Family Services,NHS LOGISTICS,1019013283,46.71,
Department of Health,Salisbury NHS Foundation Trust,24-Apr-18,HEALTHCARE - WEAR,Critical care,NHS LOGISTICS,1019013283,11.25,
Department of Health,Salisbury NHS Foundation Trust,24-Apr-18,TISSUES HAND TOWELS & TOILET PAPER,Critical care,NHS LOGISTICS,1019013283,14,
Department of Health,Salisbury NHS Foundation Trust,24-Apr-18,CLEANING MATERIALS PRODUCTS SUNDRIES,Clinical Support and Family Services,NHS LOGISTICS,1019013283,1.13,
Department of Health,Salisbury NHS Foundation Trust,24-Apr-18,CLEANING MATERIALS PRODUCTS SUNDRIES,Clinical Support and Family Services,NHS LOGISTICS,1019013283,1.76,
Department of Health,Salisbury NHS Foundation Trust,24-Apr-18,CLEANING MATERIALS PRODUCTS SUNDRIES,Clinical Support and Family Services,NHS LOGISTICS,1019013283,9.34,
Department of Health,Salisbury NHS Foundation Trust,24-Apr-18,DISPOSABLE THEATRE DRAPES WIPES,Surgery,NHS LOGISTICS,1019013283,2.24,
Department of Health,Salisbury NHS Foundation Trust,24-Apr-18,DRESSINGS - PRE STERILE,Surgery,NHS LOGISTICS,1019013283,1.95,
Department of Health,Salisbury NHS Foundation Trust,24-Apr-18,DRESSINGS - PRE STERILE,Surgery,NHS LOGISTICS,1019013283,6.04,
Department of Health,Salisbury NHS Foundation Trust,24-Apr-18,TISSUES HAND TOWELS & TOILET PAPER,Surgery,NHS LOGISTICS,1019013283,2.47,
Department of Health,Salisbury NHS Foundation Trust,24-Apr-18,TISSUES HAND TOWELS & TOILET PAPER,Surgery,NHS LOGISTICS,1019013283,6.21,
Department of Health,Salisbury NHS Foundation Trust,24-Apr-18,TISSUES HAND TOWELS & TOILET PAPER,Critical care,NHS LOGISTICS,1019013283,10.65,
Department of Health,Salisbury NHS Foundation Trust,24-Apr-18,DISPOSABLE BED LINEN,Critical care,NHS LOGISTICS,1019013283,21.42,
Department of Health,Salisbury NHS Foundation Trust,24-Apr-18,TISSUES HAND TOWELS & TOILET PAPER,Clinical Support and Family Services,NHS LOGISTICS,1019013283,10.65,
Department of Health,Salisbury NHS Foundation Trust,24-Apr-18,PATIENT APPLIANCES,Critical care,NHS LOGISTICS,1019013283,86.33,
Department of Health,Salisbury NHS Foundation Trust,24-Apr-18,PATIENT APPLIANCES,Clinical Support and Family Services,NHS LOGISTICS,1019013283,38.05,
Department of Health,Salisbury NHS Foundation Trust,24-Apr-18,ANAESTHETIC EQUIPMENT ACCESSORIES,Clinical Support and Family Services,NHS LOGISTICS,1019013283,28.42,
Department of Health,Salisbury NHS Foundation Trust,24-Apr-18,TUBES,Medicine,NHS LOGISTICS,1019013283,6.99,
Department of Health,Salisbury NHS Foundation Trust,24-Apr-18,ANAESTHETIC EQUIPMENT ACCESSORIES,Surgery,NHS LOGISTICS,1019013283,1.25,
Department of Health,Salisbury NHS Foundation Trust,24-Apr-18,NON DISPOSABLE BED LINEN,Medicine,NHS LOGISTICS,1019013283,15,
Department of Health,Salisbury NHS Foundation Trust,24-Apr-18,NON DISPOSABLE BED LINEN,Medicine,NHS LOGISTICS,1019013283,3,
Department of Health,Salisbury NHS Foundation Trust,24-Apr-18,NON DISPOSABLE BED LINEN,Critical care,NHS LOGISTICS,1019013283,7.5,
Department of Health,Salisbury NHS Foundation Trust,24-Apr-18,NON DISPOSABLE BED LINEN,Clinical Support and Family Services,NHS LOGISTICS,1019013283,7.5,
Department of Health,Salisbury NHS Foundation Trust,24-Apr-18,NON DISPOSABLE BED LINEN,Medicine,NHS LOGISTICS,1019013283,7.5,
Department of Health,Salisbury NHS Foundation Trust,24-Apr-18,NON DISPOSABLE BED LINEN,Critical care,NHS LOGISTICS,1019013283,1.5,
Department of Health,Salisbury NHS Foundation Trust,24-Apr-18,NON DISPOSABLE BED LINEN,Medicine,NHS LOGISTICS,1019013283,7.5,
Department of Health,Salisbury NHS Foundation Trust,24-Apr-18,MEDSURGCONS - OTHER,Clinical Support and Family Services,NHS LOGISTICS,1019013283,11.5,
Department of Health,Salisbury NHS Foundation Trust,24-Apr-18,DRESSINGS - PRE STERILE,Critical care,NHS LOGISTICS,1019013283,15.03,
Department of Health,Salisbury NHS Foundation Trust,24-Apr-18,DRESSINGS - PRE STERILE,Critical care,NHS LOGISTICS,1019013283,5.66,
Department of Health,Salisbury NHS Foundation Trust,24-Apr-18,DRESSINGS - PRE STERILE,Critical care,NHS LOGISTICS,1019013283,3.93,
Department of Health,Salisbury NHS Foundation Trust,24-Apr-18,NON DISPOSABLE BED LINEN,Critical care,NHS LOGISTICS,1019013283,45,
Department of Health,Salisbury NHS Foundation Trust,24-Apr-18,TUBES,Critical care,NHS LOGISTICS,1019013283,13.7,
Department of Health,Salisbury NHS Foundation Trust,24-Apr-18,DENTAL SURGERY SUNDRIES,Clinical Support and Family Services,NHS LOGISTICS,1019013283,9.3,
Department of Health,Salisbury NHS Foundation Trust,24-Apr-18,SERVICES FROM NHS BODIES,Medicine,NHS LOGISTICS,1019013283,4.44,
Department of Health,Salisbury NHS Foundation Trust,24-Apr-18,CLEANING MATERIALS PRODUCTS SUNDRIES,Clinical Support and Family Services,NHS LOGISTICS,1019013283,8.8,
Department of Health,Salisbury NHS Foundation Trust,24-Apr-18,TISSUES HAND TOWELS & TOILET PAPER,Surgery,NHS LOGISTICS,1019013283,1.23,
Department of Health,Salisbury NHS Foundation Trust,24-Apr-18,OTHER MEDICAL SUPPLIES,Clinical Support and Family Services,NHS LOGISTICS,1019013283,9.38,
Department of Health,Salisbury NHS Foundation Trust,24-Apr-18,DISPOSABLE THEATRE DRAPES WIPES,Clinical Support and Family Services,NHS LOGISTICS,1019013283,6,
Department of Health,Salisbury NHS Foundation Trust,24-Apr-18,NON DISPOSABLE BED LINEN,Medicine,NHS LOGISTICS,1019013283,11.25,
Department of Health,Salisbury NHS Foundation Trust,24-Apr-18,TISSUES HAND TOWELS & TOILET PAPER,Surgery,NHS LOGISTICS,1019013283,2.48,
Department of Health,Salisbury NHS Foundation Trust,24-Apr-18,M & S EQUIPELECTEQUIPINST - OTHER,Clinical Support and Family Services,NHS LOGISTICS,1019013283,8.4,
Department of Health,Salisbury NHS Foundation Trust,24-Apr-18,TISSUES HAND TOWELS & TOILET PAPER,Clinical Support and Family Services,NHS LOGISTICS,1019013283,9.93,
Department of Health,Salisbury NHS Foundation Trust,24-Apr-18,NON DISPOSABLE BED LINEN,Clinical Support and Family Services,NHS LOGISTICS,1019013283,11.25,
Department of Health,Salisbury NHS Foundation Trust,24-Apr-18,BABY TEXTURE MODIFIED FOODS,Clinical Support and Family Services,NHS LOGISTICS,1019013283,16.66,
Department of Health,Salisbury NHS Foundation Trust,24-Apr-18,PATIENT APPLIANCES,Surgery,NHS LOGISTICS,1019013283,3.35,
Department of Health,Salisbury NHS Foundation Trust,24-Apr-18,PATIENT APPLIANCES,Surgery,NHS LOGISTICS,1019013283,3.35,
Department of Health,Salisbury NHS Foundation Trust,24-Apr-18,MEDSURGCONS - OTHER,Clinical Support and Family Services,NHS LOGISTICS,1019013283,1.94,
Department of Health,Salisbury NHS Foundation Trust,24-Apr-18,MEDSURGCONS - OTHER,Clinical Support and Family Services,NHS LOGISTICS,1019013283,0.78,
Department of Health,Salisbury NHS Foundation Trust,24-Apr-18,M & S EQUIPELECTEQUIPINST - OTHER,Clinical Support and Family Services,NHS LOGISTICS,1019013283,0.32,
Department of Health,Salisbury NHS Foundation Trust,24-Apr-18,M & S EQUIPELECTEQUIPINST - OTHER,Clinical Support and Family Services,NHS LOGISTICS,1019013283,61.86,
Department of Health,Salisbury NHS Foundation Trust,24-Apr-18,TISSUES HAND TOWELS & TOILET PAPER,Medicine,NHS LOGISTICS,1019013283,7,
Department of Health,Salisbury NHS Foundation Trust,24-Apr-18,TISSUES HAND TOWELS & TOILET PAPER,Surgery,NHS LOGISTICS,1019013283,0.25,
Department of Health,Salisbury NHS Foundation Trust,24-Apr-18,TISSUES HAND TOWELS & TOILET PAPER,Surgery,NHS LOGISTICS,1019013283,0.74,
Department of Health,Salisbury NHS Foundation Trust,24-Apr-18,TISSUES HAND TOWELS & TOILET PAPER,Surgery,NHS LOGISTICS,1019013283,0.23,
Department of Health,Salisbury NHS Foundation Trust,24-Apr-18,DISPOSABLE THEATRE DRAPES WIPES,Surgery,NHS LOGISTICS,1019013283,0.45,
Department of Health,Salisbury NHS Foundation Trust,24-Apr-18,M & S EQUIPELECTEQUIPINST - OTHER,Clinical Support and Family Services,NHS LOGISTICS,1019013283,41.24,
Department of Health,Salisbury NHS Foundation Trust,24-Apr-18,M & S EQUIPELECTEQUIPINST - OTHER,Clinical Support and Family Services,NHS LOGISTICS,1019013283,8.25,
Department of Health,Salisbury NHS Foundation Trust,24-Apr-18,TISSUES HAND TOWELS & TOILET PAPER,Clinical Support and Family Services,NHS LOGISTICS,1019013283,0.16,
Department of Health,Salisbury NHS Foundation Trust,24-Apr-18,OTHER MEDICAL SUPPLIES,Clinical Support and Family Services,NHS LOGISTICS,1019013283,2.74,
Department of Health,Salisbury NHS Foundation Trust,24-Apr-18,DRESSINGS - PRE STERILE,Clinical Support and Family Services,NHS LOGISTICS,1019013283,1.33,
Department of Health,Salisbury NHS Foundation Trust,24-Apr-18,OTHER MEDICAL SUPPLIES,Clinical Support and Family Services,NHS LOGISTICS,1019013283,29.99,
Department of Health,Salisbury NHS Foundation Trust,24-Apr-18,NON DISPOSABLE BED LINEN,Clinical Support and Family Services,NHS LOGISTICS,1019013283,1.5,
Department of Health,Salisbury NHS Foundation Trust,24-Apr-18,TOILETRIES PERSONAL HYGIENE PRODUCTS,Critical care,NHS LOGISTICS,1019013283,0.62,
Department of Health,Salisbury NHS Foundation Trust,24-Apr-18,TISSUES HAND TOWELS & TOILET PAPER,Critical care,NHS LOGISTICS,1019013283,0.25,
Department of Health,Salisbury NHS Foundation Trust,24-Apr-18,PATIENT APPLIANCES,Critical care,NHS LOGISTICS,1019013283,2.14,
Department of Health,Salisbury NHS Foundation Trust,24-Apr-18,PATIENT APPLIANCES,Critical care,NHS LOGISTICS,1019013283,2.14,
Department of Health,Salisbury NHS Foundation Trust,24-Apr-18,PATIENT APPLIANCES,Critical care,NHS LOGISTICS,1019013283,1.61,
Department of Health,Salisbury NHS Foundation Trust,24-Apr-18,OTHER MEDICAL SUPPLIES,Critical care,NHS LOGISTICS,1019013283,0.38,
Department of Health,Salisbury NHS Foundation Trust,24-Apr-18,DRESSINGS - PRE STERILE,Surgery,NHS LOGISTICS,1019013283,0.39,
Department of Health,Salisbury NHS Foundation Trust,24-Apr-18,TISSUES HAND TOWELS & TOILET PAPER,Surgery,NHS LOGISTICS,1019013283,0.49,
Department of Health,Salisbury NHS Foundation Trust,24-Apr-18,TISSUES HAND TOWELS & TOILET PAPER,Surgery,NHS LOGISTICS,1019013283,1.24,
Department of Health,Salisbury NHS Foundation Trust,24-Apr-18,DRESSINGS - PRE STERILE,Surgery,NHS LOGISTICS,1019013283,1.21,
Department of Health,Salisbury NHS Foundation Trust,24-Apr-18,TOILETRIES PERSONAL HYGIENE PRODUCTS,Medicine,NHS LOGISTICS,1019013283,0.31,
Department of Health,Salisbury NHS Foundation Trust,24-Apr-18,TISSUES HAND TOWELS & TOILET PAPER,Medicine,NHS LOGISTICS,1019013283,0.5,
Department of Health,Salisbury NHS Foundation Trust,24-Apr-18,OTHER MEDICAL SUPPLIES,Medicine,NHS LOGISTICS,1019013283,0.4,
Department of Health,Salisbury NHS Foundation Trust,24-Apr-18,MEDSURGCONS - OTHER,Medicine,NHS LOGISTICS,1019013283,1.18,
Department of Health,Salisbury NHS Foundation Trust,24-Apr-18,MEDSURGCONS - OTHER,Medicine,NHS LOGISTICS,1019013283,0.78,
Department of Health,Salisbury NHS Foundation Trust,24-Apr-18,NON DISPOSABLE BED LINEN,Medicine,NHS LOGISTICS,1019013283,1.5,
Department of Health,Salisbury NHS Foundation Trust,24-Apr-18,DISPOSABLE THEATRE DRAPES WIPES,Medicine,NHS LOGISTICS,1019013283,0.26,
Department of Health,Salisbury NHS Foundation Trust,24-Apr-18,DISPOSABLE THEATRE DRAPES WIPES,Medicine,NHS LOGISTICS,1019013283,0.71,
Department of Health,Salisbury NHS Foundation Trust,24-Apr-18,MEDSURGCONS - OTHER,Clinical Support and Family Services,NHS LOGISTICS,1019013283,2.3,
Department of Health,Salisbury NHS Foundation Trust,24-Apr-18,DRESSINGS - PRE STERILE,Critical care,NHS LOGISTICS,1019013283,3.01,
Department of Health,Salisbury NHS Foundation Trust,24-Apr-18,TISSUES HAND TOWELS & TOILET PAPER,Critical care,NHS LOGISTICS,1019013283,2.13,
Department of Health,Salisbury NHS Foundation Trust,24-Apr-18,DRESSINGS - PRE STERILE,Critical care,NHS LOGISTICS,1019013283,1.13,
Department of Health,Salisbury NHS Foundation Trust,24-Apr-18,DRESSINGS - PRE STERILE,Critical care,NHS LOGISTICS,1019013283,0.79,
Department of Health,Salisbury NHS Foundation Trust,24-Apr-18,TUBES,Critical care,NHS LOGISTICS,1019013283,2.74,
Department of Health,Salisbury NHS Foundation Trust,24-Apr-18,DENTAL SURGERY SUNDRIES,Clinical Support and Family Services,NHS LOGISTICS,1019013283,1.86,
Department of Health,Salisbury NHS Foundation Trust,24-Apr-18,HEALTHCARE - WEAR,Surgery,NHS LOGISTICS,1019013283,6.64,
Department of Health,Salisbury NHS Foundation Trust,24-Apr-18,HEALTHCARE - WEAR,Surgery,NHS LOGISTICS,1019013283,6.64,
Department of Health,Salisbury NHS Foundation Trust,24-Apr-18,DRESSINGS - PRE STERILE,Surgery,NHS LOGISTICS,1019013283,3.76,
Department of Health,Salisbury NHS Foundation Trust,24-Apr-18,DISPOSABLE THEATRE DRAPES WIPES,Surgery,NHS LOGISTICS,1019013283,2.4,
Department of Health,Salisbury NHS Foundation Trust,24-Apr-18,DRESSINGS - PRE STERILE,Surgery,NHS LOGISTICS,1019013283,3.37,
Department of Health,Salisbury NHS Foundation Trust,24-Apr-18,NON DISPOSABLE BED LINEN,Surgery,NHS LOGISTICS,1019013283,1.5,
Department of Health,Salisbury NHS Foundation Trust,24-Apr-18,PATIENTS BABY WEAR,Medicine,NHS LOGISTICS,1019013283,3.21,
Department of Health,Salisbury NHS Foundation Trust,24-Apr-18,PATIENTS BABY WEAR,Medicine,NHS LOGISTICS,1019013283,2.98,
Department of Health,Salisbury NHS Foundation Trust,24-Apr-18,CLEANING MATERIALS PRODUCTS SUNDRIES,Medicine,NHS LOGISTICS,1019013283,1.76,
Department of Health,Salisbury NHS Foundation Trust,24-Apr-18,ANAESTHETIC EQUIPMENT ACCESSORIES,Medicine,NHS LOGISTICS,1019013283,0.25,
Department of Health,Salisbury NHS Foundation Trust,24-Apr-18,OTHER MEDICAL SUPPLIES,Medicine,NHS LOGISTICS,1019013283,0.38,
Department of Health,Salisbury NHS Foundation Trust,24-Apr-18,PATIENT APPLIANCES,Medicine,NHS LOGISTICS,1019013283,0.67,
Department of Health,Salisbury NHS Foundation Trust,24-Apr-18,SERVICES FROM NHS BODIES,Medicine,NHS LOGISTICS,1019013283,0.89,
Department of Health,Salisbury NHS Foundation Trust,24-Apr-18,MEDSURGCONS - OTHER,Medicine,NHS LOGISTICS,1019013283,1.36,
Department of Health,Salisbury NHS Foundation Trust,24-Apr-18,NON DISPOSABLE BED LINEN,Medicine,NHS LOGISTICS,1019013283,1.5,
Department of Health,Salisbury NHS Foundation Trust,24-Apr-18,DISPOSABLE THEATRE DRAPES WIPES,Medicine,NHS LOGISTICS,1019013283,0.71,
Department of Health,Salisbury NHS Foundation Trust,24-Apr-18,TISSUES HAND TOWELS & TOILET PAPER,Medicine,NHS LOGISTICS,1019013283,0.25,
Department of Health,Salisbury NHS Foundation Trust,24-Apr-18,TISSUES HAND TOWELS & TOILET PAPER,Medicine,NHS LOGISTICS,1019013283,4.26,
Department of Health,Salisbury NHS Foundation Trust,24-Apr-18,TISSUES HAND TOWELS & TOILET PAPER,Clinical Support and Family Services,NHS LOGISTICS,1019013283,8.52,
Department of Health,Salisbury NHS Foundation Trust,24-Apr-18,OTHER MEDICAL SUPPLIES,Clinical Support and Family Services,NHS LOGISTICS,1019013283,1.37,
Department of Health,Salisbury NHS Foundation Trust,24-Apr-18,DRESSINGS - PRE STERILE,Clinical Support and Family Services,NHS LOGISTICS,1019013283,1.31,
Department of Health,Salisbury NHS Foundation Trust,24-Apr-18,DRESSINGS - PRE STERILE,Medicine,NHS LOGISTICS,1019013283,0.58,
Department of Health,Salisbury NHS Foundation Trust,24-Apr-18,DRESSINGS - PRE STERILE,Medicine,NHS LOGISTICS,1019013283,1.19,
Department of Health,Salisbury NHS Foundation Trust,24-Apr-18,PATIENT APPLIANCES,Medicine,NHS LOGISTICS,1019013283,7.89,
Department of Health,Salisbury NHS Foundation Trust,24-Apr-18,DRESSINGS - PRE STERILE,Medicine,NHS LOGISTICS,1019013283,2.8,
Department of Health,Salisbury NHS Foundation Trust,24-Apr-18,PATIENT APPLIANCES,Medicine,NHS LOGISTICS,1019013283,2.42,
Department of Health,Salisbury NHS Foundation Trust,24-Apr-18,PATIENT APPLIANCES,Medicine,NHS LOGISTICS,1019013283,1.61,
Department of Health,Salisbury NHS Foundation Trust,24-Apr-18,ANAESTHETIC EQUIPMENT ACCESSORIES,Medicine,NHS LOGISTICS,1019013283,1.25,
Department of Health,Salisbury NHS Foundation Trust,24-Apr-18,OTHER MEDICAL SUPPLIES,Medicine,NHS LOGISTICS,1019013283,0.75,
Department of Health,Salisbury NHS Foundation Trust,24-Apr-18,TISSUES HAND TOWELS & TOILET PAPER,Medicine,NHS LOGISTICS,1019013283,0.14,
Department of Health,Salisbury NHS Foundation Trust,24-Apr-18,NON DISPOSABLE BED LINEN,Medicine,NHS LOGISTICS,1019013283,2.25,
Department of Health,Salisbury NHS Foundation Trust,24-Apr-18,DISPOSABLE THEATRE DRAPES WIPES,Medicine,NHS LOGISTICS,1019013283,1.42,
Department of Health,Salisbury NHS Foundation Trust,24-Apr-18,DISPOSABLE BED LINEN,Critical care,NHS LOGISTICS,1019013283,4.28,
Department of Health,Salisbury NHS Foundation Trust,24-Apr-18,DRESSINGS - PRE STERILE,Critical care,NHS LOGISTICS,1019013283,1.13,
Department of Health,Salisbury NHS Foundation Trust,24-Apr-18,DRESSINGS - PRE STERILE,Critical care,NHS LOGISTICS,1019013283,4.38,
Department of Health,Salisbury NHS Foundation Trust,24-Apr-18,DRESSINGS - PRE STERILE,Critical care,NHS LOGISTICS,1019013283,4.05,
Department of Health,Salisbury NHS Foundation Trust,24-Apr-18,DRESSINGS - PRE STERILE,Critical care,NHS LOGISTICS,1019013283,4.05,
Department of Health,Salisbury NHS Foundation Trust,24-Apr-18,DRESSINGS - PRE STERILE,Critical care,NHS LOGISTICS,1019013283,5.01,
Department of Health,Salisbury NHS Foundation Trust,24-Apr-18,DRESSINGS - PRE STERILE,Critical care,NHS LOGISTICS,1019013283,3.78,
Department of Health,Salisbury NHS Foundation Trust,24-Apr-18,DRESSINGS - PRE STERILE,Critical care,NHS LOGISTICS,1019013283,2.07,
Department of Health,Salisbury NHS Foundation Trust,24-Apr-18,DRESSINGS - PRE STERILE,Critical care,NHS LOGISTICS,1019013283,6.21,
Department of Health,Salisbury NHS Foundation Trust,24-Apr-18,DRESSINGS - PRE STERILE,Critical care,NHS LOGISTICS,1019013283,4.14,
Department of Health,Salisbury NHS Foundation Trust,24-Apr-18,TISSUES HAND TOWELS & TOILET PAPER,Surgery,NHS LOGISTICS,1019013283,4.26,
Department of Health,Salisbury NHS Foundation Trust,24-Apr-18,TISSUES HAND TOWELS & TOILET PAPER,Surgery,NHS LOGISTICS,1019013283,0.39,
Department of Health,Salisbury NHS Foundation Trust,24-Apr-18,SURGICAL INSTRUMENTS: DISPOSABLE,Surgery,NHS LOGISTICS,1019013283,14.12,
Department of Health,Salisbury NHS Foundation Trust,24-Apr-18,DRESSINGS - PRE STERILE,Critical care,NHS LOGISTICS,1019013283,1.2,
Department of Health,Salisbury NHS Foundation Trust,24-Apr-18,M & S EQUIPELECTEQUIPINST - OTHER,Critical care,NHS LOGISTICS,1019013283,1.68,
Department of Health,Salisbury NHS Foundation Trust,24-Apr-18,TOILETRIES PERSONAL HYGIENE PRODUCTS,Critical care,NHS LOGISTICS,1019013283,2.47,
Department of Health,Salisbury NHS Foundation Trust,24-Apr-18,TISSUES HAND TOWELS & TOILET PAPER,Critical care,NHS LOGISTICS,1019013283,0.99,
Department of Health,Salisbury NHS Foundation Trust,24-Apr-18,DRESSINGS - PRE STERILE,Critical care,NHS LOGISTICS,1019013283,1.88,
Department of Health,Salisbury NHS Foundation Trust,24-Apr-18,DRESSINGS - PRE STERILE,Critical care,NHS LOGISTICS,1019013283,1.5,
Department of Health,Salisbury NHS Foundation Trust,24-Apr-18,DRESSINGS - PRE STERILE,Critical care,NHS LOGISTICS,1019013283,1.74,
Department of Health,Salisbury NHS Foundation Trust,24-Apr-18,DRESSINGS - PRE STERILE,Critical care,NHS LOGISTICS,1019013283,2.41,
Department of Health,Salisbury NHS Foundation Trust,24-Apr-18,HEALTHCARE - WEAR,Critical care,NHS LOGISTICS,1019013283,2.25,
Department of Health,Salisbury NHS Foundation Trust,24-Apr-18,OTHER MEDICAL SUPPLIES,Critical care,NHS LOGISTICS,1019013283,0.75,
Department of Health,Salisbury NHS Foundation Trust,24-Apr-18,MEDSURGCONS - OTHER,Critical care,NHS LOGISTICS,1019013283,0.78,
Department of Health,Salisbury NHS Foundation Trust,24-Apr-18,TOILETRIES PERSONAL HYGIENE PRODUCTS,Critical care,NHS LOGISTICS,1019013283,0.83,
Department of Health,Salisbury NHS Foundation Trust,24-Apr-18,M & S EQUIPELECTEQUIPINST - OTHER,Critical care,NHS LOGISTICS,1019013283,0.32,
Department of Health,Salisbury NHS Foundation Trust,24-Apr-18,NON DISPOSABLE BED LINEN,Critical care,NHS LOGISTICS,1019013283,9,
Department of Health,Salisbury NHS Foundation Trust,24-Apr-18,DISPOSABLE THEATRE DRAPES WIPES,Critical care,NHS LOGISTICS,1019013283,3.08,
Department of Health,Salisbury NHS Foundation Trust,24-Apr-18,BAGS SACKS - OTHER,Surgery,NHS LOGISTICS,1019013283,2.44,
Department of Health,Salisbury NHS Foundation Trust,24-Apr-18,DRESSINGS - PRE STERILE,Surgery,NHS LOGISTICS,1019013283,1.13,
Department of Health,Salisbury NHS Foundation Trust,24-Apr-18,DRUGS,Surgery,NHS LOGISTICS,1019013283,13.79,
Department of Health,Salisbury NHS Foundation Trust,24-Apr-18,SURGICAL INSTRUMENTS: DISPOSABLE,Surgery,NHS LOGISTICS,1019013283,10.75,
Department of Health,Salisbury NHS Foundation Trust,24-Apr-18,NON DISPOSABLE BED LINEN,Surgery,NHS LOGISTICS,1019013283,6,
Department of Health,Salisbury NHS Foundation Trust,24-Apr-18,CLEANING MATERIALS PRODUCTS SUNDRIES,Surgery,NHS LOGISTICS,1019013283,1.35,
Department of Health,Salisbury NHS Foundation Trust,24-Apr-18,M & S EQUIPELECTEQUIPINST - OTHER,Clinical Support and Family Services,NHS LOGISTICS,1019013283,15.26,
Department of Health,Salisbury NHS Foundation Trust,24-Apr-18,TISSUES HAND TOWELS & TOILET PAPER,Clinical Support and Family Services,NHS LOGISTICS,1019013283,2.13,
Department of Health,Salisbury NHS Foundation Trust,24-Apr-18,CLEANING MATERIALS PRODUCTS SUNDRIES,Clinical Support and Family Services,NHS LOGISTICS,1019013283,1.76,
Department of Health,Salisbury NHS Foundation Trust,24-Apr-18,MEDSURGCONS - OTHER,Clinical Support and Family Services,NHS LOGISTICS,1019013283,16.97,
Department of Health,Salisbury NHS Foundation Trust,24-Apr-18,M & S EQUIPELECTEQUIPINST - OTHER,Clinical Support and Family Services,NHS LOGISTICS,1019013283,25.77,
Department of Health,Salisbury NHS Foundation Trust,24-Apr-18,MED SURG EQUIP REP MAINT CLEANING,Clinical Support and Family Services,NHS LOGISTICS,1019013283,43.71,
Department of Health,Salisbury NHS Foundation Trust,24-Apr-18,TISSUES HAND TOWELS & TOILET PAPER,Medicine,NHS LOGISTICS,1019013283,0.31,
Department of Health,Salisbury NHS Foundation Trust,24-Apr-18,MEDSURGCONS - OTHER,Critical care,NHS LOGISTICS,1019013283,0.78,
Department of Health,Salisbury NHS Foundation Trust,24-Apr-18,M & S EQUIPELECTEQUIPINST - OTHER,Critical care,NHS LOGISTICS,1019013283,5.04,
Department of Health,Salisbury NHS Foundation Trust,24-Apr-18,MEDSURGCONS - OTHER,Critical care,NHS LOGISTICS,1019013283,4.29,
Department of Health,Salisbury NHS Foundation Trust,24-Apr-18,DENTAL SURGERY SUNDRIES,Critical care,NHS LOGISTICS,1019013283,2.22,
Department of Health,Salisbury NHS Foundation Trust,24-Apr-18,TISSUES HAND TOWELS & TOILET PAPER,Critical care,NHS LOGISTICS,1019013283,2.8,
Department of Health,Salisbury NHS Foundation Trust,24-Apr-18,DRESSINGS - PRE STERILE,Critical care,NHS LOGISTICS,1019013283,0.5,
Department of Health,Salisbury NHS Foundation Trust,24-Apr-18,DRESSINGS - PRE STERILE,Critical care,NHS LOGISTICS,1019013283,3.39,
Department of Health,Salisbury NHS Foundation Trust,24-Apr-18,NON DISPOSABLE BED LINEN,Critical care,NHS LOGISTICS,1019013283,6.64,
Department of Health,Salisbury NHS Foundation Trust,24-Apr-18,NON DISPOSABLE BED LINEN,Critical care,NHS LOGISTICS,1019013283,7.5,
Department of Health,Salisbury NHS Foundation Trust,24-Apr-18,PATIENT APPLIANCES,Critical care,NHS LOGISTICS,1019013283,17.27,
Department of Health,Salisbury NHS Foundation Trust,24-Apr-18,DISPOSABLE THEATRE DRAPES WIPES,Critical care,NHS LOGISTICS,1019013283,0.66,
Department of Health,Salisbury NHS Foundation Trust,24-Apr-18,DISPOSABLE THEATRE DRAPES WIPES,Critical care,NHS LOGISTICS,1019013283,3.55,
Department of Health,Salisbury NHS Foundation Trust,24-Apr-18,MEDSURGCONS - OTHER,Surgery,NHS LOGISTICS,1019013283,104.94,
Department of Health,Salisbury NHS Foundation Trust,24-Apr-18,TOILETRIES PERSONAL HYGIENE PRODUCTS,Surgery,NHS LOGISTICS,1019013283,0.62,
Department of Health,Salisbury NHS Foundation Trust,24-Apr-18,NON DISPOSABLE BED LINEN,Surgery,NHS LOGISTICS,1019013283,3.75,
Department of Health,Salisbury NHS Foundation Trust,24-Apr-18,NON DISPOSABLE BED LINEN,Clinical Support and Family Services,NHS LOGISTICS,1019013283,7.5,
Department of Health,Salisbury NHS Foundation Trust,24-Apr-18,NON DISPOSABLE BED LINEN,Surgery,NHS LOGISTICS,1019013283,0.75,
Department of Health,Salisbury NHS Foundation Trust,24-Apr-18,LAB EQUIP-ANALYSERS,Clinical Support and Family Services,NHS LOGISTICS,1019013283,30.98,
Department of Health,Salisbury NHS Foundation Trust,24-Apr-18,LAB EQUIP-ANALYSERS,Clinical Support and Family Services,NHS LOGISTICS,1019013283,6.2,
Department of Health,Salisbury NHS Foundation Trust,24-Apr-18,ELECTRICAL EQUIPMENT x,Medicine,NHS LOGISTICS,1019013283,11.6,
Department of Health,Salisbury NHS Foundation Trust,24-Apr-18,ELECTRICAL EQUIPMENT x,Medicine,NHS LOGISTICS,1019013283,2.32,
